Department Family,Entity,Date,Expense Type,Expense Area,Supplier,Transaction Number,Amount,Item Description,
BEIS,UKRI - AHRC,01/06/2018,Agency Staff,IS,Capita Business Services Ltd,98196733,2550.24,Agency Staff,
BEIS,UKRI - AHRC,01/06/2018,Provisions ( Food etc),HR,Arco Limited,98196605,93.42,Provisions ( Food etc),
BEIS,UKRI - AHRC,01/06/2018,Telecoms - Non Capital Hardware Costs,IS,Premier Farnell UK Ltd T/A Farnell Onecall,98192697,37.51,Telecoms - Non Capital Hardware Costs,
BEIS,UKRI - AHRC,04/06/2018,T&S UK - Other Charges,Communications,Unspecified,98197783,14.05,T&S UK - Other Charges,
BEIS,UKRI - AHRC,04/06/2018,T&S UK - Public Transport,Communications,Unspecified,98197782,6.10,T&S UK - Public Transport,
BEIS,UKRI - AHRC,04/06/2018,T&S UK - Public Transport,Communications,Unspecified,98197783,18.50,T&S UK - Public Transport,
BEIS,UKRI - AHRC,04/06/2018,T&S UK - Public Transport,Communications,Unspecified,98197783,10.10,T&S UK - Public Transport,
BEIS,UKRI - AHRC,04/06/2018,T&S UK - Subsistence,Communications,Unspecified,98197782,50.70,T&S UK - Subsistence,
BEIS,UKRI - AHRC,04/06/2018,T&S UK - Subsistence,Communications,Unspecified,98197782,5.10,T&S UK - Subsistence,
BEIS,UKRI - AHRC,04/06/2018,T&S UK - Subsistence,Communications,Unspecified,98197782,18.26,T&S UK - Subsistence,
BEIS,UKRI - AHRC,04/06/2018,T&S UK - Subsistence,Communications,Unspecified,98197782,13.75,T&S UK - Subsistence,
BEIS,UKRI - AHRC,04/06/2018,T&S UK - Subsistence,Communications,Unspecified,98197782,15.00,T&S UK - Subsistence,
BEIS,UKRI - AHRC,04/06/2018,T&S UK - Subsistence,Communications,Unspecified,98197783,13.30,T&S UK - Subsistence,
BEIS,UKRI - AHRC,04/06/2018,T&S UK - Subsistence,Communications,Unspecified,98197783,25.65,T&S UK - Subsistence,
BEIS,UKRI - AHRC,04/06/2018,T&S UK - Subsistence,Communications,Unspecified,98197783,77.58,T&S UK - Subsistence,
BEIS,UKRI - AHRC,04/06/2018,T&S UK - Subsistence,Communications,Unspecified,98197783,15.00,T&S UK - Subsistence,
BEIS,UKRI - AHRC,05/06/2018,Conferences & Seminars,Secretariat,Clio Enterprises Ltd,98196714,715.00,Conferences & Seminars,
BEIS,UKRI - AHRC,05/06/2018,Fees (Including College Members),Industrial Strategy Challenge Fund (ISCF) - Creative Clusters,Non Employee Expenses Supplier,98199097,170.00,Fees (Including College Members),
BEIS,UKRI - AHRC,05/06/2018,Fees (Including College Members),Industrial Strategy Challenge Fund (ISCF) - Creative Clusters,Non Employee Expenses Supplier,98199099,170.00,Fees (Including College Members),
BEIS,UKRI - AHRC,05/06/2018,Fees (Including College Members),Industrial Strategy Challenge Fund (ISCF) - Creative Clusters,Non Employee Expenses Supplier,98199101,100.55,Fees (Including College Members),
BEIS,UKRI - AHRC,05/06/2018,Marketing & PR,Communications,Tate Enterprises Ltd T/A Tate Images,98199368,120.00,Marketing & PR,
BEIS,UKRI - AHRC,05/06/2018,Marketing & PR,Communications,E & P Design Ltd,98200773,1680.00,Marketing & PR,
BEIS,UKRI - AHRC,05/06/2018,Non-staff travel and subsistance,GCRF - Programme Delivery,Non Employee Expenses Supplier,98199045,63.50,Non-staff travel and subsistance,
BEIS,UKRI - AHRC,05/06/2018,Non-staff travel and subsistance,Creative Arts & Digital Humanities,Non Employee Expenses Supplier,98199046,63.20,Non-staff travel and subsistance,
BEIS,UKRI - AHRC,05/06/2018,Non-staff travel and subsistance,Creative Arts & Digital Humanities,Non Employee Expenses Supplier,98199047,62.10,Non-staff travel and subsistance,
BEIS,UKRI - AHRC,05/06/2018,Non-staff travel and subsistance,Creative Arts & Digital Humanities,Non Employee Expenses Supplier,98199048,138.10,Non-staff travel and subsistance,
BEIS,UKRI - AHRC,05/06/2018,Non-staff travel and subsistance,"Languages,Literature & International Engagement",Non Employee Expenses Supplier,98199049,122.55,Non-staff travel and subsistance,
BEIS,UKRI - AHRC,05/06/2018,Non-staff travel and subsistance,"Languages,Literature & International Engagement",Non Employee Expenses Supplier,98199050,155.25,Non-staff travel and subsistance,
BEIS,UKRI - AHRC,05/06/2018,Non-staff travel and subsistance,"Languages,Literature & International Engagement",Non Employee Expenses Supplier,98199051,85.75,Non-staff travel and subsistance,
BEIS,UKRI - AHRC,05/06/2018,Non-staff travel and subsistance,"Languages,Literature & International Engagement",Non Employee Expenses Supplier,98199052,50.50,Non-staff travel and subsistance,
BEIS,UKRI - AHRC,05/06/2018,Non-staff travel and subsistance,"Languages,Literature & International Engagement",Non Employee Expenses Supplier,98199053,100.40,Non-staff travel and subsistance,
BEIS,UKRI - AHRC,05/06/2018,Non-staff travel and subsistance,"Languages,Literature & International Engagement",Non Employee Expenses Supplier,98199054,89.65,Non-staff travel and subsistance,
BEIS,UKRI - AHRC,05/06/2018,Non-staff travel and subsistance,"Languages,Literature & International Engagement",Non Employee Expenses Supplier,98199055,96.20,Non-staff travel and subsistance,
BEIS,UKRI - AHRC,05/06/2018,Non-staff travel and subsistance,SMT,Non Employee Expenses Supplier,98199056,30.18,Non-staff travel and subsistance,
BEIS,UKRI - AHRC,05/06/2018,Non-staff travel and subsistance,SMT,Non Employee Expenses Supplier,98199057,27.51,Non-staff travel and subsistance,
BEIS,UKRI - AHRC,05/06/2018,Non-staff travel and subsistance,SMT,Non Employee Expenses Supplier,98199058,135.34,Non-staff travel and subsistance,
BEIS,UKRI - AHRC,05/06/2018,Non-staff travel and subsistance,SMT,Non Employee Expenses Supplier,98199059,21.03,Non-staff travel and subsistance,
BEIS,UKRI - AHRC,05/06/2018,Non-staff travel and subsistance,SMT,Non Employee Expenses Supplier,98199060,15.00,Non-staff travel and subsistance,
BEIS,UKRI - AHRC,05/06/2018,Non-staff travel and subsistance,SMT,Non Employee Expenses Supplier,98199061,331.16,Non-staff travel and subsistance,
BEIS,UKRI - AHRC,05/06/2018,Non-staff travel and subsistance,SMT,Non Employee Expenses Supplier,98199062,529.42,Non-staff travel and subsistance,
BEIS,UKRI - AHRC,05/06/2018,Non-staff travel and subsistance,SMT,Non Employee Expenses Supplier,98199063,120.77,Non-staff travel and subsistance,
BEIS,UKRI - AHRC,05/06/2018,Non-staff travel and subsistance,SMT,Non Employee Expenses Supplier,98199064,58.97,Non-staff travel and subsistance,
BEIS,UKRI - AHRC,05/06/2018,Non-staff travel and subsistance,SMT,Non Employee Expenses Supplier,98199065,91.98,Non-staff travel and subsistance,
BEIS,UKRI - AHRC,05/06/2018,Non-staff travel and subsistance,SMT,Non Employee Expenses Supplier,98199066,312.53,Non-staff travel and subsistance,
BEIS,UKRI - AHRC,05/06/2018,Non-staff travel and subsistance,SMT,Non Employee Expenses Supplier,98199067,446.52,Non-staff travel and subsistance,
BEIS,UKRI - AHRC,05/06/2018,Non-staff travel and subsistance,Communications,Non Employee Expenses Supplier,98199068,161.93,Non-staff travel and subsistance,
BEIS,UKRI - AHRC,05/06/2018,Non-staff travel and subsistance,New Programme Development,Non Employee Expenses Supplier,98199069,116.40,Non-staff travel and subsistance,
BEIS,UKRI - AHRC,05/06/2018,Non-staff travel and subsistance,New Programme Development,Non Employee Expenses Supplier,98199070,24.90,Non-staff travel and subsistance,
BEIS,UKRI - AHRC,05/06/2018,Non-staff travel and subsistance,New Programme Development,Non Employee Expenses Supplier,98199071,64.00,Non-staff travel and subsistance,
BEIS,UKRI - AHRC,05/06/2018,Non-staff travel and subsistance,New Programme Development,Non Employee Expenses Supplier,98199072,70.50,Non-staff travel and subsistance,
BEIS,UKRI - AHRC,05/06/2018,Non-staff travel and subsistance,New Programme Development,Non Employee Expenses Supplier,98199073,167.20,Non-staff travel and subsistance,
BEIS,UKRI - AHRC,05/06/2018,Non-staff travel and subsistance,New Programme Development,Non Employee Expenses Supplier,98199074,109.69,Non-staff travel and subsistance,
BEIS,UKRI - AHRC,05/06/2018,Non-staff travel and subsistance,New Programme Development,Non Employee Expenses Supplier,98199075,194.00,Non-staff travel and subsistance,
BEIS,UKRI - AHRC,05/06/2018,Non-staff travel and subsistance,Creative Arts & Digital Humanities,Non Employee Expenses Supplier,98199076,48.99,Non-staff travel and subsistance,
BEIS,UKRI - AHRC,05/06/2018,Non-staff travel and subsistance,Creative Arts & Digital Humanities,Non Employee Expenses Supplier,98199077,65.30,Non-staff travel and subsistance,
BEIS,UKRI - AHRC,05/06/2018,Non-staff travel and subsistance,New Programme Development,Non Employee Expenses Supplier,98199078,55.30,Non-staff travel and subsistance,
BEIS,UKRI - AHRC,05/06/2018,Non-staff travel and subsistance,New Programme Development,Non Employee Expenses Supplier,98199079,78.30,Non-staff travel and subsistance,
BEIS,UKRI - AHRC,05/06/2018,Non-staff travel and subsistance,New Programme Development,Non Employee Expenses Supplier,98199080,74.50,Non-staff travel and subsistance,
BEIS,UKRI - AHRC,05/06/2018,Non-staff travel and subsistance,New Programme Development,Non Employee Expenses Supplier,98199081,74.50,Non-staff travel and subsistance,
BEIS,UKRI - AHRC,05/06/2018,Non-staff travel and subsistance,New Programme Development,Non Employee Expenses Supplier,98199082,82.00,Non-staff travel and subsistance,
BEIS,UKRI - AHRC,05/06/2018,Non-staff travel and subsistance,New Programme Development,Non Employee Expenses Supplier,98199083,196.80,Non-staff travel and subsistance,
BEIS,UKRI - AHRC,05/06/2018,Non-staff travel and subsistance,Creative Arts & Digital Humanities,Non Employee Expenses Supplier,98199084,66.35,Non-staff travel and subsistance,
BEIS,UKRI - AHRC,05/06/2018,Non-staff travel and subsistance,New Programme Development,Non Employee Expenses Supplier,98199085,182.00,Non-staff travel and subsistance,
BEIS,UKRI - AHRC,05/06/2018,Non-staff travel and subsistance,New Programme Development,Non Employee Expenses Supplier,98199086,54.65,Non-staff travel and subsistance,
BEIS,UKRI - AHRC,05/06/2018,Non-staff travel and subsistance,Creative Arts & Digital Humanities,Non Employee Expenses Supplier,98199088,96.20,Non-staff travel and subsistance,
BEIS,UKRI - AHRC,05/06/2018,Non-staff travel and subsistance,"AHRC - Strategic Planning, Evidence & Impact",Non Employee Expenses Supplier,98199089,18.10,Non-staff travel and subsistance,
BEIS,UKRI - AHRC,05/06/2018,Non-staff travel and subsistance,"Languages,Literature & International Engagement",Non Employee Expenses Supplier,98199090,126.00,Non-staff travel and subsistance,
BEIS,UKRI - AHRC,05/06/2018,Non-staff travel and subsistance,"Languages,Literature & International Engagement",Non Employee Expenses Supplier,98199091,130.20,Non-staff travel and subsistance,
BEIS,UKRI - AHRC,05/06/2018,Non-staff travel and subsistance,"Languages,Literature & International Engagement",Non Employee Expenses Supplier,98199092,68.30,Non-staff travel and subsistance,
BEIS,UKRI - AHRC,05/06/2018,Non-staff travel and subsistance,"Languages,Literature & International Engagement",Non Employee Expenses Supplier,98199093,129.00,Non-staff travel and subsistance,
BEIS,UKRI - AHRC,05/06/2018,Non-staff travel and subsistance,"Languages,Literature & International Engagement",Non Employee Expenses Supplier,98199094,50.50,Non-staff travel and subsistance,
BEIS,UKRI - AHRC,05/06/2018,Non-staff travel and subsistance,Creative Arts & Digital Humanities,Non Employee Expenses Supplier,98199095,143.60,Non-staff travel and subsistance,
BEIS,UKRI - AHRC,05/06/2018,Non-staff travel and subsistance,Industrial Strategy Challenge Fund (ISCF) - Creative Clusters,Non Employee Expenses Supplier,98199096,113.25,Non-staff travel and subsistance,
BEIS,UKRI - AHRC,05/06/2018,Non-staff travel and subsistance,Industrial Strategy Challenge Fund (ISCF) - Creative Clusters,Non Employee Expenses Supplier,98199098,44.70,Non-staff travel and subsistance,
BEIS,UKRI - AHRC,05/06/2018,Non-staff travel and subsistance,Industrial Strategy Challenge Fund (ISCF) - Creative Clusters,Non Employee Expenses Supplier,98199100,396.50,Non-staff travel and subsistance,
BEIS,UKRI - AHRC,05/06/2018,Non-staff travel and subsistance,"Languages,Literature & International Engagement",Non Employee Expenses Supplier,98199102,253.60,Non-staff travel and subsistance,
BEIS,UKRI - AHRC,05/06/2018,Non-staff travel and subsistance,"AHRC - Strategic Planning, Evidence & Impact",Non Employee Expenses Supplier,98199104,213.50,Non-staff travel and subsistance,
BEIS,UKRI - AHRC,05/06/2018,Non-staff travel and subsistance,"AHRC - Strategic Planning, Evidence & Impact",Non Employee Expenses Supplier,98199105,105.50,Non-staff travel and subsistance,
BEIS,UKRI - AHRC,05/06/2018,Non-staff travel and subsistance,"AHRC - Strategic Planning, Evidence & Impact",Non Employee Expenses Supplier,98199106,232.82,Non-staff travel and subsistance,
BEIS,UKRI - AHRC,06/06/2018,Contract Staff,IS,Capita Business Services Ltd,98192655,2688.34,Contract Staff,
BEIS,UKRI - AHRC,06/06/2018,Contract Staff,IS,Capita Business Services Ltd,98196736,2010.96,Contract Staff,
BEIS,UKRI - AHRC,06/06/2018,Data Storage & Recovery,Corporate Services,Iron Mountain (UK) PLC,98199964,155.14,Data Storage & Recovery,
BEIS,UKRI - AHRC,06/06/2018,Health & Safety (inc. Medicals & Opticians),Corporate Services,Abbey Business Equipment Ltd,98201297,120.00,Health & Safety (inc. Medicals & Opticians),
BEIS,UKRI - AHRC,06/06/2018,T&S UK - Parking Tolls Congestion Charges,Creative Arts & Digital Humanities,Unspecified,98202223,58.80,T&S UK - Parking Tolls Congestion Charges,
BEIS,UKRI - AHRC,06/06/2018,T&S UK - Public Transport,Creative Arts & Digital Humanities,Unspecified,98202223,20.00,T&S UK - Public Transport,
BEIS,UKRI - AHRC,06/06/2018,T&S UK - Public Transport,Creative Arts & Digital Humanities,Unspecified,98202223,335.90,T&S UK - Public Transport,
BEIS,UKRI - AHRC,06/06/2018,T&S UK - Public Transport,Creative Arts & Digital Humanities,Unspecified,98202224,2.40,T&S UK - Public Transport,
BEIS,UKRI - AHRC,06/06/2018,T&S UK - Subsistence,Creative Arts & Digital Humanities,Unspecified,98202223,30.60,T&S UK - Subsistence,
BEIS,UKRI - AHRC,06/06/2018,T&S UK - Subsistence,Creative Arts & Digital Humanities,Unspecified,98202223,10.20,T&S UK - Subsistence,
BEIS,UKRI - AHRC,06/06/2018,T&S UK - Subsistence,Creative Arts & Digital Humanities,Unspecified,98202223,6.25,T&S UK - Subsistence,
BEIS,UKRI - AHRC,06/06/2018,T&S UK - Subsistence,Creative Arts & Digital Humanities,Unspecified,98202223,5.00,T&S UK - Subsistence,
BEIS,UKRI - AHRC,06/06/2018,T&S UK - Subsistence,Creative Arts & Digital Humanities,Unspecified,98202224,17.00,T&S UK - Subsistence,
BEIS,UKRI - AHRC,06/06/2018,T&S UK - Subsistence,Creative Arts & Digital Humanities,Unspecified,98202224,12.40,T&S UK - Subsistence,
BEIS,UKRI - AHRC,06/06/2018,T&S UK - Subsistence,Industrial Strategy Challenge Fund (ISCF) - Creative Clusters,Unspecified,98202224,17.54,T&S UK - Subsistence,
BEIS,UKRI - AHRC,07/06/2018,Contract Staff,IS,JC Web Services Ltd,98198830,9000.00,Contract Staff,
BEIS,UKRI - AHRC,07/06/2018,Mobile Phone Costs,Corporate Services,West UC Ltd,98205274,338.28,Mobile Phone Costs,
BEIS,UKRI - AHRC,07/06/2018,Purchase of non capital equipment,IS,Premier Farnell UK Ltd T/A Farnell Onecall,98196774,15.89,Purchase of non capital equipment,
BEIS,UKRI - AHRC,08/06/2018,Agency Staff,Finance,Hays Specialist Recruitment Ltd,98205267,2672.76,Agency Staff,
BEIS,UKRI - AHRC,08/06/2018,Agency Staff,Finance,Hays Specialist Recruitment Ltd,98205268,2138.21,Agency Staff,
BEIS,UKRI - AHRC,08/06/2018,Contract Staff,Communications,Matthew Ford,98206349,3600.00,Contract Staff,
BEIS,UKRI - AHRC,08/06/2018,Printing & Stationery,Corporate Services,Banner Group Ltd,98202332,172.94,Printing & Stationery,
BEIS,UKRI - AHRC,08/06/2018,Printing & Stationery,Corporate Services,Banner Group Ltd,98202332,13.25,Printing & Stationery,
BEIS,UKRI - AHRC,08/06/2018,T&S UK - Public Transport,"Histories,Culture & Heritage",Unspecified,98206473,13.00,T&S UK - Public Transport,
BEIS,UKRI - AHRC,08/06/2018,T&S UK - Subsistence,"Histories,Culture & Heritage",Unspecified,98206473,5.90,T&S UK - Subsistence,
BEIS,UKRI - AHRC,11/06/2018,Health & Safety (inc. Medicals & Opticians),"Languages,Literature & International Engagement",Unspecified,98208177,108.99,Health & Safety (inc. Medicals & Opticians),
BEIS,UKRI - AHRC,11/06/2018,Insurance,Corporate Services,Marsh Limited,98206831,148.46,Insurance,
BEIS,UKRI - AHRC,11/06/2018,T&S Overseas - Public Transport,"Languages,Literature & International Engagement",Unspecified,98208178,25.81,T&S Overseas - Public Transport,
BEIS,UKRI - AHRC,11/06/2018,T&S Overseas - Subsistence,"Languages,Literature & International Engagement",Unspecified,98208178,46.30,T&S Overseas - Subsistence,
BEIS,UKRI - AHRC,11/06/2018,T&S UK - Other Charges,"Languages,Literature & International Engagement",Unspecified,98208177,58.57,T&S UK - Other Charges,
BEIS,UKRI - AHRC,11/06/2018,T&S UK - Public Transport,"Languages,Literature & International Engagement",Unspecified,98208177,21.76,T&S UK - Public Transport,
BEIS,UKRI - AHRC,11/06/2018,T&S UK - Subsistence,"Languages,Literature & International Engagement",Unspecified,98208177,31.50,T&S UK - Subsistence,
BEIS,UKRI - AHRC,11/06/2018,T&S UK - Subsistence,"Languages,Literature & International Engagement",Unspecified,98208177,20.00,T&S UK - Subsistence,
BEIS,UKRI - AHRC,11/06/2018,Telecoms - Calls Fax & internet Costs,"Languages,Literature & International Engagement",Unspecified,98208177,18.00,Telecoms - Calls Fax & internet Costs,
BEIS,UKRI - AHRC,12/06/2018,Contract Staff,PSU Project Office,Capita Business Services Ltd,98196734,4048.73,Contract Staff,
BEIS,UKRI - AHRC,12/06/2018,Contract Staff,PSU Project Office,Capita Business Services Ltd,98196734,7848.08,Contract Staff,
BEIS,UKRI - AHRC,12/06/2018,Contract Staff,IS,Automated Intelligence Ltd,98202833,3960.00,Contract Staff,
BEIS,UKRI - AHRC,12/06/2018,Contract Staff,PSU Project Office,Capita Business Services Ltd,98204320,3130.74,Contract Staff,
BEIS,UKRI - AHRC,12/06/2018,Non-staff travel and subsistance,"AHRC - Strategic Planning, Evidence & Impact",Non Employee Expenses Supplier,98210818,154.60,Non-staff travel and subsistance,
BEIS,UKRI - AHRC,12/06/2018,Non-staff travel and subsistance,"AHRC - Strategic Planning, Evidence & Impact",Non Employee Expenses Supplier,98210819,115.40,Non-staff travel and subsistance,
BEIS,UKRI - AHRC,12/06/2018,T&S UK - Subsistence,SMT,Unspecified,98208824,4.43,T&S UK - Subsistence,
BEIS,UKRI - AHRC,12/06/2018,T&S UK - Subsistence,SMT,Unspecified,98208824,14.00,T&S UK - Subsistence,
BEIS,UKRI - AHRC,12/06/2018,T&S UK - Subsistence,SMT,Unspecified,98208824,14.80,T&S UK - Subsistence,
BEIS,UKRI - AHRC,12/06/2018,T&S UK - Subsistence,SMT,Unspecified,98208824,11.59,T&S UK - Subsistence,
BEIS,UKRI - AHRC,13/06/2018,Apprenticeship Levy,Corporate Services,HM Revenue & Customs,98202679,2207.00,Apprenticeship Levy,
BEIS,UKRI - AHRC,13/06/2018,Health & Safety (inc. Medicals & Opticians),Corporate Services,Swindon Occupational Medical Services Ltd,98206310,2100.00,Health & Safety (inc. Medicals & Opticians),
BEIS,UKRI - AHRC,13/06/2018,Legal & Professional Services,Industrial Strategy Challenge Fund (ISCF) - Creative Clusters,Lilley Associates Ltd,98213516,9000.00,Legal & Professional Services,
BEIS,UKRI - AHRC,13/06/2018,Legal & Professional Services,Industrial Strategy Challenge Fund (ISCF) - Creative Clusters,Lilley Associates Ltd,98213521,9000.00,Legal & Professional Services,
BEIS,UKRI - AHRC,13/06/2018,Student Loans,Balance Sheet,HM Revenue & Customs,98202678,3429.00,Student Loans,
BEIS,UKRI - AHRC,13/06/2018,T&S UK - Mileage,SMT,Unspecified,98212560,81.00,T&S UK - Mileage,
BEIS,UKRI - AHRC,13/06/2018,T&S UK - Parking Tolls Congestion Charges,SMT,Unspecified,98212560,112.20,T&S UK - Parking Tolls Congestion Charges,
BEIS,UKRI - AHRC,13/06/2018,T&S UK - Public Transport,SMT,Unspecified,98212560,59.00,T&S UK - Public Transport,
BEIS,UKRI - AHRC,13/06/2018,T&S UK - Subsistence,SMT,Unspecified,98212560,20.00,T&S UK - Subsistence,
BEIS,UKRI - AHRC,13/06/2018,T&S UK - Subsistence,SMT,Unspecified,98212560,122.65,T&S UK - Subsistence,
BEIS,UKRI - AHRC,13/06/2018,T&S UK - Subsistence,SMT,Unspecified,98212560,66.38,T&S UK - Subsistence,
BEIS,UKRI - AHRC,13/06/2018,T&S UK - Subsistence,SMT,Unspecified,98212560,30.00,T&S UK - Subsistence,
BEIS,UKRI - AHRC,14/06/2018,Agency Staff,IS,Capita Business Services Ltd,98212373,3060.29,Agency Staff,
BEIS,UKRI - AHRC,14/06/2018,Contract Staff,PSU Project Office,Capita Business Services Ltd,98212375,1878.44,Contract Staff,
BEIS,UKRI - AHRC,14/06/2018,Contract Staff,IS,Capita Business Services Ltd,98212395,4967.42,Contract Staff,
BEIS,UKRI - AHRC,14/06/2018,Contract Staff,PSU JRS,Capita Business Services Ltd,98212396,4368.24,Contract Staff,
BEIS,UKRI - AHRC,14/06/2018,Recruitment Costs,HR,Agenda Resource Management Ltd,98212890,155.91,Recruitment Costs,
BEIS,UKRI - AHRC,14/06/2018,Recruitment Costs,Corporate Services,Agenda Resource Management Ltd,98212893,155.91,Recruitment Costs,
BEIS,UKRI - AHRC,14/06/2018,Recruitment Costs,Corporate Services,Agenda Resource Management Ltd,98212894,155.91,Recruitment Costs,
BEIS,UKRI - AHRC,14/06/2018,Recruitment Costs,Corporate Services,Agenda Resource Management Ltd,98213842,155.91,Recruitment Costs,
BEIS,UKRI - AHRC,14/06/2018,Recruitment Costs,Corporate Services,Agenda Resource Management Ltd,98213844,29.21,Recruitment Costs,
BEIS,UKRI - AHRC,14/06/2018,Recruitment Costs,Corporate Services,Agenda Resource Management Ltd,98213844,156.70,Recruitment Costs,
BEIS,UKRI - AHRC,14/06/2018,Recruitment Costs,Corporate Services,Agenda Resource Management Ltd,98213845,155.91,Recruitment Costs,
BEIS,UKRI - AHRC,14/06/2018,Recruitment Costs,Corporate Services,Agenda Resource Management Ltd,98213848,155.91,Recruitment Costs,
BEIS,UKRI - AHRC,14/06/2018,Recruitment Costs,Corporate Services,Agenda Resource Management Ltd,98213850,151.16,Recruitment Costs,
BEIS,UKRI - AHRC,14/06/2018,Recruitment Costs,Corporate Services,Agenda Resource Management Ltd,98213850,158.35,Recruitment Costs,
BEIS,UKRI - AHRC,14/06/2018,Recruitment Costs,Corporate Services,Agenda Resource Management Ltd,98213851,155.91,Recruitment Costs,
BEIS,UKRI - AHRC,14/06/2018,Recruitment Costs,HR,Agenda Resource Management Ltd,98213852,122.18,Recruitment Costs,
BEIS,UKRI - AHRC,14/06/2018,Staff Training,HR,ACAS,98205282,170.00,Staff Training,
BEIS,UKRI - AHRC,14/06/2018,Union Deductions,Balance Sheet,PCS Union,98202684,200.92,Union Deductions,
BEIS,UKRI - AHRC,14/06/2018,Voluntary Deductions,Balance Sheet,Civil Service Benevolent Fund,98202681,7.33,Voluntary Deductions,
BEIS,UKRI - AHRC,14/06/2018,Voluntary Deductions,Balance Sheet,Chargive,98202682,7.00,Voluntary Deductions,
BEIS,UKRI - AHRC,15/06/2018,Provision for Early Retirement Liability,Corporate Services,RCPS Pension,98193329,1470.78,Provision for Early Retirement Liability,
BEIS,UKRI - AHRC,15/06/2018,Provision for Early Retirement Liability,Corporate Services,RCPS Pension,98197538,1482.28,Provision for Early Retirement Liability,
BEIS,UKRI - AHRC,15/06/2018,Recharges JBOS,HR,Biotechnology and Biological Sciences Research Council (BBSRC),98197519,6299.87,Recharges JBOS,
BEIS,UKRI - AHRC,15/06/2018,Recruitment Costs,Corporate Services,UK Shared Business Services Ltd,98212090,32.43,Recruitment Costs,
BEIS,UKRI - AHRC,15/06/2018,Recruitment Costs,Corporate Services,UK Shared Business Services Ltd,98212091,32.43,Recruitment Costs,
BEIS,UKRI - AHRC,15/06/2018,Recruitment Costs,Business Process & Analysis,UK Shared Business Services Ltd,98212094,54.00,Recruitment Costs,
BEIS,UKRI - AHRC,15/06/2018,Research Grant Expenditure,Global Challenges Research Fund (GCRF),Biotechnology and Biological Sciences Research Council (BBSRC),98141439,11018.82,Research Grant Expenditure,
BEIS,UKRI - AHRC,15/06/2018,Research Grant Expenditure,Connected Communities Programme,Economic & Social Research Council,98207213,77564.16,Research Grant Expenditure,
BEIS,UKRI - AHRC,15/06/2018,Research Grant Expenditure,Cross Council Responsive Mode Awards,Economic & Social Research Council,98207235,41404.58,Research Grant Expenditure,
BEIS,UKRI - AHRC,15/06/2018,Research Grant Expenditure,Global Uncertainties Programme,Economic & Social Research Council,98207246,6044.23,Research Grant Expenditure,
BEIS,UKRI - AHRC,15/06/2018,Research Grant Expenditure,Cross Council Responsive Mode Awards,Economic & Social Research Council,98207250,29027.54,Research Grant Expenditure,
BEIS,UKRI - AHRC,15/06/2018,Research Grant Expenditure,Global Uncertainties Programme,Economic & Social Research Council,98207252,4457.43,Research Grant Expenditure,
BEIS,UKRI - AHRC,15/06/2018,Research Grant Expenditure,Global Challenges Research Fund (GCRF),Economic & Social Research Council,98207917,13224.61,Research Grant Expenditure,
BEIS,UKRI - AHRC,15/06/2018,Research Grant Expenditure,Global Challenges Research Fund (GCRF),Economic & Social Research Council,98207923,11325.76,Research Grant Expenditure,
BEIS,UKRI - AHRC,15/06/2018,Research Grant Expenditure,Global Challenges Research Fund (GCRF),Economic & Social Research Council,98207927,13104.12,Research Grant Expenditure,
BEIS,UKRI - AHRC,15/06/2018,Research Grant Expenditure,Global Challenges Research Fund (GCRF),Economic & Social Research Council,98207931,13073.04,Research Grant Expenditure,
BEIS,UKRI - AHRC,15/06/2018,Research Grant Expenditure,Global Challenges Research Fund (GCRF),Economic & Social Research Council,98207933,13085.73,Research Grant Expenditure,
BEIS,UKRI - AHRC,15/06/2018,Research Grant Expenditure,Global Challenges Research Fund (GCRF),Economic & Social Research Council,98207934,14053.53,Research Grant Expenditure,
BEIS,UKRI - AHRC,15/06/2018,Research Grant Expenditure,Global Challenges Research Fund (GCRF),Economic & Social Research Council,98207935,15042.54,Research Grant Expenditure,
BEIS,UKRI - AHRC,15/06/2018,Research Grant Expenditure,Global Challenges Research Fund (GCRF),Economic & Social Research Council,98207941,12813.84,Research Grant Expenditure,
BEIS,UKRI - AHRC,15/06/2018,Research Grant Expenditure,Global Challenges Research Fund (GCRF),Economic & Social Research Council,98207946,10617.84,Research Grant Expenditure,
BEIS,UKRI - AHRC,15/06/2018,Research Grant Expenditure,Global Challenges Research Fund (GCRF),Economic & Social Research Council,98207971,13882.94,Research Grant Expenditure,
BEIS,UKRI - AHRC,15/06/2018,Research Grant Expenditure,Cross Council Responsive Mode Awards,Economic & Social Research Council,98207972,12500.39,Research Grant Expenditure,
BEIS,UKRI - AHRC,15/06/2018,Research Grant Expenditure,Anti-microbial Resistance (AMR),Economic & Social Research Council,98207973,21830.81,Research Grant Expenditure,
BEIS,UKRI - AHRC,15/06/2018,Research Grant Expenditure,Commissioned Research,Economic & Social Research Council,98207977,26792.55,Research Grant Expenditure,
BEIS,UKRI - AHRC,15/06/2018,Research Grant Expenditure,Cross Council Responsive Mode Awards,Economic & Social Research Council,98207978,14086.98,Research Grant Expenditure,
BEIS,UKRI - AHRC,15/06/2018,Research Grant Expenditure,RCUK Global Challenges Research Fund (RCUK GCRF),Economic & Social Research Council,98207979,43565.77,Research Grant Expenditure,
BEIS,UKRI - AHRC,15/06/2018,Research Grant Expenditure,RCUK Global Challenges Research Fund (RCUK GCRF),Economic & Social Research Council,98207990,38513.50,Research Grant Expenditure,
BEIS,UKRI - AHRC,15/06/2018,Research Grant Expenditure,RCUK Global Challenges Research Fund (RCUK GCRF),Economic & Social Research Council,98208016,44974.40,Research Grant Expenditure,
BEIS,UKRI - AHRC,15/06/2018,Research Grant Expenditure,Urban Living,Economic & Social Research Council,98208024,2498.12,Research Grant Expenditure,
BEIS,UKRI - AHRC,15/06/2018,Research Grant Expenditure,Urban Living,Economic & Social Research Council,98208038,3977.16,Research Grant Expenditure,
BEIS,UKRI - AHRC,15/06/2018,Research Grant Expenditure,Urban Living,Economic & Social Research Council,98208040,7216.28,Research Grant Expenditure,
BEIS,UKRI - AHRC,15/06/2018,Research Grant Expenditure,Urban Living,Economic & Social Research Council,98208042,7111.40,Research Grant Expenditure,
BEIS,UKRI - AHRC,15/06/2018,Research Grant Expenditure,Urban Living,Economic & Social Research Council,98208043,5692.00,Research Grant Expenditure,
BEIS,UKRI - AHRC,15/06/2018,Research Grant Expenditure,Urban Living,Economic & Social Research Council,98208045,3438.78,Research Grant Expenditure,
BEIS,UKRI - AHRC,15/06/2018,Research Grant Expenditure,Digital Transformations,Economic & Social Research Council,98208054,8396.77,Research Grant Expenditure,
BEIS,UKRI - AHRC,15/06/2018,Research Grant Expenditure,Digital Transformations,Economic & Social Research Council,98208057,8035.94,Research Grant Expenditure,
BEIS,UKRI - AHRC,15/06/2018,Research Grant Expenditure,Digital Transformations,Economic & Social Research Council,98208060,7119.25,Research Grant Expenditure,
BEIS,UKRI - AHRC,15/06/2018,Research Grant Expenditure,Digital Transformations,Economic & Social Research Council,98208061,5040.51,Research Grant Expenditure,
BEIS,UKRI - AHRC,15/06/2018,Research Grant Expenditure,Digital Transformations,Economic & Social Research Council,98208066,11311.76,Research Grant Expenditure,
BEIS,UKRI - AHRC,15/06/2018,Research Grant Expenditure,Digital Transformations,Economic & Social Research Council,98208067,5498.88,Research Grant Expenditure,
BEIS,UKRI - AHRC,15/06/2018,Research Grant Expenditure,Digital Transformations,Economic & Social Research Council,98208071,11758.16,Research Grant Expenditure,
BEIS,UKRI - AHRC,15/06/2018,Research Grant Expenditure,Commissioned Research,Economic & Social Research Council,98208072,4379.02,Research Grant Expenditure,
BEIS,UKRI - AHRC,15/06/2018,Research Grant Expenditure,Urban Living,Economic & Social Research Council,98208074,6249.08,Research Grant Expenditure,
BEIS,UKRI - AHRC,15/06/2018,Research Grant Expenditure,Urban Living,Economic & Social Research Council,98208078,4001.04,Research Grant Expenditure,
BEIS,UKRI - AHRC,15/06/2018,Research Grant Expenditure,Urban Living,Economic & Social Research Council,98208090,3743.85,Research Grant Expenditure,
BEIS,UKRI - AHRC,15/06/2018,Research Grant Expenditure,RCUK Global Challenges Research Fund (RCUK GCRF),Economic & Social Research Council,98208092,43591.80,Research Grant Expenditure,
BEIS,UKRI - AHRC,15/06/2018,Research Grant Expenditure,Global Challenges Research Fund (GCRF),Economic & Social Research Council,98210481,-11325.76,Research Grant Expenditure,
BEIS,UKRI - AHRC,15/06/2018,Research Grant Expenditure,Global Challenges Research Fund (GCRF),Economic & Social Research Council,98210485,5662.88,Research Grant Expenditure,
BEIS,UKRI - AHRC,15/06/2018,Research Grant Expenditure,RCUK Global Challenges Research Fund (RCUK GCRF),Economic & Social Research Council,98210528,21652.05,Research Grant Expenditure,
BEIS,UKRI - AHRC,15/06/2018,Research Grant Expenditure,Global Challenges Research Fund (GCRF),Economic & Social Research Council,98210539,7203.57,Research Grant Expenditure,
BEIS,UKRI - AHRC,15/06/2018,Research Grant Expenditure,Urban Living,Economic & Social Research Council,98210540,3499.30,Research Grant Expenditure,
BEIS,UKRI - AHRC,15/06/2018,Research Grant Expenditure,RCUK Global Challenges Research Fund (RCUK GCRF),Economic & Social Research Council,98210542,50717.30,Research Grant Expenditure,
BEIS,UKRI - AHRC,15/06/2018,Research Grant Expenditure,RCUK Global Challenges Research Fund (RCUK GCRF),Economic & Social Research Council,98210577,21666.45,Research Grant Expenditure,
BEIS,UKRI - AHRC,15/06/2018,Research Grant Expenditure,RCUK Global Challenges Research Fund (RCUK GCRF),Economic & Social Research Council,98210579,18743.85,Research Grant Expenditure,
BEIS,UKRI - AHRC,15/06/2018,Research Grant Expenditure,Digital Economy,Engineering & Physical Sciences Research Council,98213997,25391.82,Research Grant Expenditure,
BEIS,UKRI - AHRC,15/06/2018,Research Grant Expenditure,Digital Economy,Engineering & Physical Sciences Research Council,98214000,25475.50,Research Grant Expenditure,
BEIS,UKRI - AHRC,15/06/2018,Research Grant Expenditure,Digital Economy,Engineering & Physical Sciences Research Council,98214028,13971.40,Research Grant Expenditure,
BEIS,UKRI - AHRC,15/06/2018,Research Grant Expenditure,Digital Economy,Engineering & Physical Sciences Research Council,98214029,6153.69,Research Grant Expenditure,
BEIS,UKRI - AHRC,15/06/2018,Research Grant Expenditure,Digital Economy,Engineering & Physical Sciences Research Council,98214030,20896.45,Research Grant Expenditure,
BEIS,UKRI - AHRC,15/06/2018,Research Grant Expenditure,Digital Economy,Engineering & Physical Sciences Research Council,98214033,10401.09,Research Grant Expenditure,
BEIS,UKRI - AHRC,15/06/2018,Research Grant Expenditure,Digital Economy,Engineering & Physical Sciences Research Council,98214036,17478.91,Research Grant Expenditure,
BEIS,UKRI - AHRC,15/06/2018,Research Grant Expenditure,Digital Economy,Engineering & Physical Sciences Research Council,98214039,35354.39,Research Grant Expenditure,
BEIS,UKRI - AHRC,15/06/2018,Research Grant Expenditure,Design: Strategic Initiatives,Engineering & Physical Sciences Research Council,98214073,1536.14,Research Grant Expenditure,
BEIS,UKRI - AHRC,15/06/2018,Research Grant Expenditure,Urban Living,Engineering & Physical Sciences Research Council,98214128,1771.95,Research Grant Expenditure,
BEIS,UKRI - AHRC,15/06/2018,Research Grant Expenditure,Urban Living,Engineering & Physical Sciences Research Council,98214135,2167.83,Research Grant Expenditure,
BEIS,UKRI - AHRC,18/06/2018,Advertising & Promotion,Communications,Eleanor O�Kane,98214763,450.00,Advertising & Promotion,
BEIS,UKRI - AHRC,18/06/2018,Fees (Including College Members),New Programme Development,Non Employee Expenses Supplier,98216071,320.00,Fees (Including College Members),
BEIS,UKRI - AHRC,18/06/2018,Fees (Including College Members),Industrial Strategy Challenge Fund (ISCF) - Creative Clusters,Non Employee Expenses Supplier,98216078,1200.00,Fees (Including College Members),
BEIS,UKRI - AHRC,18/06/2018,Fees (Including College Members),Industrial Strategy Challenge Fund (ISCF) - Creative Clusters,Non Employee Expenses Supplier,98216085,1200.00,Fees (Including College Members),
BEIS,UKRI - AHRC,18/06/2018,Fees (Including College Members),Industrial Strategy Challenge Fund (ISCF) - Creative Clusters,Non Employee Expenses Supplier,98216087,2000.00,Fees (Including College Members),
BEIS,UKRI - AHRC,18/06/2018,Non-staff travel and subsistance,"Languages,Literature & International Engagement",Non Employee Expenses Supplier,98216068,88.25,Non-staff travel and subsistance,
BEIS,UKRI - AHRC,18/06/2018,Non-staff travel and subsistance,"Languages,Literature & International Engagement",Non Employee Expenses Supplier,98216069,111.68,Non-staff travel and subsistance,
BEIS,UKRI - AHRC,18/06/2018,Non-staff travel and subsistance,Communications,Non Employee Expenses Supplier,98216070,65.40,Non-staff travel and subsistance,
BEIS,UKRI - AHRC,18/06/2018,Non-staff travel and subsistance,"Languages,Literature & International Engagement",Non Employee Expenses Supplier,98216072,120.79,Non-staff travel and subsistance,
BEIS,UKRI - AHRC,18/06/2018,Non-staff travel and subsistance,"Languages,Literature & International Engagement",Non Employee Expenses Supplier,98216073,183.25,Non-staff travel and subsistance,
BEIS,UKRI - AHRC,18/06/2018,Non-staff travel and subsistance,"Histories,Culture & Heritage",Non Employee Expenses Supplier,98216074,357.70,Non-staff travel and subsistance,
BEIS,UKRI - AHRC,18/06/2018,Non-staff travel and subsistance,New Programme Development,Non Employee Expenses Supplier,98216075,200.00,Non-staff travel and subsistance,
BEIS,UKRI - AHRC,18/06/2018,Non-staff travel and subsistance,New Programme Development,Non Employee Expenses Supplier,98216076,50.00,Non-staff travel and subsistance,
BEIS,UKRI - AHRC,18/06/2018,Non-staff travel and subsistance,Industrial Strategy Challenge Fund (ISCF) - Creative Clusters,Non Employee Expenses Supplier,98216077,320.90,Non-staff travel and subsistance,
BEIS,UKRI - AHRC,18/06/2018,Non-staff travel and subsistance,SMT,Non Employee Expenses Supplier,98216079,614.58,Non-staff travel and subsistance,
BEIS,UKRI - AHRC,18/06/2018,Non-staff travel and subsistance,Creative Arts & Digital Humanities,Non Employee Expenses Supplier,98216080,151.30,Non-staff travel and subsistance,
BEIS,UKRI - AHRC,18/06/2018,Non-staff travel and subsistance,Communications,Non Employee Expenses Supplier,98216081,47.90,Non-staff travel and subsistance,
BEIS,UKRI - AHRC,18/06/2018,Non-staff travel and subsistance,Communications,Non Employee Expenses Supplier,98216082,130.70,Non-staff travel and subsistance,
BEIS,UKRI - AHRC,18/06/2018,Non-staff travel and subsistance,Communications,Non Employee Expenses Supplier,98216083,128.10,Non-staff travel and subsistance,
BEIS,UKRI - AHRC,18/06/2018,Non-staff travel and subsistance,Industrial Strategy Challenge Fund (ISCF) - Creative Clusters,Non Employee Expenses Supplier,98216084,402.02,Non-staff travel and subsistance,
BEIS,UKRI - AHRC,18/06/2018,Non-staff travel and subsistance,Industrial Strategy Challenge Fund (ISCF) - Creative Clusters,Non Employee Expenses Supplier,98216086,436.60,Non-staff travel and subsistance,
BEIS,UKRI - AHRC,18/06/2018,Non-staff travel and subsistance,Industrial Strategy Challenge Fund (ISCF) - Creative Clusters,Non Employee Expenses Supplier,98216088,706.57,Non-staff travel and subsistance,
BEIS,UKRI - AHRC,19/06/2018,Conferences & Seminars,Communications,University of London,98216113,35000.00,Conferences & Seminars,
BEIS,UKRI - AHRC,19/06/2018,Contract Staff,Finance,Hays Specialist Recruitment Ltd,98189295,1453.20,Contract Staff,
BEIS,UKRI - AHRC,19/06/2018,Contract Staff,Finance,Hays Specialist Recruitment Ltd,98189831,1252.99,Contract Staff,
BEIS,UKRI - AHRC,19/06/2018,Contract Staff,Finance,Hays Specialist Recruitment Ltd,98193853,1816.50,Contract Staff,
BEIS,UKRI - AHRC,19/06/2018,Contract Staff,Finance,Hays Specialist Recruitment Ltd,98194445,1566.24,Contract Staff,
BEIS,UKRI - AHRC,19/06/2018,Contract Staff,Finance,Hays Specialist Recruitment Ltd,98196671,1816.50,Contract Staff,
BEIS,UKRI - AHRC,19/06/2018,Contract Staff,Finance,Hays Specialist Recruitment Ltd,98197542,1566.24,Contract Staff,
BEIS,UKRI - AHRC,19/06/2018,Contract Staff,Finance,Hays Specialist Recruitment Ltd,98206719,1252.99,Contract Staff,
BEIS,UKRI - AHRC,19/06/2018,Contract Staff,Finance,Hays Specialist Recruitment Ltd,98217401,1816.50,Contract Staff,
BEIS,UKRI - AHRC,19/06/2018,Health & Safety (inc. Medicals & Opticians),HR,Unspecified,98214224,25.00,Health & Safety (inc. Medicals & Opticians),
BEIS,UKRI - AHRC,19/06/2018,UK - Professional Memberships & Subscriptions,HR,Unspecified,98216620,159.00,UK - Professional Memberships & Subscriptions,
BEIS,UKRI - AHRC,20/06/2018,Contract Staff,Finance,Hays Specialist Recruitment Ltd,98217697,1566.24,Contract Staff,
BEIS,UKRI - AHRC,20/06/2018,Fees (Including College Members),Industrial Strategy Challenge Fund (ISCF) - Creative Clusters,Non Employee Expenses Supplier,98216093,169.76,Fees (Including College Members),
BEIS,UKRI - AHRC,20/06/2018,Meetings & Catering,HERA JRP Project,Non Employee Expenses Supplier,98215095,4372.08,Meetings & Catering,
BEIS,UKRI - AHRC,20/06/2018,Non-staff travel and subsistance,Industrial Strategy Challenge Fund (ISCF) - Creative Clusters,Non Employee Expenses Supplier,98216092,716.00,Non-staff travel and subsistance,
BEIS,UKRI - AHRC,20/06/2018,Non-staff travel and subsistance,"Histories,Culture & Heritage",Redfern Travel Ltd,98217761,0.50,Non-staff travel and subsistance,
BEIS,UKRI - AHRC,20/06/2018,Non-staff travel and subsistance,"Histories,Culture & Heritage",Redfern Travel Ltd,98217761,0.10,Non-staff travel and subsistance,
BEIS,UKRI - AHRC,20/06/2018,Non-staff travel and subsistance,"Languages,Literature & International Engagement",Redfern Travel Ltd,98217761,0.50,Non-staff travel and subsistance,
BEIS,UKRI - AHRC,20/06/2018,Non-staff travel and subsistance,"Languages,Literature & International Engagement",Redfern Travel Ltd,98217761,66.00,Non-staff travel and subsistance,
BEIS,UKRI - AHRC,20/06/2018,Non-staff travel and subsistance,"Languages,Literature & International Engagement",Redfern Travel Ltd,98217761,0.10,Non-staff travel and subsistance,
BEIS,UKRI - AHRC,20/06/2018,Nursery Deductions,Balance Sheet,EDENRED (UK GROUP) LTD,98219337,4301.22,Nursery Deductions,
BEIS,UKRI - AHRC,20/06/2018,Staff Training,Business Process & Analysis,Tableau International U.C,98114616,998.00,Staff Training,
BEIS,UKRI - AHRC,20/06/2018,T&S Overseas - Accommodation,"Languages,Literature & International Engagement",Redfern Travel Ltd,98217761,172.93,T&S Overseas - Accommodation,
BEIS,UKRI - AHRC,20/06/2018,T&S Overseas - Accommodation,"Languages,Literature & International Engagement",Redfern Travel Ltd,98217761,315.57,T&S Overseas - Accommodation,
BEIS,UKRI - AHRC,20/06/2018,T&S Overseas - Accommodation,Newton Programme Delivery,Redfern Travel Ltd,98217761,556.79,T&S Overseas - Accommodation,
BEIS,UKRI - AHRC,20/06/2018,T&S Overseas - Accommodation,Newton Programme Delivery,Redfern Travel Ltd,98217761,556.79,T&S Overseas - Accommodation,
BEIS,UKRI - AHRC,20/06/2018,T&S Overseas - Accommodation,SMT,Redfern Travel Ltd,98217761,0.50,T&S Overseas - Accommodation,
BEIS,UKRI - AHRC,20/06/2018,T&S Overseas - Accommodation,SMT,Redfern Travel Ltd,98217761,0.10,T&S Overseas - Accommodation,
BEIS,UKRI - AHRC,20/06/2018,T&S Overseas - Flights,International,Redfern Travel Ltd,98217761,1458.61,T&S Overseas - Flights,
BEIS,UKRI - AHRC,20/06/2018,T&S Overseas - Flights,PSU Project Office,Redfern Travel Ltd,98217761,166.30,T&S Overseas - Flights,
BEIS,UKRI - AHRC,20/06/2018,T&S Overseas - Public Transport,Corporate Services,Redfern Travel Ltd,98217761,1.00,T&S Overseas - Public Transport,
BEIS,UKRI - AHRC,20/06/2018,T&S UK - Accommodation,Communications,Redfern Travel Ltd,98217761,0.50,T&S UK - Accommodation,
BEIS,UKRI - AHRC,20/06/2018,T&S UK - Accommodation,Communications,Redfern Travel Ltd,98217761,1.44,T&S UK - Accommodation,
BEIS,UKRI - AHRC,20/06/2018,T&S UK - Accommodation,Communications,Redfern Travel Ltd,98217761,2333.25,T&S UK - Accommodation,
BEIS,UKRI - AHRC,20/06/2018,T&S UK - Accommodation,Communications,Redfern Travel Ltd,98217761,0.39,T&S UK - Accommodation,
BEIS,UKRI - AHRC,20/06/2018,T&S UK - Accommodation,Creative Arts & Digital Humanities,Redfern Travel Ltd,98217761,0.50,T&S UK - Accommodation,
BEIS,UKRI - AHRC,20/06/2018,T&S UK - Accommodation,Creative Arts & Digital Humanities,Redfern Travel Ltd,98217761,72.00,T&S UK - Accommodation,
BEIS,UKRI - AHRC,20/06/2018,T&S UK - Accommodation,Creative Arts & Digital Humanities,Redfern Travel Ltd,98217761,0.50,T&S UK - Accommodation,
BEIS,UKRI - AHRC,20/06/2018,T&S UK - Accommodation,Creative Arts & Digital Humanities,Redfern Travel Ltd,98217761,0.50,T&S UK - Accommodation,
BEIS,UKRI - AHRC,20/06/2018,T&S UK - Accommodation,Creative Arts & Digital Humanities,Redfern Travel Ltd,98217761,72.00,T&S UK - Accommodation,
BEIS,UKRI - AHRC,20/06/2018,T&S UK - Accommodation,Creative Arts & Digital Humanities,Redfern Travel Ltd,98217761,0.50,T&S UK - Accommodation,
BEIS,UKRI - AHRC,20/06/2018,T&S UK - Accommodation,Creative Arts & Digital Humanities,Redfern Travel Ltd,98217761,46.30,T&S UK - Accommodation,
BEIS,UKRI - AHRC,20/06/2018,T&S UK - Accommodation,Creative Arts & Digital Humanities,Redfern Travel Ltd,98217761,0.40,T&S UK - Accommodation,
BEIS,UKRI - AHRC,20/06/2018,T&S UK - Accommodation,"Histories,Culture & Heritage",Redfern Travel Ltd,98217761,0.50,T&S UK - Accommodation,
BEIS,UKRI - AHRC,20/06/2018,T&S UK - Accommodation,"Histories,Culture & Heritage",Redfern Travel Ltd,98217761,179.36,T&S UK - Accommodation,
BEIS,UKRI - AHRC,20/06/2018,T&S UK - Accommodation,"Histories,Culture & Heritage",Redfern Travel Ltd,98217761,0.10,T&S UK - Accommodation,
BEIS,UKRI - AHRC,20/06/2018,T&S UK - Accommodation,Industrial Strategy Challenge Fund (ISCF) - Creative Clusters,Redfern Travel Ltd,98217761,0.50,T&S UK - Accommodation,
BEIS,UKRI - AHRC,20/06/2018,T&S UK - Accommodation,Industrial Strategy Challenge Fund (ISCF) - Creative Clusters,Redfern Travel Ltd,98217761,209.00,T&S UK - Accommodation,
BEIS,UKRI - AHRC,20/06/2018,T&S UK - Accommodation,Industrial Strategy Challenge Fund (ISCF) - Creative Clusters,Redfern Travel Ltd,98217761,0.50,T&S UK - Accommodation,
BEIS,UKRI - AHRC,20/06/2018,T&S UK - Accommodation,Industrial Strategy Challenge Fund (ISCF) - Creative Clusters,Redfern Travel Ltd,98217761,155.00,T&S UK - Accommodation,
BEIS,UKRI - AHRC,20/06/2018,T&S UK - Accommodation,Industrial Strategy Challenge Fund (ISCF) - Creative Clusters,Redfern Travel Ltd,98217761,0.20,T&S UK - Accommodation,
BEIS,UKRI - AHRC,20/06/2018,T&S UK - Accommodation,"Languages,Literature & International Engagement",Redfern Travel Ltd,98217761,0.50,T&S UK - Accommodation,
BEIS,UKRI - AHRC,20/06/2018,T&S UK - Accommodation,"Languages,Literature & International Engagement",Redfern Travel Ltd,98217761,73.00,T&S UK - Accommodation,
BEIS,UKRI - AHRC,20/06/2018,T&S UK - Accommodation,"Languages,Literature & International Engagement",Redfern Travel Ltd,98217761,0.50,T&S UK - Accommodation,
BEIS,UKRI - AHRC,20/06/2018,T&S UK - Accommodation,"Languages,Literature & International Engagement",Redfern Travel Ltd,98217761,73.00,T&S UK - Accommodation,
BEIS,UKRI - AHRC,20/06/2018,T&S UK - Accommodation,"Languages,Literature & International Engagement",Redfern Travel Ltd,98217761,0.50,T&S UK - Accommodation,
BEIS,UKRI - AHRC,20/06/2018,T&S UK - Accommodation,"Languages,Literature & International Engagement",Redfern Travel Ltd,98217761,73.00,T&S UK - Accommodation,
BEIS,UKRI - AHRC,20/06/2018,T&S UK - Accommodation,"Languages,Literature & International Engagement",Redfern Travel Ltd,98217761,0.50,T&S UK - Accommodation,
BEIS,UKRI - AHRC,20/06/2018,T&S UK - Accommodation,"Languages,Literature & International Engagement",Redfern Travel Ltd,98217761,73.00,T&S UK - Accommodation,
BEIS,UKRI - AHRC,20/06/2018,T&S UK - Accommodation,"Languages,Literature & International Engagement",Redfern Travel Ltd,98217761,0.50,T&S UK - Accommodation,
BEIS,UKRI - AHRC,20/06/2018,T&S UK - Accommodation,"Languages,Literature & International Engagement",Redfern Travel Ltd,98217761,73.00,T&S UK - Accommodation,
BEIS,UKRI - AHRC,20/06/2018,T&S UK - Accommodation,"Languages,Literature & International Engagement",Redfern Travel Ltd,98217761,0.50,T&S UK - Accommodation,
BEIS,UKRI - AHRC,20/06/2018,T&S UK - Accommodation,"Languages,Literature & International Engagement",Redfern Travel Ltd,98217761,73.00,T&S UK - Accommodation,
BEIS,UKRI - AHRC,20/06/2018,T&S UK - Accommodation,"Languages,Literature & International Engagement",Redfern Travel Ltd,98217761,0.50,T&S UK - Accommodation,
BEIS,UKRI - AHRC,20/06/2018,T&S UK - Accommodation,"Languages,Literature & International Engagement",Redfern Travel Ltd,98217761,73.00,T&S UK - Accommodation,
BEIS,UKRI - AHRC,20/06/2018,T&S UK - Accommodation,"Languages,Literature & International Engagement",Redfern Travel Ltd,98217761,0.50,T&S UK - Accommodation,
BEIS,UKRI - AHRC,20/06/2018,T&S UK - Accommodation,"Languages,Literature & International Engagement",Redfern Travel Ltd,98217761,73.00,T&S UK - Accommodation,
BEIS,UKRI - AHRC,20/06/2018,T&S UK - Accommodation,"Languages,Literature & International Engagement",Redfern Travel Ltd,98217761,0.50,T&S UK - Accommodation,
BEIS,UKRI - AHRC,20/06/2018,T&S UK - Accommodation,"Languages,Literature & International Engagement",Redfern Travel Ltd,98217761,73.00,T&S UK - Accommodation,
BEIS,UKRI - AHRC,20/06/2018,T&S UK - Accommodation,"Languages,Literature & International Engagement",Redfern Travel Ltd,98217761,0.90,T&S UK - Accommodation,
BEIS,UKRI - AHRC,20/06/2018,T&S UK - Accommodation,PSU Project Office,Redfern Travel Ltd,98217761,0.50,T&S UK - Accommodation,
BEIS,UKRI - AHRC,20/06/2018,T&S UK - Accommodation,PSU Project Office,Redfern Travel Ltd,98217761,1.44,T&S UK - Accommodation,
BEIS,UKRI - AHRC,20/06/2018,T&S UK - Accommodation,PSU Project Office,Redfern Travel Ltd,98217761,205.20,T&S UK - Accommodation,
BEIS,UKRI - AHRC,20/06/2018,T&S UK - Accommodation,PSU Project Office,Redfern Travel Ltd,98217761,0.39,T&S UK - Accommodation,
BEIS,UKRI - AHRC,20/06/2018,T&S UK - Accommodation,SMT,Redfern Travel Ltd,98217761,0.50,T&S UK - Accommodation,
BEIS,UKRI - AHRC,20/06/2018,T&S UK - Accommodation,SMT,Redfern Travel Ltd,98217761,165.00,T&S UK - Accommodation,
BEIS,UKRI - AHRC,20/06/2018,T&S UK - Accommodation,SMT,Redfern Travel Ltd,98217761,0.50,T&S UK - Accommodation,
BEIS,UKRI - AHRC,20/06/2018,T&S UK - Accommodation,SMT,Redfern Travel Ltd,98217761,65.00,T&S UK - Accommodation,
BEIS,UKRI - AHRC,20/06/2018,T&S UK - Accommodation,SMT,Redfern Travel Ltd,98217761,0.50,T&S UK - Accommodation,
BEIS,UKRI - AHRC,20/06/2018,T&S UK - Accommodation,SMT,Redfern Travel Ltd,98217761,132.00,T&S UK - Accommodation,
BEIS,UKRI - AHRC,20/06/2018,T&S UK - Accommodation,SMT,Redfern Travel Ltd,98217761,0.50,T&S UK - Accommodation,
BEIS,UKRI - AHRC,20/06/2018,T&S UK - Accommodation,SMT,Redfern Travel Ltd,98217761,1.44,T&S UK - Accommodation,
BEIS,UKRI - AHRC,20/06/2018,T&S UK - Accommodation,SMT,Redfern Travel Ltd,98217761,0.50,T&S UK - Accommodation,
BEIS,UKRI - AHRC,20/06/2018,T&S UK - Accommodation,SMT,Redfern Travel Ltd,98217761,0.50,T&S UK - Accommodation,
BEIS,UKRI - AHRC,20/06/2018,T&S UK - Accommodation,SMT,Redfern Travel Ltd,98217761,65.00,T&S UK - Accommodation,
BEIS,UKRI - AHRC,20/06/2018,T&S UK - Accommodation,SMT,Redfern Travel Ltd,98217761,0.50,T&S UK - Accommodation,
BEIS,UKRI - AHRC,20/06/2018,T&S UK - Accommodation,SMT,Redfern Travel Ltd,98217761,144.00,T&S UK - Accommodation,
BEIS,UKRI - AHRC,20/06/2018,T&S UK - Accommodation,SMT,Redfern Travel Ltd,98217761,0.50,T&S UK - Accommodation,
BEIS,UKRI - AHRC,20/06/2018,T&S UK - Accommodation,SMT,Redfern Travel Ltd,98217761,0.50,T&S UK - Accommodation,
BEIS,UKRI - AHRC,20/06/2018,T&S UK - Accommodation,SMT,Redfern Travel Ltd,98217761,90.00,T&S UK - Accommodation,
BEIS,UKRI - AHRC,20/06/2018,T&S UK - Accommodation,SMT,Redfern Travel Ltd,98217761,1.19,T&S UK - Accommodation,
BEIS,UKRI - AHRC,20/06/2018,T&S UK - Accommodation,Secretariat,Redfern Travel Ltd,98217761,0.50,T&S UK - Accommodation,
BEIS,UKRI - AHRC,20/06/2018,T&S UK - Accommodation,Secretariat,Redfern Travel Ltd,98217761,73.00,T&S UK - Accommodation,
BEIS,UKRI - AHRC,20/06/2018,T&S UK - Accommodation,Secretariat,Redfern Travel Ltd,98217761,0.50,T&S UK - Accommodation,
BEIS,UKRI - AHRC,20/06/2018,T&S UK - Accommodation,Secretariat,Redfern Travel Ltd,98217761,73.00,T&S UK - Accommodation,
BEIS,UKRI - AHRC,20/06/2018,T&S UK - Accommodation,Secretariat,Redfern Travel Ltd,98217761,0.50,T&S UK - Accommodation,
BEIS,UKRI - AHRC,20/06/2018,T&S UK - Accommodation,Secretariat,Redfern Travel Ltd,98217761,73.00,T&S UK - Accommodation,
BEIS,UKRI - AHRC,20/06/2018,T&S UK - Accommodation,Secretariat,Redfern Travel Ltd,98217761,0.50,T&S UK - Accommodation,
BEIS,UKRI - AHRC,20/06/2018,T&S UK - Accommodation,Secretariat,Redfern Travel Ltd,98217761,73.00,T&S UK - Accommodation,
BEIS,UKRI - AHRC,20/06/2018,T&S UK - Accommodation,Secretariat,Redfern Travel Ltd,98217761,0.50,T&S UK - Accommodation,
BEIS,UKRI - AHRC,20/06/2018,T&S UK - Accommodation,Secretariat,Redfern Travel Ltd,98217761,73.00,T&S UK - Accommodation,
BEIS,UKRI - AHRC,20/06/2018,T&S UK - Accommodation,Secretariat,Redfern Travel Ltd,98217761,0.50,T&S UK - Accommodation,
BEIS,UKRI - AHRC,20/06/2018,T&S UK - Accommodation,Secretariat,Redfern Travel Ltd,98217761,73.00,T&S UK - Accommodation,
BEIS,UKRI - AHRC,20/06/2018,T&S UK - Accommodation,Secretariat,Redfern Travel Ltd,98217761,0.50,T&S UK - Accommodation,
BEIS,UKRI - AHRC,20/06/2018,T&S UK - Accommodation,Secretariat,Redfern Travel Ltd,98217761,73.00,T&S UK - Accommodation,
BEIS,UKRI - AHRC,20/06/2018,T&S UK - Accommodation,Secretariat,Redfern Travel Ltd,98217761,0.50,T&S UK - Accommodation,
BEIS,UKRI - AHRC,20/06/2018,T&S UK - Accommodation,Secretariat,Redfern Travel Ltd,98217761,65.00,T&S UK - Accommodation,
BEIS,UKRI - AHRC,20/06/2018,T&S UK - Accommodation,Secretariat,Redfern Travel Ltd,98217761,0.50,T&S UK - Accommodation,
BEIS,UKRI - AHRC,20/06/2018,T&S UK - Accommodation,Secretariat,Redfern Travel Ltd,98217761,73.00,T&S UK - Accommodation,
BEIS,UKRI - AHRC,20/06/2018,T&S UK - Accommodation,Secretariat,Redfern Travel Ltd,98217761,0.50,T&S UK - Accommodation,
BEIS,UKRI - AHRC,20/06/2018,T&S UK - Accommodation,Secretariat,Redfern Travel Ltd,98217761,73.00,T&S UK - Accommodation,
BEIS,UKRI - AHRC,20/06/2018,T&S UK - Accommodation,Secretariat,Redfern Travel Ltd,98217761,1.00,T&S UK - Accommodation,
BEIS,UKRI - AHRC,20/06/2018,T&S UK - Accommodation,Skills,Redfern Travel Ltd,98217761,0.50,T&S UK - Accommodation,
BEIS,UKRI - AHRC,20/06/2018,T&S UK - Accommodation,Skills,Redfern Travel Ltd,98217761,77.00,T&S UK - Accommodation,
BEIS,UKRI - AHRC,20/06/2018,T&S UK - Accommodation,Skills,Redfern Travel Ltd,98217761,0.10,T&S UK - Accommodation,
BEIS,UKRI - AHRC,20/06/2018,T&S UK - Flights,"Languages,Literature & International Engagement",Redfern Travel Ltd,98217761,146.13,T&S UK - Flights,
BEIS,UKRI - AHRC,20/06/2018,T&S UK - Flights,"Languages,Literature & International Engagement",Redfern Travel Ltd,98217761,947.51,T&S UK - Flights,
BEIS,UKRI - AHRC,20/06/2018,T&S UK - Other Charges,PSU Project Office,Redfern Travel Ltd,98217761,-64.80,T&S UK - Other Charges,
BEIS,UKRI - AHRC,20/06/2018,T&S UK - Other Charges,SMT,Redfern Travel Ltd,98217761,96.40,T&S UK - Other Charges,
BEIS,UKRI - AHRC,20/06/2018,T&S UK - Public Transport,"AHRC - Strategic Planning, Evidence & Impact",Redfern Travel Ltd,98217761,1.00,T&S UK - Public Transport,
BEIS,UKRI - AHRC,20/06/2018,T&S UK - Public Transport,"AHRC - Strategic Planning, Evidence & Impact",Redfern Travel Ltd,98217761,93.30,T&S UK - Public Transport,
BEIS,UKRI - AHRC,20/06/2018,T&S UK - Public Transport,"AHRC - Strategic Planning, Evidence & Impact",Redfern Travel Ltd,98217761,106.70,T&S UK - Public Transport,
BEIS,UKRI - AHRC,20/06/2018,T&S UK - Public Transport,"AHRC - Strategic Planning, Evidence & Impact",Redfern Travel Ltd,98217761,147.40,T&S UK - Public Transport,
BEIS,UKRI - AHRC,20/06/2018,T&S UK - Public Transport,"AHRC - Strategic Planning, Evidence & Impact",Redfern Travel Ltd,98217761,100.70,T&S UK - Public Transport,
BEIS,UKRI - AHRC,20/06/2018,T&S UK - Public Transport,Communications,Redfern Travel Ltd,98217761,79.80,T&S UK - Public Transport,
BEIS,UKRI - AHRC,20/06/2018,T&S UK - Public Transport,Communications,Redfern Travel Ltd,98217761,139.60,T&S UK - Public Transport,
BEIS,UKRI - AHRC,20/06/2018,T&S UK - Public Transport,Communications,Redfern Travel Ltd,98217761,13.40,T&S UK - Public Transport,
BEIS,UKRI - AHRC,20/06/2018,T&S UK - Public Transport,Communications,Redfern Travel Ltd,98217761,15.90,T&S UK - Public Transport,
BEIS,UKRI - AHRC,20/06/2018,T&S UK - Public Transport,Communications,Redfern Travel Ltd,98217761,7.80,T&S UK - Public Transport,
BEIS,UKRI - AHRC,20/06/2018,T&S UK - Public Transport,Corporate Services,Redfern Travel Ltd,98217761,139.60,T&S UK - Public Transport,
BEIS,UKRI - AHRC,20/06/2018,T&S UK - Public Transport,Creative Arts & Digital Humanities,Redfern Travel Ltd,98217761,26.80,T&S UK - Public Transport,
BEIS,UKRI - AHRC,20/06/2018,T&S UK - Public Transport,Creative Arts & Digital Humanities,Redfern Travel Ltd,98217761,26.80,T&S UK - Public Transport,
BEIS,UKRI - AHRC,20/06/2018,T&S UK - Public Transport,Creative Arts & Digital Humanities,Redfern Travel Ltd,98217761,113.90,T&S UK - Public Transport,
BEIS,UKRI - AHRC,20/06/2018,T&S UK - Public Transport,Creative Arts & Digital Humanities,Redfern Travel Ltd,98217761,139.60,T&S UK - Public Transport,
BEIS,UKRI - AHRC,20/06/2018,T&S UK - Public Transport,Creative Arts & Digital Humanities,Redfern Travel Ltd,98217761,15.10,T&S UK - Public Transport,
BEIS,UKRI - AHRC,20/06/2018,T&S UK - Public Transport,Creative Arts & Digital Humanities,Redfern Travel Ltd,98217761,84.40,T&S UK - Public Transport,
BEIS,UKRI - AHRC,20/06/2018,T&S UK - Public Transport,Creative Arts & Digital Humanities,Redfern Travel Ltd,98217761,160.30,T&S UK - Public Transport,
BEIS,UKRI - AHRC,20/06/2018,T&S UK - Public Transport,Creative Arts & Digital Humanities,Redfern Travel Ltd,98217761,217.40,T&S UK - Public Transport,
BEIS,UKRI - AHRC,20/06/2018,T&S UK - Public Transport,Creative Arts & Digital Humanities,Redfern Travel Ltd,98217761,165.60,T&S UK - Public Transport,
BEIS,UKRI - AHRC,20/06/2018,T&S UK - Public Transport,Creative Arts & Digital Humanities,Redfern Travel Ltd,98217761,128.20,T&S UK - Public Transport,
BEIS,UKRI - AHRC,20/06/2018,T&S UK - Public Transport,Creative Arts & Digital Humanities,Redfern Travel Ltd,98217761,146.00,T&S UK - Public Transport,
BEIS,UKRI - AHRC,20/06/2018,T&S UK - Public Transport,Creative Arts & Digital Humanities,Redfern Travel Ltd,98217761,157.90,T&S UK - Public Transport,
BEIS,UKRI - AHRC,20/06/2018,T&S UK - Public Transport,Creative Arts & Digital Humanities,Redfern Travel Ltd,98217761,113.20,T&S UK - Public Transport,
BEIS,UKRI - AHRC,20/06/2018,T&S UK - Public Transport,Creative Arts & Digital Humanities,Redfern Travel Ltd,98217761,29.80,T&S UK - Public Transport,
BEIS,UKRI - AHRC,20/06/2018,T&S UK - Public Transport,Creative Arts & Digital Humanities,Redfern Travel Ltd,98217761,92.15,T&S UK - Public Transport,
BEIS,UKRI - AHRC,20/06/2018,T&S UK - Public Transport,Creative Arts & Digital Humanities,Redfern Travel Ltd,98217761,35.40,T&S UK - Public Transport,
BEIS,UKRI - AHRC,20/06/2018,T&S UK - Public Transport,Creative Arts & Digital Humanities,Redfern Travel Ltd,98217761,137.70,T&S UK - Public Transport,
BEIS,UKRI - AHRC,20/06/2018,T&S UK - Public Transport,Creative Arts & Digital Humanities,Redfern Travel Ltd,98217761,46.60,T&S UK - Public Transport,
BEIS,UKRI - AHRC,20/06/2018,T&S UK - Public Transport,Creative Arts & Digital Humanities,Redfern Travel Ltd,98217761,67.90,T&S UK - Public Transport,
BEIS,UKRI - AHRC,20/06/2018,T&S UK - Public Transport,Creative Arts & Digital Humanities,Redfern Travel Ltd,98217761,146.00,T&S UK - Public Transport,
BEIS,UKRI - AHRC,20/06/2018,T&S UK - Public Transport,Creative Arts & Digital Humanities,Redfern Travel Ltd,98217761,100.00,T&S UK - Public Transport,
BEIS,UKRI - AHRC,20/06/2018,T&S UK - Public Transport,Creative Arts & Digital Humanities,Redfern Travel Ltd,98217761,1.00,T&S UK - Public Transport,
BEIS,UKRI - AHRC,20/06/2018,T&S UK - Public Transport,Creative Arts & Digital Humanities,Redfern Travel Ltd,98217761,82.80,T&S UK - Public Transport,
BEIS,UKRI - AHRC,20/06/2018,T&S UK - Public Transport,Creative Arts & Digital Humanities,Redfern Travel Ltd,98217761,217.40,T&S UK - Public Transport,
BEIS,UKRI - AHRC,20/06/2018,T&S UK - Public Transport,Creative Arts & Digital Humanities,Redfern Travel Ltd,98217761,72.80,T&S UK - Public Transport,
BEIS,UKRI - AHRC,20/06/2018,T&S UK - Public Transport,Finance,Redfern Travel Ltd,98217761,23.00,T&S UK - Public Transport,
BEIS,UKRI - AHRC,20/06/2018,T&S UK - Public Transport,Finance,Redfern Travel Ltd,98217761,35.00,T&S UK - Public Transport,
BEIS,UKRI - AHRC,20/06/2018,T&S UK - Public Transport,Finance,Redfern Travel Ltd,98217761,24.10,T&S UK - Public Transport,
BEIS,UKRI - AHRC,20/06/2018,T&S UK - Public Transport,Finance,Redfern Travel Ltd,98217761,23.00,T&S UK - Public Transport,
BEIS,UKRI - AHRC,20/06/2018,T&S UK - Public Transport,Finance,Redfern Travel Ltd,98217761,23.00,T&S UK - Public Transport,
BEIS,UKRI - AHRC,20/06/2018,T&S UK - Public Transport,GCRF - Programme Delivery,Redfern Travel Ltd,98217761,-97.00,T&S UK - Public Transport,
BEIS,UKRI - AHRC,20/06/2018,T&S UK - Public Transport,HR,Redfern Travel Ltd,98217761,-18.00,T&S UK - Public Transport,
BEIS,UKRI - AHRC,20/06/2018,T&S UK - Public Transport,HR,Redfern Travel Ltd,98217761,23.00,T&S UK - Public Transport,
BEIS,UKRI - AHRC,20/06/2018,T&S UK - Public Transport,HR,Redfern Travel Ltd,98217761,23.00,T&S UK - Public Transport,
BEIS,UKRI - AHRC,20/06/2018,T&S UK - Public Transport,HR,Redfern Travel Ltd,98217761,-18.00,T&S UK - Public Transport,
BEIS,UKRI - AHRC,20/06/2018,T&S UK - Public Transport,HR,Redfern Travel Ltd,98217761,23.00,T&S UK - Public Transport,
BEIS,UKRI - AHRC,20/06/2018,T&S UK - Public Transport,HR,Redfern Travel Ltd,98217761,23.00,T&S UK - Public Transport,
BEIS,UKRI - AHRC,20/06/2018,T&S UK - Public Transport,HR,Redfern Travel Ltd,98217761,23.00,T&S UK - Public Transport,
BEIS,UKRI - AHRC,20/06/2018,T&S UK - Public Transport,HR,Redfern Travel Ltd,98217761,23.00,T&S UK - Public Transport,
BEIS,UKRI - AHRC,20/06/2018,T&S UK - Public Transport,HR,Redfern Travel Ltd,98217761,23.00,T&S UK - Public Transport,
BEIS,UKRI - AHRC,20/06/2018,T&S UK - Public Transport,HR,Redfern Travel Ltd,98217761,23.00,T&S UK - Public Transport,
BEIS,UKRI - AHRC,20/06/2018,T&S UK - Public Transport,HR,Redfern Travel Ltd,98217761,-18.00,T&S UK - Public Transport,
BEIS,UKRI - AHRC,20/06/2018,T&S UK - Public Transport,HR,Redfern Travel Ltd,98217761,23.00,T&S UK - Public Transport,
BEIS,UKRI - AHRC,20/06/2018,T&S UK - Public Transport,HR,Redfern Travel Ltd,98217761,23.00,T&S UK - Public Transport,
BEIS,UKRI - AHRC,20/06/2018,T&S UK - Public Transport,HR,Redfern Travel Ltd,98217761,16.00,T&S UK - Public Transport,
BEIS,UKRI - AHRC,20/06/2018,T&S UK - Public Transport,HR,Redfern Travel Ltd,98217761,23.00,T&S UK - Public Transport,
BEIS,UKRI - AHRC,20/06/2018,T&S UK - Public Transport,HR,Redfern Travel Ltd,98217761,23.00,T&S UK - Public Transport,
BEIS,UKRI - AHRC,20/06/2018,T&S UK - Public Transport,HR,Redfern Travel Ltd,98217761,46.80,T&S UK - Public Transport,
BEIS,UKRI - AHRC,20/06/2018,T&S UK - Public Transport,"Histories,Culture & Heritage",Redfern Travel Ltd,98217761,217.40,T&S UK - Public Transport,
BEIS,UKRI - AHRC,20/06/2018,T&S UK - Public Transport,"Histories,Culture & Heritage",Redfern Travel Ltd,98217761,139.60,T&S UK - Public Transport,
BEIS,UKRI - AHRC,20/06/2018,T&S UK - Public Transport,"Histories,Culture & Heritage",Redfern Travel Ltd,98217761,251.60,T&S UK - Public Transport,
BEIS,UKRI - AHRC,20/06/2018,T&S UK - Public Transport,"Histories,Culture & Heritage",Redfern Travel Ltd,98217761,100.70,T&S UK - Public Transport,
BEIS,UKRI - AHRC,20/06/2018,T&S UK - Public Transport,"Histories,Culture & Heritage",Redfern Travel Ltd,98217761,154.20,T&S UK - Public Transport,
BEIS,UKRI - AHRC,20/06/2018,T&S UK - Public Transport,IS,Redfern Travel Ltd,98217761,146.30,T&S UK - Public Transport,
BEIS,UKRI - AHRC,20/06/2018,T&S UK - Public Transport,IS,Redfern Travel Ltd,98217761,146.30,T&S UK - Public Transport,
BEIS,UKRI - AHRC,20/06/2018,T&S UK - Public Transport,IS,Redfern Travel Ltd,98217761,146.30,T&S UK - Public Transport,
BEIS,UKRI - AHRC,20/06/2018,T&S UK - Public Transport,IS,Redfern Travel Ltd,98217761,136.50,T&S UK - Public Transport,
BEIS,UKRI - AHRC,20/06/2018,T&S UK - Public Transport,IS,Redfern Travel Ltd,98217761,136.50,T&S UK - Public Transport,
BEIS,UKRI - AHRC,20/06/2018,T&S UK - Public Transport,IS,Redfern Travel Ltd,98217761,136.50,T&S UK - Public Transport,
BEIS,UKRI - AHRC,20/06/2018,T&S UK - Public Transport,Industrial Strategy Challenge Fund (ISCF) - Creative Clusters,Redfern Travel Ltd,98217761,154.30,T&S UK - Public Transport,
BEIS,UKRI - AHRC,20/06/2018,T&S UK - Public Transport,Industrial Strategy Challenge Fund (ISCF) - Creative Clusters,Redfern Travel Ltd,98217761,204.70,T&S UK - Public Transport,
BEIS,UKRI - AHRC,20/06/2018,T&S UK - Public Transport,Industrial Strategy Challenge Fund (ISCF) - Creative Clusters,Redfern Travel Ltd,98217761,124.30,T&S UK - Public Transport,
BEIS,UKRI - AHRC,20/06/2018,T&S UK - Public Transport,Industrial Strategy Challenge Fund (ISCF) - Creative Clusters,Redfern Travel Ltd,98217761,100.70,T&S UK - Public Transport,
BEIS,UKRI - AHRC,20/06/2018,T&S UK - Public Transport,Industrial Strategy Challenge Fund (ISCF) - Creative Clusters,Redfern Travel Ltd,98217761,100.70,T&S UK - Public Transport,
BEIS,UKRI - AHRC,20/06/2018,T&S UK - Public Transport,International,Redfern Travel Ltd,98217761,170.20,T&S UK - Public Transport,
BEIS,UKRI - AHRC,20/06/2018,T&S UK - Public Transport,International,Redfern Travel Ltd,98217761,94.70,T&S UK - Public Transport,
BEIS,UKRI - AHRC,20/06/2018,T&S UK - Public Transport,"Languages,Literature & International Engagement",Redfern Travel Ltd,98217761,-61.80,T&S UK - Public Transport,
BEIS,UKRI - AHRC,20/06/2018,T&S UK - Public Transport,"Languages,Literature & International Engagement",Redfern Travel Ltd,98217761,-25.90,T&S UK - Public Transport,
BEIS,UKRI - AHRC,20/06/2018,T&S UK - Public Transport,"Languages,Literature & International Engagement",Redfern Travel Ltd,98217761,-284.15,T&S UK - Public Transport,
BEIS,UKRI - AHRC,20/06/2018,T&S UK - Public Transport,"Languages,Literature & International Engagement",Redfern Travel Ltd,98217761,25.00,T&S UK - Public Transport,
BEIS,UKRI - AHRC,20/06/2018,T&S UK - Public Transport,"Languages,Literature & International Engagement",Redfern Travel Ltd,98217761,69.80,T&S UK - Public Transport,
BEIS,UKRI - AHRC,20/06/2018,T&S UK - Public Transport,"Languages,Literature & International Engagement",Redfern Travel Ltd,98217761,33.80,T&S UK - Public Transport,
BEIS,UKRI - AHRC,20/06/2018,T&S UK - Public Transport,"Languages,Literature & International Engagement",Redfern Travel Ltd,98217761,98.80,T&S UK - Public Transport,
BEIS,UKRI - AHRC,20/06/2018,T&S UK - Public Transport,"Languages,Literature & International Engagement",Redfern Travel Ltd,98217761,67.90,T&S UK - Public Transport,
BEIS,UKRI - AHRC,20/06/2018,T&S UK - Public Transport,"Languages,Literature & International Engagement",Redfern Travel Ltd,98217761,139.60,T&S UK - Public Transport,
BEIS,UKRI - AHRC,20/06/2018,T&S UK - Public Transport,Newton Programme Delivery,Redfern Travel Ltd,98217761,64.10,T&S UK - Public Transport,
BEIS,UKRI - AHRC,20/06/2018,T&S UK - Public Transport,Newton Programme Delivery,Redfern Travel Ltd,98217761,111.00,T&S UK - Public Transport,
BEIS,UKRI - AHRC,20/06/2018,T&S UK - Public Transport,PSU Project Office,Redfern Travel Ltd,98217761,16.00,T&S UK - Public Transport,
BEIS,UKRI - AHRC,20/06/2018,T&S UK - Public Transport,PSU Project Office,Redfern Travel Ltd,98217761,12.70,T&S UK - Public Transport,
BEIS,UKRI - AHRC,20/06/2018,T&S UK - Public Transport,PSU Project Office,Redfern Travel Ltd,98217761,19.00,T&S UK - Public Transport,
BEIS,UKRI - AHRC,20/06/2018,T&S UK - Public Transport,PSU Project Office,Redfern Travel Ltd,98217761,128.70,T&S UK - Public Transport,
BEIS,UKRI - AHRC,20/06/2018,T&S UK - Public Transport,PSU Project Office,Redfern Travel Ltd,98217761,16.00,T&S UK - Public Transport,
BEIS,UKRI - AHRC,20/06/2018,T&S UK - Public Transport,PSU Project Office,Redfern Travel Ltd,98217761,16.00,T&S UK - Public Transport,
BEIS,UKRI - AHRC,20/06/2018,T&S UK - Public Transport,PSU Project Office,Redfern Travel Ltd,98217761,84.80,T&S UK - Public Transport,
BEIS,UKRI - AHRC,20/06/2018,T&S UK - Public Transport,SMT,Redfern Travel Ltd,98217761,133.60,T&S UK - Public Transport,
BEIS,UKRI - AHRC,20/06/2018,T&S UK - Public Transport,SMT,Redfern Travel Ltd,98217761,-14.90,T&S UK - Public Transport,
BEIS,UKRI - AHRC,20/06/2018,T&S UK - Public Transport,SMT,Redfern Travel Ltd,98217761,133.60,T&S UK - Public Transport,
BEIS,UKRI - AHRC,20/06/2018,T&S UK - Public Transport,SMT,Redfern Travel Ltd,98217761,94.70,T&S UK - Public Transport,
BEIS,UKRI - AHRC,20/06/2018,T&S UK - Public Transport,SMT,Redfern Travel Ltd,98217761,61.50,T&S UK - Public Transport,
BEIS,UKRI - AHRC,20/06/2018,T&S UK - Public Transport,SMT,Redfern Travel Ltd,98217761,1.00,T&S UK - Public Transport,
BEIS,UKRI - AHRC,20/06/2018,T&S UK - Public Transport,SMT,Redfern Travel Ltd,98217761,143.00,T&S UK - Public Transport,
BEIS,UKRI - AHRC,20/06/2018,T&S UK - Public Transport,SMT,Redfern Travel Ltd,98217761,-14.90,T&S UK - Public Transport,
BEIS,UKRI - AHRC,20/06/2018,T&S UK - Public Transport,SMT,Redfern Travel Ltd,98217761,94.70,T&S UK - Public Transport,
BEIS,UKRI - AHRC,20/06/2018,T&S UK - Public Transport,SMT,Redfern Travel Ltd,98217761,79.00,T&S UK - Public Transport,
BEIS,UKRI - AHRC,20/06/2018,T&S UK - Public Transport,SMT,Redfern Travel Ltd,98217761,27.90,T&S UK - Public Transport,
BEIS,UKRI - AHRC,20/06/2018,T&S UK - Public Transport,SMT,Redfern Travel Ltd,98217761,254.90,T&S UK - Public Transport,
BEIS,UKRI - AHRC,20/06/2018,T&S UK - Public Transport,SMT,Redfern Travel Ltd,98217761,1.00,T&S UK - Public Transport,
BEIS,UKRI - AHRC,20/06/2018,T&S UK - Public Transport,SMT,Redfern Travel Ltd,98217761,19.90,T&S UK - Public Transport,
BEIS,UKRI - AHRC,20/06/2018,T&S UK - Public Transport,SMT,Redfern Travel Ltd,98217761,26.00,T&S UK - Public Transport,
BEIS,UKRI - AHRC,20/06/2018,T&S UK - Public Transport,SMT,Redfern Travel Ltd,98217761,63.20,T&S UK - Public Transport,
BEIS,UKRI - AHRC,20/06/2018,T&S UK - Public Transport,SMT,Redfern Travel Ltd,98217761,63.20,T&S UK - Public Transport,
BEIS,UKRI - AHRC,20/06/2018,T&S UK - Public Transport,SMT,Redfern Travel Ltd,98217761,14.20,T&S UK - Public Transport,
BEIS,UKRI - AHRC,20/06/2018,T&S UK - Public Transport,SMT,Redfern Travel Ltd,98217761,5.00,T&S UK - Public Transport,
BEIS,UKRI - AHRC,20/06/2018,T&S UK - Public Transport,SMT,Redfern Travel Ltd,98217761,-61.80,T&S UK - Public Transport,
BEIS,UKRI - AHRC,20/06/2018,T&S UK - Public Transport,SMT,Redfern Travel Ltd,98217761,-100.70,T&S UK - Public Transport,
BEIS,UKRI - AHRC,20/06/2018,T&S UK - Public Transport,SMT,Redfern Travel Ltd,98217761,94.70,T&S UK - Public Transport,
BEIS,UKRI - AHRC,20/06/2018,T&S UK - Public Transport,SMT,Redfern Travel Ltd,98217761,94.70,T&S UK - Public Transport,
BEIS,UKRI - AHRC,20/06/2018,T&S UK - Public Transport,SMT,Redfern Travel Ltd,98217761,47.90,T&S UK - Public Transport,
BEIS,UKRI - AHRC,20/06/2018,T&S UK - Public Transport,SMT,Redfern Travel Ltd,98217761,66.10,T&S UK - Public Transport,
BEIS,UKRI - AHRC,20/06/2018,T&S UK - Public Transport,SMT,Redfern Travel Ltd,98217761,20.80,T&S UK - Public Transport,
BEIS,UKRI - AHRC,20/06/2018,T&S UK - Public Transport,SMT,Redfern Travel Ltd,98217761,133.60,T&S UK - Public Transport,
BEIS,UKRI - AHRC,20/06/2018,T&S UK - Public Transport,SMT,Redfern Travel Ltd,98217761,1.00,T&S UK - Public Transport,
BEIS,UKRI - AHRC,20/06/2018,T&S UK - Public Transport,SMT,Redfern Travel Ltd,98217761,150.80,T&S UK - Public Transport,
BEIS,UKRI - AHRC,20/06/2018,T&S UK - Public Transport,SMT,Redfern Travel Ltd,98217761,132.90,T&S UK - Public Transport,
BEIS,UKRI - AHRC,20/06/2018,T&S UK - Public Transport,SMT,Redfern Travel Ltd,98217761,94.70,T&S UK - Public Transport,
BEIS,UKRI - AHRC,20/06/2018,T&S UK - Public Transport,SMT,Redfern Travel Ltd,98217761,27.90,T&S UK - Public Transport,
BEIS,UKRI - AHRC,20/06/2018,T&S UK - Public Transport,SMT,Redfern Travel Ltd,98217761,105.00,T&S UK - Public Transport,
BEIS,UKRI - AHRC,20/06/2018,T&S UK - Public Transport,SMT,Redfern Travel Ltd,98217761,42.80,T&S UK - Public Transport,
BEIS,UKRI - AHRC,20/06/2018,T&S UK - Public Transport,SMT,Redfern Travel Ltd,98217761,1.00,T&S UK - Public Transport,
BEIS,UKRI - AHRC,20/06/2018,T&S UK - Public Transport,SMT,Redfern Travel Ltd,98217761,34.50,T&S UK - Public Transport,
BEIS,UKRI - AHRC,20/06/2018,T&S UK - Public Transport,SMT,Redfern Travel Ltd,98217761,94.70,T&S UK - Public Transport,
BEIS,UKRI - AHRC,20/06/2018,T&S UK - Public Transport,SMT,Redfern Travel Ltd,98217761,189.40,T&S UK - Public Transport,
BEIS,UKRI - AHRC,20/06/2018,T&S UK - Public Transport,SMT,Redfern Travel Ltd,98217761,88.00,T&S UK - Public Transport,
BEIS,UKRI - AHRC,20/06/2018,T&S UK - Public Transport,SMT,Redfern Travel Ltd,98217761,27.90,T&S UK - Public Transport,
BEIS,UKRI - AHRC,20/06/2018,T&S UK - Public Transport,SMT,Redfern Travel Ltd,98217761,66.10,T&S UK - Public Transport,
BEIS,UKRI - AHRC,20/06/2018,T&S UK - Public Transport,SMT,Redfern Travel Ltd,98217761,59.30,T&S UK - Public Transport,
BEIS,UKRI - AHRC,20/06/2018,T&S UK - Public Transport,SMT,Redfern Travel Ltd,98217761,45.00,T&S UK - Public Transport,
BEIS,UKRI - AHRC,20/06/2018,T&S UK - Public Transport,SMT,Redfern Travel Ltd,98217761,27.90,T&S UK - Public Transport,
BEIS,UKRI - AHRC,20/06/2018,T&S UK - Public Transport,SMT,Redfern Travel Ltd,98217761,133.60,T&S UK - Public Transport,
BEIS,UKRI - AHRC,20/06/2018,T&S UK - Public Transport,SMT,Redfern Travel Ltd,98217761,63.20,T&S UK - Public Transport,
BEIS,UKRI - AHRC,20/06/2018,T&S UK - Public Transport,SMT,Redfern Travel Ltd,98217761,90.00,T&S UK - Public Transport,
BEIS,UKRI - AHRC,20/06/2018,T&S UK - Public Transport,SMT,Redfern Travel Ltd,98217761,105.00,T&S UK - Public Transport,
BEIS,UKRI - AHRC,20/06/2018,T&S UK - Public Transport,SMT,Redfern Travel Ltd,98217761,81.00,T&S UK - Public Transport,
BEIS,UKRI - AHRC,20/06/2018,T&S UK - Public Transport,Skills,Redfern Travel Ltd,98217761,185.60,T&S UK - Public Transport,
BEIS,UKRI - AHRC,21/06/2018,Advertising & Promotion,Communications,Benjamin Ward Communications Ltd,98178517,1200.00,Advertising & Promotion,
BEIS,UKRI - AHRC,21/06/2018,Marketing & PR,Communications,Benjamin Ward Communications Ltd,98178517,2000.00,Marketing & PR,
BEIS,UKRI - AHRC,21/06/2018,Marketing & PR,Communications,Benjamin Ward Communications Ltd,98178517,133.60,Marketing & PR,
BEIS,UKRI - AHRC,21/06/2018,T&S UK - Subsistence,"Languages,Literature & International Engagement",Unspecified,98220684,2.75,T&S UK - Subsistence,
BEIS,UKRI - AHRC,21/06/2018,T&S UK - Subsistence,"Languages,Literature & International Engagement",Unspecified,98220684,9.84,T&S UK - Subsistence,
BEIS,UKRI - AHRC,21/06/2018,T&S UK - Subsistence,"Languages,Literature & International Engagement",Unspecified,98220684,7.92,T&S UK - Subsistence,
BEIS,UKRI - AHRC,22/06/2018,Advertising & Promotion,Communications,Swindon Festival of Literature,98220787,2000.00,Advertising & Promotion,
BEIS,UKRI - AHRC,22/06/2018,Conferences & Seminars,"AHRC - Strategic Planning, Evidence & Impact",Via-Vox Ltd T/A Powwownow,98177710,33.46,Conferences & Seminars,
BEIS,UKRI - AHRC,22/06/2018,Conferences & Seminars,"AHRC - Strategic Planning, Evidence & Impact",Via-Vox Ltd T/A Powwownow,98177712,35.36,Conferences & Seminars,
BEIS,UKRI - AHRC,22/06/2018,Contract Staff,PSU Project Office,Capita Business Services Ltd,98220006,13647.31,Contract Staff,
BEIS,UKRI - AHRC,22/06/2018,Contract Staff,PSU Project Office,Capita Business Services Ltd,98220010,3130.74,Contract Staff,
BEIS,UKRI - AHRC,22/06/2018,Contract Staff,IS,Capita Business Services Ltd,98220012,2723.62,Contract Staff,
BEIS,UKRI - AHRC,22/06/2018,Council & Committee Honoraria,New Programme Development,Ms Elizabeth J Tomlin,98222192,170.00,Council & Committee Honoraria,
BEIS,UKRI - AHRC,22/06/2018,T&S UK - Mileage,PSU Project Office,Unspecified,98214472,68.85,T&S UK - Mileage,
BEIS,UKRI - AHRC,25/06/2018,Agency Staff,Finance,Hays Specialist Recruitment Ltd,98221025,2672.76,Agency Staff,
BEIS,UKRI - AHRC,25/06/2018,Agency Staff,Finance,Hays Specialist Recruitment Ltd,98221028,2672.76,Agency Staff,
BEIS,UKRI - AHRC,25/06/2018,Computing Consumables,IS,Banner Group Ltd,98218084,58.20,Computing Consumables,
BEIS,UKRI - AHRC,25/06/2018,Fellowships,Research Fellowships,University of Oxford,98206042,24780.78,Fellowships,
BEIS,UKRI - AHRC,25/06/2018,Fellowships,Research Fellowships,University of St Andrews,98206043,22249.27,Fellowships,
BEIS,UKRI - AHRC,25/06/2018,Fellowships,Research Fellowships,Brunel University London,98206044,19960.85,Fellowships,
BEIS,UKRI - AHRC,25/06/2018,Fellowships,Research Fellowships,Kingston University,98206045,14239.05,Fellowships,
BEIS,UKRI - AHRC,25/06/2018,Fellowships,Research Fellowships,University of Sheffield,98206046,18570.00,Fellowships,
BEIS,UKRI - AHRC,25/06/2018,Fellowships,Research Fellowships,University of Nottingham,98206047,15774.88,Fellowships,
BEIS,UKRI - AHRC,25/06/2018,Fellowships,Research Fellowships,University of Leeds,98206048,26232.25,Fellowships,
BEIS,UKRI - AHRC,25/06/2018,Fellowships,Research Fellowships,University of Cambridge,98206049,19901.02,Fellowships,
BEIS,UKRI - AHRC,25/06/2018,Fellowships,Research Fellowships,University of Leeds,98206050,20477.55,Fellowships,
BEIS,UKRI - AHRC,25/06/2018,Fellowships,Research Fellowships,University of Sheffield,98206051,13728.20,Fellowships,
BEIS,UKRI - AHRC,25/06/2018,Fellowships,Research Fellowships,University of Edinburgh,98206052,14348.08,Fellowships,
BEIS,UKRI - AHRC,25/06/2018,Fellowships,Research Fellowships,Bath Spa University,98206053,16455.32,Fellowships,
BEIS,UKRI - AHRC,25/06/2018,Fellowships,Research Fellowships,University of St Andrews,98206054,18783.81,Fellowships,
BEIS,UKRI - AHRC,25/06/2018,Fellowships,Research Fellowships,University of Bristol GRANT,98206055,25111.94,Fellowships,
BEIS,UKRI - AHRC,25/06/2018,Fellowships,Research Fellowships,King's College London,98206056,25190.70,Fellowships,
BEIS,UKRI - AHRC,25/06/2018,Fellowships,Research Fellowships,King's College London,98206056,25394.75,Fellowships,
BEIS,UKRI - AHRC,25/06/2018,Fellowships,Research Fellowships,King's College London,98206056,25190.70,Fellowships,
BEIS,UKRI - AHRC,25/06/2018,Fellowships,Research Fellowships,King's College London,98206056,25190.70,Fellowships,
BEIS,UKRI - AHRC,25/06/2018,Fellowships,Research Fellowships,University of Glasgow,98206057,22057.74,Fellowships,
BEIS,UKRI - AHRC,25/06/2018,Fellowships,Research Fellowships,University of East Anglia,98206058,33457.39,Fellowships,
BEIS,UKRI - AHRC,25/06/2018,Fellowships,Research Fellowships,Historic Royal Palaces,98206059,26826.56,Fellowships,
BEIS,UKRI - AHRC,25/06/2018,Fellowships,Research Fellowships,University College London,98206060,22537.89,Fellowships,
BEIS,UKRI - AHRC,25/06/2018,Fellowships,Research Fellowships,University of Sussex,98206061,31356.96,Fellowships,
BEIS,UKRI - AHRC,25/06/2018,Fellowships,Research Fellowships,Keele University,98206062,31156.60,Fellowships,
BEIS,UKRI - AHRC,25/06/2018,Fellowships,Research Fellowships,Birmingham City University,98206063,17003.15,Fellowships,
BEIS,UKRI - AHRC,25/06/2018,Fellowships,Research Fellowships,University of Southampton GRANT,98206064,20524.50,Fellowships,
BEIS,UKRI - AHRC,25/06/2018,Fellowships,Research Fellowships,Queen's University Belfast GRANT,98206065,26384.59,Fellowships,
BEIS,UKRI - AHRC,25/06/2018,Fellowships,Research Fellowships,UWIC (University of Wales Institute Cardiff),98206066,20032.40,Fellowships,
BEIS,UKRI - AHRC,25/06/2018,Fellowships,Research Fellowships,University of Glasgow,98206067,20930.73,Fellowships,
BEIS,UKRI - AHRC,25/06/2018,Fellowships,Research Fellowships,University of Sussex,98206068,25200.28,Fellowships,
BEIS,UKRI - AHRC,25/06/2018,Fellowships,Research Fellowships,"Royal Holloway, University of London",98206069,27171.65,Fellowships,
BEIS,UKRI - AHRC,25/06/2018,Fellowships,Research Fellowships,University of Sheffield,98206070,31028.72,Fellowships,
BEIS,UKRI - AHRC,25/06/2018,Fellowships,Research Fellowships,The University of Manchester,98206071,39190.31,Fellowships,
BEIS,UKRI - AHRC,25/06/2018,Fellowships,Research Fellowships,Northumbria University,98206072,17284.77,Fellowships,
BEIS,UKRI - AHRC,25/06/2018,Fellowships,Research Fellowships,University of Aberdeen,98206073,17842.46,Fellowships,
BEIS,UKRI - AHRC,25/06/2018,Fellowships,Research Fellowships,Liverpool John Moores University,98206074,18972.16,Fellowships,
BEIS,UKRI - AHRC,25/06/2018,Fellowships,Research Fellowships,University of Exeter,98206075,22501.27,Fellowships,
BEIS,UKRI - AHRC,25/06/2018,Fellowships,Research Fellowships,University of Birmingham GRANT,98206076,22508.96,Fellowships,
BEIS,UKRI - AHRC,25/06/2018,Fellowships,Research Fellowships,University of Edinburgh,98206077,17137.47,Fellowships,
BEIS,UKRI - AHRC,25/06/2018,Fellowships,Research Fellowships,Cardiff University,98206078,20493.89,Fellowships,
BEIS,UKRI - AHRC,25/06/2018,Fellowships,Research Fellowships,University of Nottingham,98206079,27439.14,Fellowships,
BEIS,UKRI - AHRC,25/06/2018,Fellowships,Research Fellowships,"SOAS, University of London",98206080,32399.04,Fellowships,
BEIS,UKRI - AHRC,25/06/2018,Fellowships,Research Fellowships,University of Durham,98206081,28856.92,Fellowships,
BEIS,UKRI - AHRC,25/06/2018,Fellowships,Research Fellowships,University of Sheffield,98206082,27810.86,Fellowships,
BEIS,UKRI - AHRC,25/06/2018,Fellowships,Research Fellowships,University of Bristol GRANT,98206083,29320.80,Fellowships,
BEIS,UKRI - AHRC,25/06/2018,Fellowships,Research Fellowships,The University of Manchester,98206084,21609.63,Fellowships,
BEIS,UKRI - AHRC,25/06/2018,Fellowships,Research Fellowships,University of Plymouth,98206085,23218.25,Fellowships,
BEIS,UKRI - AHRC,25/06/2018,Fellowships,Research Fellowships,Northumbria University,98206086,18647.83,Fellowships,
BEIS,UKRI - AHRC,25/06/2018,Fellowships,Research Fellowships,Nottingham Trent University,98206087,23426.31,Fellowships,
BEIS,UKRI - AHRC,25/06/2018,Fellowships,Research Fellowships,Nottingham Trent University,98206087,23426.31,Fellowships,
BEIS,UKRI - AHRC,25/06/2018,Fellowships,Research Fellowships,University of Sussex,98206088,21679.99,Fellowships,
BEIS,UKRI - AHRC,25/06/2018,Fellowships,Research Fellowships,King's College London,98206089,26847.06,Fellowships,
BEIS,UKRI - AHRC,25/06/2018,Fellowships,Research Fellowships,Queen's University Belfast GRANT,98206090,23502.71,Fellowships,
BEIS,UKRI - AHRC,25/06/2018,Fellowships,Research Fellowships,University of Kent,98206091,31628.95,Fellowships,
BEIS,UKRI - AHRC,25/06/2018,Fellowships,Research Fellowships,University of Glasgow,98206092,21955.29,Fellowships,
BEIS,UKRI - AHRC,25/06/2018,Fellowships,Research Fellowships,University of Essex,98206093,32184.94,Fellowships,
BEIS,UKRI - AHRC,25/06/2018,Fellowships,Research Fellowships,University of Durham,98206094,31974.79,Fellowships,
BEIS,UKRI - AHRC,25/06/2018,Fellowships,Research Fellowships,University of Birmingham GRANT,98206095,27961.84,Fellowships,
BEIS,UKRI - AHRC,25/06/2018,Fellowships,Research Fellowships,University of Durham,98206096,17169.23,Fellowships,
BEIS,UKRI - AHRC,25/06/2018,Research Grant Expenditure,KE Hubs,Lancaster University,98203123,199899.47,Research Grant Expenditure,
BEIS,UKRI - AHRC,25/06/2018,Research Grant Expenditure,Research Grants,University of Durham,98203124,18758.43,Research Grant Expenditure,
BEIS,UKRI - AHRC,25/06/2018,Research Grant Expenditure,Research Grants,University of Durham,98205564,35618.72,Research Grant Expenditure,
BEIS,UKRI - AHRC,25/06/2018,Research Grant Expenditure,Research Grants,University of Cambridge,98205565,37185.38,Research Grant Expenditure,
BEIS,UKRI - AHRC,25/06/2018,Research Grant Expenditure,Care for the Future,University of Nottingham,98205566,12283.05,Research Grant Expenditure,
BEIS,UKRI - AHRC,25/06/2018,Research Grant Expenditure,Connected Communities Programme,University of Nottingham,98205566,12283.03,Research Grant Expenditure,
BEIS,UKRI - AHRC,25/06/2018,Research Grant Expenditure,Research Grants,University of York,98205567,36461.61,Research Grant Expenditure,
BEIS,UKRI - AHRC,25/06/2018,Research Grant Expenditure,Research Grants,Queen's University Belfast GRANT,98205568,40387.32,Research Grant Expenditure,
BEIS,UKRI - AHRC,25/06/2018,Research Grant Expenditure,Research Grants,Bath Spa University,98205569,40329.50,Research Grant Expenditure,
BEIS,UKRI - AHRC,25/06/2018,Research Grant Expenditure,Research Grants,"University of Wales, Registry",98205570,47033.67,Research Grant Expenditure,
BEIS,UKRI - AHRC,25/06/2018,Research Grant Expenditure,Research Grants,University of Southampton GRANT,98205571,32689.70,Research Grant Expenditure,
BEIS,UKRI - AHRC,25/06/2018,Research Grant Expenditure,Research Grants,University of Birmingham GRANT,98205572,33503.19,Research Grant Expenditure,
BEIS,UKRI - AHRC,25/06/2018,Research Grant Expenditure,Research Grants,Swansea University,98205573,35668.94,Research Grant Expenditure,
BEIS,UKRI - AHRC,25/06/2018,Research Grant Expenditure,Care for the Future,University College London,98205574,101592.85,Research Grant Expenditure,
BEIS,UKRI - AHRC,25/06/2018,Research Grant Expenditure,Research Grants,The Open University,98205575,58670.77,Research Grant Expenditure,
BEIS,UKRI - AHRC,25/06/2018,Research Grant Expenditure,Research Grants,University of Warwick,98205576,11768.17,Research Grant Expenditure,
BEIS,UKRI - AHRC,25/06/2018,Research Grant Expenditure,Research Grants,University of Surrey,98205577,42854.15,Research Grant Expenditure,
BEIS,UKRI - AHRC,25/06/2018,Research Grant Expenditure,Research Grants,University of Cambridge,98205578,51903.77,Research Grant Expenditure,
BEIS,UKRI - AHRC,25/06/2018,Research Grant Expenditure,Research Grants,University of York,98205579,45921.41,Research Grant Expenditure,
BEIS,UKRI - AHRC,25/06/2018,Research Grant Expenditure,Research Grants,University of Glasgow,98205580,44417.48,Research Grant Expenditure,
BEIS,UKRI - AHRC,25/06/2018,Research Grant Expenditure,Research Grants,University of Essex,98205581,43398.45,Research Grant Expenditure,
BEIS,UKRI - AHRC,25/06/2018,Research Grant Expenditure,Research Grants,University of Reading,98205582,12580.59,Research Grant Expenditure,
BEIS,UKRI - AHRC,25/06/2018,Research Grant Expenditure,Research Grants,University of Edinburgh,98205583,41618.36,Research Grant Expenditure,
BEIS,UKRI - AHRC,25/06/2018,Research Grant Expenditure,Research Grants,University of Nottingham,98205584,36197.08,Research Grant Expenditure,
BEIS,UKRI - AHRC,25/06/2018,Research Grant Expenditure,Research Grants,The University of Manchester,98205585,45155.39,Research Grant Expenditure,
BEIS,UKRI - AHRC,25/06/2018,Research Grant Expenditure,Global Uncertainties Programme,University of Bath,98205586,41941.90,Research Grant Expenditure,
BEIS,UKRI - AHRC,25/06/2018,Research Grant Expenditure,Research Grants,University of Cambridge,98205587,55918.57,Research Grant Expenditure,
BEIS,UKRI - AHRC,25/06/2018,Research Grant Expenditure,Research Grants,University of Glasgow,98205588,64609.33,Research Grant Expenditure,
BEIS,UKRI - AHRC,25/06/2018,Research Grant Expenditure,Research Grants,University of Central Lancashire,98205589,13649.99,Research Grant Expenditure,
BEIS,UKRI - AHRC,25/06/2018,Research Grant Expenditure,Research Grants,University of Huddersfield,98205590,43158.46,Research Grant Expenditure,
BEIS,UKRI - AHRC,25/06/2018,Research Grant Expenditure,Research Grants,University of Newcastle Upon Tyne,98205591,44012.13,Research Grant Expenditure,
BEIS,UKRI - AHRC,25/06/2018,Research Grant Expenditure,Research Grants,University of Leeds,98205592,35778.75,Research Grant Expenditure,
BEIS,UKRI - AHRC,25/06/2018,Research Grant Expenditure,Research Grants,"SOAS, University of London",98205593,47776.76,Research Grant Expenditure,
BEIS,UKRI - AHRC,25/06/2018,Research Grant Expenditure,Research Grants,University of Stirling,98205594,6962.40,Research Grant Expenditure,
BEIS,UKRI - AHRC,25/06/2018,Research Grant Expenditure,Research Grants,University of Reading,98205595,54062.83,Research Grant Expenditure,
BEIS,UKRI - AHRC,25/06/2018,Research Grant Expenditure,Research Grants,University College London,98205596,30313.57,Research Grant Expenditure,
BEIS,UKRI - AHRC,25/06/2018,Research Grant Expenditure,Research Grants,"SOAS, University of London",98205597,38158.09,Research Grant Expenditure,
BEIS,UKRI - AHRC,25/06/2018,Research Grant Expenditure,Research Grants,University of Oxford,98205598,39854.14,Research Grant Expenditure,
BEIS,UKRI - AHRC,25/06/2018,Research Grant Expenditure,Research Grants,The University of Manchester,98205599,55274.95,Research Grant Expenditure,
BEIS,UKRI - AHRC,25/06/2018,Research Grant Expenditure,Research Grants,University of Lincoln,98205600,52645.17,Research Grant Expenditure,
BEIS,UKRI - AHRC,25/06/2018,Research Grant Expenditure,Research Grants,University of Durham,98205601,49212.40,Research Grant Expenditure,
BEIS,UKRI - AHRC,25/06/2018,Research Grant Expenditure,Research Grants,University of Cambridge,98205602,28581.88,Research Grant Expenditure,
BEIS,UKRI - AHRC,25/06/2018,Research Grant Expenditure,Research Grants,University College London,98205603,45295.76,Research Grant Expenditure,
BEIS,UKRI - AHRC,25/06/2018,Research Grant Expenditure,Research Grants,Leeds Beckett University,98205604,28789.00,Research Grant Expenditure,
BEIS,UKRI - AHRC,25/06/2018,Research Grant Expenditure,Research Grants,University of Exeter,98205605,33326.62,Research Grant Expenditure,
BEIS,UKRI - AHRC,25/06/2018,Research Grant Expenditure,Research Grants,University of Warwick,98205606,36097.94,Research Grant Expenditure,
BEIS,UKRI - AHRC,25/06/2018,Research Grant Expenditure,Research Grants,University of Oxford,98205607,67435.52,Research Grant Expenditure,
BEIS,UKRI - AHRC,25/06/2018,Research Grant Expenditure,Translating Cultures,University of Liverpool,98205608,52320.90,Research Grant Expenditure,
BEIS,UKRI - AHRC,25/06/2018,Research Grant Expenditure,Connected Communities Programme,University of East Anglia,98205609,52791.15,Research Grant Expenditure,
BEIS,UKRI - AHRC,25/06/2018,Research Grant Expenditure,RCUK Newton Programme,Lancaster University,98205610,4997.86,Research Grant Expenditure,
BEIS,UKRI - AHRC,25/06/2018,Research Grant Expenditure,Digital Transformations,University of Glasgow,98205611,70836.65,Research Grant Expenditure,
BEIS,UKRI - AHRC,25/06/2018,Research Grant Expenditure,Digital Transformations,University of Glasgow,98205611,7200.00,Research Grant Expenditure,
BEIS,UKRI - AHRC,25/06/2018,Research Grant Expenditure,Connected Communities Programme,University of Bristol GRANT,98205612,66633.59,Research Grant Expenditure,
BEIS,UKRI - AHRC,25/06/2018,Research Grant Expenditure,Science in Culture,University of London,98205613,59039.07,Research Grant Expenditure,
BEIS,UKRI - AHRC,25/06/2018,Research Grant Expenditure,Connected Communities Programme,Brunel University London,98205614,101174.11,Research Grant Expenditure,
BEIS,UKRI - AHRC,25/06/2018,Research Grant Expenditure,Research Grants,University of Oxford,98205615,57134.56,Research Grant Expenditure,
BEIS,UKRI - AHRC,25/06/2018,Research Grant Expenditure,Research Grants,University of Cambridge,98205616,55563.63,Research Grant Expenditure,
BEIS,UKRI - AHRC,25/06/2018,Research Grant Expenditure,Research Grants,British Museum,98205617,55477.50,Research Grant Expenditure,
BEIS,UKRI - AHRC,25/06/2018,Research Grant Expenditure,Research Grants,University of Southampton GRANT,98205618,30428.15,Research Grant Expenditure,
BEIS,UKRI - AHRC,25/06/2018,Research Grant Expenditure,Research Grants,University of Reading,98205619,49870.29,Research Grant Expenditure,
BEIS,UKRI - AHRC,25/06/2018,Research Grant Expenditure,Research Grants,University of Glasgow,98205620,31414.95,Research Grant Expenditure,
BEIS,UKRI - AHRC,25/06/2018,Research Grant Expenditure,Research Grants,Lancaster University,98205621,67036.93,Research Grant Expenditure,
BEIS,UKRI - AHRC,25/06/2018,Research Grant Expenditure,Research Grants,University of Westminster,98205622,46230.32,Research Grant Expenditure,
BEIS,UKRI - AHRC,25/06/2018,Research Grant Expenditure,Research Grants,University of Surrey,98205623,34525.86,Research Grant Expenditure,
BEIS,UKRI - AHRC,25/06/2018,Research Grant Expenditure,Research Grants,University of Oxford,98205624,51282.68,Research Grant Expenditure,
BEIS,UKRI - AHRC,25/06/2018,Research Grant Expenditure,Research Grants,University of Hull,98205625,16667.86,Research Grant Expenditure,
BEIS,UKRI - AHRC,25/06/2018,Research Grant Expenditure,Research Grants,University of Exeter,98205626,41665.44,Research Grant Expenditure,
BEIS,UKRI - AHRC,25/06/2018,Research Grant Expenditure,Research Grants,The University of Manchester,98205627,66667.81,Research Grant Expenditure,
BEIS,UKRI - AHRC,25/06/2018,Research Grant Expenditure,Research Grants,University of Sheffield,98205628,39740.62,Research Grant Expenditure,
BEIS,UKRI - AHRC,25/06/2018,Research Grant Expenditure,Research Grants,University of Warwick,98205629,63022.92,Research Grant Expenditure,
BEIS,UKRI - AHRC,25/06/2018,Research Grant Expenditure,Research Grants,University of Oxford,98205630,45288.59,Research Grant Expenditure,
BEIS,UKRI - AHRC,25/06/2018,Research Grant Expenditure,Research Grants,Guildhall School of Music & Drama,98205631,17610.68,Research Grant Expenditure,
BEIS,UKRI - AHRC,25/06/2018,Research Grant Expenditure,Research Grants,University of Warwick,98205632,30028.60,Research Grant Expenditure,
BEIS,UKRI - AHRC,25/06/2018,Research Grant Expenditure,Research Grants,"Royal Holloway, University of London",98205633,34125.79,Research Grant Expenditure,
BEIS,UKRI - AHRC,25/06/2018,Research Grant Expenditure,Research Grants,The Open University,98205634,66261.97,Research Grant Expenditure,
BEIS,UKRI - AHRC,25/06/2018,Research Grant Expenditure,Care for the Future,Bath Spa University,98205635,8056.89,Research Grant Expenditure,
BEIS,UKRI - AHRC,25/06/2018,Research Grant Expenditure,Open World Research Initiative (OWRI).,King's College London,98205636,192716.12,Research Grant Expenditure,
BEIS,UKRI - AHRC,25/06/2018,Research Grant Expenditure,Open World Research Initiative (OWRI).,The University of Manchester,98205637,210891.34,Research Grant Expenditure,
BEIS,UKRI - AHRC,25/06/2018,Research Grant Expenditure,Open World Research Initiative (OWRI).,University of Oxford,98205638,214852.88,Research Grant Expenditure,
BEIS,UKRI - AHRC,25/06/2018,Research Grant Expenditure,Open World Research Initiative (OWRI).,University of Cambridge,98205639,225818.20,Research Grant Expenditure,
BEIS,UKRI - AHRC,25/06/2018,Research Grant Expenditure,Networks & Workshops,University of Birmingham GRANT,98205640,4243.86,Research Grant Expenditure,
BEIS,UKRI - AHRC,25/06/2018,Research Grant Expenditure,Research Grants,Bangor University,98205641,1964.63,Research Grant Expenditure,
BEIS,UKRI - AHRC,25/06/2018,Research Grant Expenditure,Networks & Workshops,Birmingham City University,98205642,4320.07,Research Grant Expenditure,
BEIS,UKRI - AHRC,25/06/2018,Research Grant Expenditure,Research Grants,University of Newcastle Upon Tyne,98205643,52499.95,Research Grant Expenditure,
BEIS,UKRI - AHRC,25/06/2018,Research Grant Expenditure,Research Grants,Queen's University Belfast GRANT,98205644,58994.15,Research Grant Expenditure,
BEIS,UKRI - AHRC,25/06/2018,Research Grant Expenditure,Research Grants,Birmingham City University,98205645,34174.92,Research Grant Expenditure,
BEIS,UKRI - AHRC,25/06/2018,Research Grant Expenditure,Research Grants,University of Durham,98205646,58497.23,Research Grant Expenditure,
BEIS,UKRI - AHRC,25/06/2018,Research Grant Expenditure,Research Grants,University of Birmingham GRANT,98205647,42084.93,Research Grant Expenditure,
BEIS,UKRI - AHRC,25/06/2018,Research Grant Expenditure,Research Grants,Loughborough University,98205648,46824.26,Research Grant Expenditure,
BEIS,UKRI - AHRC,25/06/2018,Research Grant Expenditure,Commissioned Research,University of Newcastle Upon Tyne,98205649,99843.37,Research Grant Expenditure,
BEIS,UKRI - AHRC,25/06/2018,Research Grant Expenditure,Research Grants,University of Leeds,98205650,31271.54,Research Grant Expenditure,
BEIS,UKRI - AHRC,25/06/2018,Research Grant Expenditure,Research Grants,Lancaster University,98205651,48282.64,Research Grant Expenditure,
BEIS,UKRI - AHRC,25/06/2018,Research Grant Expenditure,Research Grants,Birkbeck College,98205652,65326.52,Research Grant Expenditure,
BEIS,UKRI - AHRC,25/06/2018,Research Grant Expenditure,Research Grants,Historic Environment Scotland (GRANT),98205653,35494.52,Research Grant Expenditure,
BEIS,UKRI - AHRC,25/06/2018,Research Grant Expenditure,Research Grants,University of Birmingham GRANT,98205654,37135.75,Research Grant Expenditure,
BEIS,UKRI - AHRC,25/06/2018,Research Grant Expenditure,Research Grants,"Royal Holloway, University of London",98205655,70471.52,Research Grant Expenditure,
BEIS,UKRI - AHRC,25/06/2018,Research Grant Expenditure,Research Grants,"SOAS, University of London",98205656,29729.29,Research Grant Expenditure,
BEIS,UKRI - AHRC,25/06/2018,Research Grant Expenditure,Research Grants,University of Bristol GRANT,98205657,63908.51,Research Grant Expenditure,
BEIS,UKRI - AHRC,25/06/2018,Research Grant Expenditure,Research Grants,University of Southampton GRANT,98205658,43772.46,Research Grant Expenditure,
BEIS,UKRI - AHRC,25/06/2018,Research Grant Expenditure,Research Grants,University of Warwick,98205659,22739.65,Research Grant Expenditure,
BEIS,UKRI - AHRC,25/06/2018,Research Grant Expenditure,Research Grants,University of Surrey,98205660,37169.17,Research Grant Expenditure,
BEIS,UKRI - AHRC,25/06/2018,Research Grant Expenditure,Research Grants,The Open University,98205661,52945.52,Research Grant Expenditure,
BEIS,UKRI - AHRC,25/06/2018,Research Grant Expenditure,Research Grants,University of Bristol GRANT,98205662,64043.52,Research Grant Expenditure,
BEIS,UKRI - AHRC,25/06/2018,Research Grant Expenditure,Research Grants,University of Oxford,98205663,62690.02,Research Grant Expenditure,
BEIS,UKRI - AHRC,25/06/2018,Research Grant Expenditure,Research Grants,Birkbeck College,98205664,20319.24,Research Grant Expenditure,
BEIS,UKRI - AHRC,25/06/2018,Research Grant Expenditure,Research Grants,University of Warwick,98205665,45682.53,Research Grant Expenditure,
BEIS,UKRI - AHRC,25/06/2018,Research Grant Expenditure,Networks & Workshops,University College Chester,98205666,3636.48,Research Grant Expenditure,
BEIS,UKRI - AHRC,25/06/2018,Research Grant Expenditure,Networks & Workshops,University of Leeds,98205667,3048.57,Research Grant Expenditure,
BEIS,UKRI - AHRC,25/06/2018,Research Grant Expenditure,Networks & Workshops,National Museums of Scotland,98205668,4189.12,Research Grant Expenditure,
BEIS,UKRI - AHRC,25/06/2018,Research Grant Expenditure,Networks & Workshops,University of Reading,98205669,4543.32,Research Grant Expenditure,
BEIS,UKRI - AHRC,25/06/2018,Research Grant Expenditure,RCUK Newton Programme,University of Newcastle Upon Tyne,98205670,34990.89,Research Grant Expenditure,
BEIS,UKRI - AHRC,25/06/2018,Research Grant Expenditure,RCUK Newton Programme,University of Newcastle Upon Tyne,98205671,26519.73,Research Grant Expenditure,
BEIS,UKRI - AHRC,25/06/2018,Research Grant Expenditure,Global Challenges Research Fund (GCRF),Institute of Development Studies,98205672,53182.76,Research Grant Expenditure,
BEIS,UKRI - AHRC,25/06/2018,Research Grant Expenditure,Global Uncertainties Programme,University of Oxford,98205673,42718.07,Research Grant Expenditure,
BEIS,UKRI - AHRC,25/06/2018,Research Grant Expenditure,Global Challenges Research Fund (GCRF),London School of Economics and Political Science,98205674,58242.12,Research Grant Expenditure,
BEIS,UKRI - AHRC,25/06/2018,Research Grant Expenditure,Global Uncertainties Programme,Queen's University Belfast GRANT,98205675,40618.59,Research Grant Expenditure,
BEIS,UKRI - AHRC,25/06/2018,Research Grant Expenditure,Global Challenges Research Fund (GCRF),University College London,98205676,40648.61,Research Grant Expenditure,
BEIS,UKRI - AHRC,25/06/2018,Research Grant Expenditure,Research Grants,University of Cambridge,98205677,36358.12,Research Grant Expenditure,
BEIS,UKRI - AHRC,25/06/2018,Research Grant Expenditure,Research Grants,University of Surrey,98205678,31698.19,Research Grant Expenditure,
BEIS,UKRI - AHRC,25/06/2018,Research Grant Expenditure,Research Grants,University of East Anglia,98205679,46409.57,Research Grant Expenditure,
BEIS,UKRI - AHRC,25/06/2018,Research Grant Expenditure,Research Grants,University College London,98205680,41678.63,Research Grant Expenditure,
BEIS,UKRI - AHRC,25/06/2018,Research Grant Expenditure,Research Grants,University of Kent,98205681,26645.19,Research Grant Expenditure,
BEIS,UKRI - AHRC,25/06/2018,Research Grant Expenditure,Research Grants,University of Reading,98205682,49963.18,Research Grant Expenditure,
BEIS,UKRI - AHRC,25/06/2018,Research Grant Expenditure,Research Grants,University of Bristol GRANT,98205683,28400.96,Research Grant Expenditure,
BEIS,UKRI - AHRC,25/06/2018,Research Grant Expenditure,Care for the Future,University of Kent,98205684,20937.06,Research Grant Expenditure,
BEIS,UKRI - AHRC,25/06/2018,Research Grant Expenditure,Connected Communities Programme,University of Kent,98205684,20937.02,Research Grant Expenditure,
BEIS,UKRI - AHRC,25/06/2018,Research Grant Expenditure,Care for the Future,Queen's University Belfast GRANT,98205685,34260.68,Research Grant Expenditure,
BEIS,UKRI - AHRC,25/06/2018,Research Grant Expenditure,Connected Communities Programme,Queen's University Belfast GRANT,98205685,34260.58,Research Grant Expenditure,
BEIS,UKRI - AHRC,25/06/2018,Research Grant Expenditure,Care for the Future,University of Hertfordshire,98205686,31666.94,Research Grant Expenditure,
BEIS,UKRI - AHRC,25/06/2018,Research Grant Expenditure,Connected Communities Programme,University of Hertfordshire,98205686,31666.89,Research Grant Expenditure,
BEIS,UKRI - AHRC,25/06/2018,Research Grant Expenditure,Care for the Future,University of Birmingham GRANT,98205687,27596.07,Research Grant Expenditure,
BEIS,UKRI - AHRC,25/06/2018,Research Grant Expenditure,Connected Communities Programme,University of Birmingham GRANT,98205687,27595.97,Research Grant Expenditure,
BEIS,UKRI - AHRC,25/06/2018,Research Grant Expenditure,Global Challenges Research Fund (GCRF),King's College London,98205688,85034.46,Research Grant Expenditure,
BEIS,UKRI - AHRC,25/06/2018,Research Grant Expenditure,Research Grants,University of Oxford,98205689,43335.64,Research Grant Expenditure,
BEIS,UKRI - AHRC,25/06/2018,Research Grant Expenditure,Research Grants,University of Liverpool,98205690,49114.19,Research Grant Expenditure,
BEIS,UKRI - AHRC,25/06/2018,Research Grant Expenditure,Research Grants,Queen's University Belfast GRANT,98205691,50608.22,Research Grant Expenditure,
BEIS,UKRI - AHRC,25/06/2018,Research Grant Expenditure,Networks & Workshops,University of York,98205692,5038.51,Research Grant Expenditure,
BEIS,UKRI - AHRC,25/06/2018,Research Grant Expenditure,Networks & Workshops,Bath Spa University,98205693,4067.99,Research Grant Expenditure,
BEIS,UKRI - AHRC,25/06/2018,Research Grant Expenditure,Research Grants,University of Birmingham GRANT,98205694,31143.65,Research Grant Expenditure,
BEIS,UKRI - AHRC,25/06/2018,Research Grant Expenditure,Research Grants,"SOAS, University of London",98205695,48033.85,Research Grant Expenditure,
BEIS,UKRI - AHRC,25/06/2018,Research Grant Expenditure,Research Grants,Bournemouth University GRANT,98205696,55789.36,Research Grant Expenditure,
BEIS,UKRI - AHRC,25/06/2018,Research Grant Expenditure,Research Grants,University of East Anglia,98205697,29255.91,Research Grant Expenditure,
BEIS,UKRI - AHRC,25/06/2018,Research Grant Expenditure,Research Grants,University of Leeds,98205698,72396.78,Research Grant Expenditure,
BEIS,UKRI - AHRC,25/06/2018,Research Grant Expenditure,Research Grants,University of Birmingham GRANT,98205699,35252.35,Research Grant Expenditure,
BEIS,UKRI - AHRC,25/06/2018,Research Grant Expenditure,Research Grants,University of Glasgow,98205700,40416.75,Research Grant Expenditure,
BEIS,UKRI - AHRC,25/06/2018,Research Grant Expenditure,Research Grants,University of Surrey,98205701,46945.33,Research Grant Expenditure,
BEIS,UKRI - AHRC,25/06/2018,Research Grant Expenditure,Research Grants,University of Birmingham GRANT,98205702,40170.11,Research Grant Expenditure,
BEIS,UKRI - AHRC,25/06/2018,Research Grant Expenditure,Research Grants,University of Durham,98205703,58316.20,Research Grant Expenditure,
BEIS,UKRI - AHRC,25/06/2018,Research Grant Expenditure,Research Grants,University of Newcastle Upon Tyne,98205704,46410.73,Research Grant Expenditure,
BEIS,UKRI - AHRC,25/06/2018,Research Grant Expenditure,Research Grants,"SOAS, University of London",98205705,69234.47,Research Grant Expenditure,
BEIS,UKRI - AHRC,25/06/2018,Research Grant Expenditure,Research Grants,University of Cambridge,98205706,61576.11,Research Grant Expenditure,
BEIS,UKRI - AHRC,25/06/2018,Research Grant Expenditure,Research Grants,University of Cambridge,98205707,24402.38,Research Grant Expenditure,
BEIS,UKRI - AHRC,25/06/2018,Research Grant Expenditure,Research Grants,University of St Andrews,98205708,29283.43,Research Grant Expenditure,
BEIS,UKRI - AHRC,25/06/2018,Research Grant Expenditure,Networks & Workshops,University of Liverpool,98205709,6134.57,Research Grant Expenditure,
BEIS,UKRI - AHRC,25/06/2018,Research Grant Expenditure,Networks & Workshops,Manchester Metropolitan University,98205710,5510.86,Research Grant Expenditure,
BEIS,UKRI - AHRC,25/06/2018,Research Grant Expenditure,Research Grants,University of East Anglia,98205711,26920.46,Research Grant Expenditure,
BEIS,UKRI - AHRC,25/06/2018,Research Grant Expenditure,Networks & Workshops,University of Leeds,98205712,3546.37,Research Grant Expenditure,
BEIS,UKRI - AHRC,25/06/2018,Research Grant Expenditure,Commissioned Research,Historic Environment Scotland (GRANT),98205713,43650.11,Research Grant Expenditure,
BEIS,UKRI - AHRC,25/06/2018,Research Grant Expenditure,Networks & Workshops,Birmingham City University,98205714,4560.59,Research Grant Expenditure,
BEIS,UKRI - AHRC,25/06/2018,Research Grant Expenditure,Networks & Workshops,University of Sussex,98205715,4416.84,Research Grant Expenditure,
BEIS,UKRI - AHRC,25/06/2018,Research Grant Expenditure,Science and Heritage Programme,University College London,98205716,86164.03,Research Grant Expenditure,
BEIS,UKRI - AHRC,25/06/2018,Research Grant Expenditure,Research Grants,Queen Mary University of London,98205717,50555.65,Research Grant Expenditure,
BEIS,UKRI - AHRC,25/06/2018,Research Grant Expenditure,Networks & Workshops,University of Edinburgh,98205718,5922.60,Research Grant Expenditure,
BEIS,UKRI - AHRC,25/06/2018,Research Grant Expenditure,Networks & Workshops,London South Bank University,98205719,4998.76,Research Grant Expenditure,
BEIS,UKRI - AHRC,25/06/2018,Research Grant Expenditure,Networks & Workshops,University of Edinburgh,98205720,5259.22,Research Grant Expenditure,
BEIS,UKRI - AHRC,25/06/2018,Research Grant Expenditure,Networks & Workshops,Aberystwyth University,98205721,4510.08,Research Grant Expenditure,
BEIS,UKRI - AHRC,25/06/2018,Research Grant Expenditure,Commissioned Research,Institute for Government,98205722,24056.38,Research Grant Expenditure,
BEIS,UKRI - AHRC,25/06/2018,Research Grant Expenditure,Research Grants,The University of Manchester,98205723,59968.35,Research Grant Expenditure,
BEIS,UKRI - AHRC,25/06/2018,Research Grant Expenditure,Research Grants,Cardiff University,98205724,15655.61,Research Grant Expenditure,
BEIS,UKRI - AHRC,25/06/2018,Research Grant Expenditure,Research Grants,University of Kent,98205725,64465.82,Research Grant Expenditure,
BEIS,UKRI - AHRC,25/06/2018,Research Grant Expenditure,Research Grants,Cardiff University,98205726,16569.72,Research Grant Expenditure,
BEIS,UKRI - AHRC,25/06/2018,Research Grant Expenditure,Research Grants,University of Cambridge,98205727,52226.80,Research Grant Expenditure,
BEIS,UKRI - AHRC,25/06/2018,Research Grant Expenditure,Research Grants,Queen's University Belfast GRANT,98205728,54159.99,Research Grant Expenditure,
BEIS,UKRI - AHRC,25/06/2018,Research Grant Expenditure,Research Grants,University of the Arts London,98205729,37560.94,Research Grant Expenditure,
BEIS,UKRI - AHRC,25/06/2018,Research Grant Expenditure,Research Grants,University of Leicester,98205730,50364.42,Research Grant Expenditure,
BEIS,UKRI - AHRC,25/06/2018,Research Grant Expenditure,Research Grants,National Museums of Scotland,98205731,32262.55,Research Grant Expenditure,
BEIS,UKRI - AHRC,25/06/2018,Research Grant Expenditure,Research Grants,University of Sheffield,98205732,34337.93,Research Grant Expenditure,
BEIS,UKRI - AHRC,25/06/2018,Research Grant Expenditure,Research Grants,University of Wolverhampton,98205733,54204.48,Research Grant Expenditure,
BEIS,UKRI - AHRC,25/06/2018,Research Grant Expenditure,Research Grants,University of Leeds,98205734,23791.27,Research Grant Expenditure,
BEIS,UKRI - AHRC,25/06/2018,Research Grant Expenditure,Research Grants,University of Sussex,98205735,43156.88,Research Grant Expenditure,
BEIS,UKRI - AHRC,25/06/2018,Research Grant Expenditure,Research Grants,University of Ulster,98205736,24116.35,Research Grant Expenditure,
BEIS,UKRI - AHRC,25/06/2018,Research Grant Expenditure,Research Grants,University of East Anglia,98205737,25171.28,Research Grant Expenditure,
BEIS,UKRI - AHRC,25/06/2018,Research Grant Expenditure,Care for the Future,University of Nottingham,98205738,73246.45,Research Grant Expenditure,
BEIS,UKRI - AHRC,25/06/2018,Research Grant Expenditure,Design: Strategic Initiatives,Lancaster University,98205739,57375.07,Research Grant Expenditure,
BEIS,UKRI - AHRC,25/06/2018,Research Grant Expenditure,Follow-on Fund,University of Leeds,98205740,0.01,Research Grant Expenditure,
BEIS,UKRI - AHRC,25/06/2018,Research Grant Expenditure,RCUK Newton Programme,Coventry University,98205741,10120.69,Research Grant Expenditure,
BEIS,UKRI - AHRC,25/06/2018,Research Grant Expenditure,Networks & Workshops,Royal College of Music,98205742,5885.76,Research Grant Expenditure,
BEIS,UKRI - AHRC,25/06/2018,Research Grant Expenditure,RCUK Newton Programme,Lancaster University,98205743,16297.69,Research Grant Expenditure,
BEIS,UKRI - AHRC,25/06/2018,Research Grant Expenditure,Research Grants,University of Surrey,98205744,30598.72,Research Grant Expenditure,
BEIS,UKRI - AHRC,25/06/2018,Research Grant Expenditure,Open World Research Initiative (OWRI).,Queen's University Belfast GRANT,98205745,71192.45,Research Grant Expenditure,
BEIS,UKRI - AHRC,25/06/2018,Research Grant Expenditure,Research Grants,University of Newcastle Upon Tyne,98205746,34454.78,Research Grant Expenditure,
BEIS,UKRI - AHRC,25/06/2018,Research Grant Expenditure,Research Grants,University of Exeter,98205747,25399.59,Research Grant Expenditure,
BEIS,UKRI - AHRC,25/06/2018,Research Grant Expenditure,Research Grants,Royal College of Music,98205748,55791.69,Research Grant Expenditure,
BEIS,UKRI - AHRC,25/06/2018,Research Grant Expenditure,Research Grants,Manchester Metropolitan University,98205749,58275.95,Research Grant Expenditure,
BEIS,UKRI - AHRC,25/06/2018,Research Grant Expenditure,Research Grants,University of Newcastle Upon Tyne,98205750,59966.99,Research Grant Expenditure,
BEIS,UKRI - AHRC,25/06/2018,Research Grant Expenditure,Research Grants,University of Exeter,98205751,53383.92,Research Grant Expenditure,
BEIS,UKRI - AHRC,25/06/2018,Research Grant Expenditure,Research Grants,University of Glasgow,98205752,44258.85,Research Grant Expenditure,
BEIS,UKRI - AHRC,25/06/2018,Research Grant Expenditure,Research Grants,Queen's University Belfast GRANT,98205753,46008.08,Research Grant Expenditure,
BEIS,UKRI - AHRC,25/06/2018,Research Grant Expenditure,Research Grants,University of Reading,98205754,50582.73,Research Grant Expenditure,
BEIS,UKRI - AHRC,25/06/2018,Research Grant Expenditure,Research Grants,University of Exeter,98205755,23981.45,Research Grant Expenditure,
BEIS,UKRI - AHRC,25/06/2018,Research Grant Expenditure,Research Grants,Aberystwyth University,98205756,52801.22,Research Grant Expenditure,
BEIS,UKRI - AHRC,25/06/2018,Research Grant Expenditure,Follow-on Fund,University of Southampton GRANT,98205757,17397.74,Research Grant Expenditure,
BEIS,UKRI - AHRC,25/06/2018,Research Grant Expenditure,Connected Communities Programme,Bath Spa University,98205758,91367.02,Research Grant Expenditure,
BEIS,UKRI - AHRC,25/06/2018,Research Grant Expenditure,Creative Economy,"Royal Holloway, University of London",98205759,74128.08,Research Grant Expenditure,
BEIS,UKRI - AHRC,25/06/2018,Research Grant Expenditure,Follow-on Fund,University of Oxford,98205760,19608.31,Research Grant Expenditure,
BEIS,UKRI - AHRC,25/06/2018,Research Grant Expenditure,Networks & Workshops,University of Warwick,98205761,4533.83,Research Grant Expenditure,
BEIS,UKRI - AHRC,25/06/2018,Research Grant Expenditure,Networks & Workshops,University of Exeter,98205762,4637.26,Research Grant Expenditure,
BEIS,UKRI - AHRC,25/06/2018,Research Grant Expenditure,Networks & Workshops,University of Leeds,98205763,4506.89,Research Grant Expenditure,
BEIS,UKRI - AHRC,25/06/2018,Research Grant Expenditure,Networks & Workshops,University of Leeds,98205764,4908.30,Research Grant Expenditure,
BEIS,UKRI - AHRC,25/06/2018,Research Grant Expenditure,Networks & Workshops,University of Leeds,98205765,6519.52,Research Grant Expenditure,
BEIS,UKRI - AHRC,25/06/2018,Research Grant Expenditure,Follow-on Fund,University of Nottingham,98205766,14106.70,Research Grant Expenditure,
BEIS,UKRI - AHRC,25/06/2018,Research Grant Expenditure,Follow-on Fund,University of Warwick,98205767,20691.18,Research Grant Expenditure,
BEIS,UKRI - AHRC,25/06/2018,Research Grant Expenditure,Follow-on Fund,King's College London,98205768,20075.66,Research Grant Expenditure,
BEIS,UKRI - AHRC,25/06/2018,Research Grant Expenditure,Follow-on Fund,University of Newcastle Upon Tyne,98205769,20133.99,Research Grant Expenditure,
BEIS,UKRI - AHRC,25/06/2018,Research Grant Expenditure,Networks & Workshops,University of London,98205770,6287.04,Research Grant Expenditure,
BEIS,UKRI - AHRC,25/06/2018,Research Grant Expenditure,Research Grants,University of Southampton GRANT,98205771,54379.17,Research Grant Expenditure,
BEIS,UKRI - AHRC,25/06/2018,Research Grant Expenditure,Research Grants,University of Kent,98205772,38002.71,Research Grant Expenditure,
BEIS,UKRI - AHRC,25/06/2018,Research Grant Expenditure,Research Grants,University of Birmingham GRANT,98205773,23833.73,Research Grant Expenditure,
BEIS,UKRI - AHRC,25/06/2018,Research Grant Expenditure,Research Grants,Lancaster University,98205774,61822.44,Research Grant Expenditure,
BEIS,UKRI - AHRC,25/06/2018,Research Grant Expenditure,Research Grants,University of Nottingham,98205775,47834.47,Research Grant Expenditure,
BEIS,UKRI - AHRC,25/06/2018,Research Grant Expenditure,Research Grants,Queen Mary University of London,98205776,16801.21,Research Grant Expenditure,
BEIS,UKRI - AHRC,25/06/2018,Research Grant Expenditure,Research Grants,University of Leeds,98205777,62804.67,Research Grant Expenditure,
BEIS,UKRI - AHRC,25/06/2018,Research Grant Expenditure,Networks & Workshops,University of Birmingham GRANT,98205778,3472.27,Research Grant Expenditure,
BEIS,UKRI - AHRC,25/06/2018,Research Grant Expenditure,Networks & Workshops,University of Newcastle Upon Tyne,98205779,4522.67,Research Grant Expenditure,
BEIS,UKRI - AHRC,25/06/2018,Research Grant Expenditure,Networks & Workshops,Loughborough University,98205780,4326.69,Research Grant Expenditure,
BEIS,UKRI - AHRC,25/06/2018,Research Grant Expenditure,Networks & Workshops,Victoria and Albert Museum,98205781,5708.40,Research Grant Expenditure,
BEIS,UKRI - AHRC,25/06/2018,Research Grant Expenditure,Networks & Workshops,Lancaster University,98205782,5022.84,Research Grant Expenditure,
BEIS,UKRI - AHRC,25/06/2018,Research Grant Expenditure,Research Grants,King's College London,98205783,67200.79,Research Grant Expenditure,
BEIS,UKRI - AHRC,25/06/2018,Research Grant Expenditure,Research Grants,University College London,98205784,32457.57,Research Grant Expenditure,
BEIS,UKRI - AHRC,25/06/2018,Research Grant Expenditure,Research Grants,University of Leicester,98205785,38623.78,Research Grant Expenditure,
BEIS,UKRI - AHRC,25/06/2018,Research Grant Expenditure,Research Grants,"SOAS, University of London",98205786,71999.36,Research Grant Expenditure,
BEIS,UKRI - AHRC,25/06/2018,Research Grant Expenditure,Research Grants,Canterbury Christ Church University GRANT,98205787,34265.56,Research Grant Expenditure,
BEIS,UKRI - AHRC,25/06/2018,Research Grant Expenditure,Research Grants,The University of Manchester,98205788,30584.90,Research Grant Expenditure,
BEIS,UKRI - AHRC,25/06/2018,Research Grant Expenditure,Research Grants,University of Hull,98205789,30614.65,Research Grant Expenditure,
BEIS,UKRI - AHRC,25/06/2018,Research Grant Expenditure,Research Grants,University of the West of England,98205790,16308.01,Research Grant Expenditure,
BEIS,UKRI - AHRC,25/06/2018,Research Grant Expenditure,Research Grants,University of York,98205791,49262.16,Research Grant Expenditure,
BEIS,UKRI - AHRC,25/06/2018,Research Grant Expenditure,Research Grants,University of Edinburgh,98205792,8607.91,Research Grant Expenditure,
BEIS,UKRI - AHRC,25/06/2018,Research Grant Expenditure,Research Grants,University of Bradford,98205793,10075.40,Research Grant Expenditure,
BEIS,UKRI - AHRC,25/06/2018,Research Grant Expenditure,Networks & Workshops,University of Kent,98205794,4467.25,Research Grant Expenditure,
BEIS,UKRI - AHRC,25/06/2018,Research Grant Expenditure,Networks & Workshops,University of York,98205795,6294.88,Research Grant Expenditure,
BEIS,UKRI - AHRC,25/06/2018,Research Grant Expenditure,Networks & Workshops,University of Winchester,98205796,5741.01,Research Grant Expenditure,
BEIS,UKRI - AHRC,25/06/2018,Research Grant Expenditure,Anti-microbial Resistance (AMR),University of Exeter,98205797,22085.88,Research Grant Expenditure,
BEIS,UKRI - AHRC,25/06/2018,Research Grant Expenditure,Anti-microbial Resistance (AMR),Glasgow School of Art,98205798,33540.54,Research Grant Expenditure,
BEIS,UKRI - AHRC,25/06/2018,Research Grant Expenditure,Anti-microbial Resistance (AMR),University College London,98205799,33587.37,Research Grant Expenditure,
BEIS,UKRI - AHRC,25/06/2018,Research Grant Expenditure,Anti-microbial Resistance (AMR),University of Reading,98205800,50119.73,Research Grant Expenditure,
BEIS,UKRI - AHRC,25/06/2018,Research Grant Expenditure,Anti-microbial Resistance (AMR),Glasgow School of Art,98205801,23305.11,Research Grant Expenditure,
BEIS,UKRI - AHRC,25/06/2018,Research Grant Expenditure,Anti-microbial Resistance (AMR),University of Cambridge,98205802,29842.74,Research Grant Expenditure,
BEIS,UKRI - AHRC,25/06/2018,Research Grant Expenditure,Anti-microbial Resistance (AMR),University of York,98205803,17169.90,Research Grant Expenditure,
BEIS,UKRI - AHRC,25/06/2018,Research Grant Expenditure,Anti-microbial Resistance (AMR),University College London,98205804,36798.06,Research Grant Expenditure,
BEIS,UKRI - AHRC,25/06/2018,Research Grant Expenditure,Anti-microbial Resistance (AMR),University of Leeds,98205805,25536.52,Research Grant Expenditure,
BEIS,UKRI - AHRC,25/06/2018,Research Grant Expenditure,Anti-microbial Resistance (AMR),Glasgow School of Art,98205806,25796.23,Research Grant Expenditure,
BEIS,UKRI - AHRC,25/06/2018,Research Grant Expenditure,Anti-microbial Resistance (AMR),Glasgow School of Art,98205806,22962.80,Research Grant Expenditure,
BEIS,UKRI - AHRC,25/06/2018,Research Grant Expenditure,Research Grants,Birmingham City University,98205807,42216.33,Research Grant Expenditure,
BEIS,UKRI - AHRC,25/06/2018,Research Grant Expenditure,Research Grants,University of Liverpool,98205808,47206.29,Research Grant Expenditure,
BEIS,UKRI - AHRC,25/06/2018,Research Grant Expenditure,Research Grants,University of Exeter,98205809,58041.83,Research Grant Expenditure,
BEIS,UKRI - AHRC,25/06/2018,Research Grant Expenditure,Research Grants,The Open University,98205810,36695.53,Research Grant Expenditure,
BEIS,UKRI - AHRC,25/06/2018,Research Grant Expenditure,Research Grants,University of Nottingham,98205811,53145.01,Research Grant Expenditure,
BEIS,UKRI - AHRC,25/06/2018,Research Grant Expenditure,Research Grants,University of Leeds,98205812,45963.75,Research Grant Expenditure,
BEIS,UKRI - AHRC,25/06/2018,Research Grant Expenditure,Research Grants,Keele University,98205813,61185.74,Research Grant Expenditure,
BEIS,UKRI - AHRC,25/06/2018,Research Grant Expenditure,Research Grants,University of Sheffield,98205814,33947.05,Research Grant Expenditure,
BEIS,UKRI - AHRC,25/06/2018,Research Grant Expenditure,Research Grants,University of Sheffield,98205815,30267.78,Research Grant Expenditure,
BEIS,UKRI - AHRC,25/06/2018,Research Grant Expenditure,Research Grants,Cardiff University,98205816,26939.82,Research Grant Expenditure,
BEIS,UKRI - AHRC,25/06/2018,Research Grant Expenditure,Research Grants,University of Glasgow,98205817,42748.04,Research Grant Expenditure,
BEIS,UKRI - AHRC,25/06/2018,Research Grant Expenditure,Research Grants,University of Birmingham GRANT,98205818,39908.31,Research Grant Expenditure,
BEIS,UKRI - AHRC,25/06/2018,Research Grant Expenditure,Follow-on Fund,University of Sussex,98205819,20021.89,Research Grant Expenditure,
BEIS,UKRI - AHRC,25/06/2018,Research Grant Expenditure,Follow-on Fund,University of the West of England,98205820,16460.50,Research Grant Expenditure,
BEIS,UKRI - AHRC,25/06/2018,Research Grant Expenditure,Follow-on Fund,University of Wales Trinity St David,98205821,18464.63,Research Grant Expenditure,
BEIS,UKRI - AHRC,25/06/2018,Research Grant Expenditure,Follow-on Fund,University of Liverpool,98205822,16753.91,Research Grant Expenditure,
BEIS,UKRI - AHRC,25/06/2018,Research Grant Expenditure,Anti-microbial Resistance (AMR),Lancaster University,98205823,27116.02,Research Grant Expenditure,
BEIS,UKRI - AHRC,25/06/2018,Research Grant Expenditure,Anti-microbial Resistance (AMR),Lancaster University,98205823,27116.02,Research Grant Expenditure,
BEIS,UKRI - AHRC,25/06/2018,Research Grant Expenditure,Follow-on Fund,The University of Manchester,98205824,26876.32,Research Grant Expenditure,
BEIS,UKRI - AHRC,25/06/2018,Research Grant Expenditure,Follow-on Fund,Queen's University Belfast GRANT,98205825,20083.74,Research Grant Expenditure,
BEIS,UKRI - AHRC,25/06/2018,Research Grant Expenditure,Networks & Workshops,University College Chester,98205826,3095.52,Research Grant Expenditure,
BEIS,UKRI - AHRC,25/06/2018,Research Grant Expenditure,Networks & Workshops,Cardiff University,98205827,4485.65,Research Grant Expenditure,
BEIS,UKRI - AHRC,25/06/2018,Research Grant Expenditure,Follow-on Fund,University of St Andrews,98205828,17256.61,Research Grant Expenditure,
BEIS,UKRI - AHRC,25/06/2018,Research Grant Expenditure,Follow-on Fund,University of Exeter,98205829,20158.49,Research Grant Expenditure,
BEIS,UKRI - AHRC,25/06/2018,Research Grant Expenditure,Follow-on Fund,Imperial College London,98205830,26141.51,Research Grant Expenditure,
BEIS,UKRI - AHRC,25/06/2018,Research Grant Expenditure,Follow-on Fund,University of Sheffield,98205831,19623.38,Research Grant Expenditure,
BEIS,UKRI - AHRC,25/06/2018,Research Grant Expenditure,Follow-on Fund,King's College London,98205832,20090.20,Research Grant Expenditure,
BEIS,UKRI - AHRC,25/06/2018,Research Grant Expenditure,Follow-on Fund,Aston University,98205833,19951.10,Research Grant Expenditure,
BEIS,UKRI - AHRC,25/06/2018,Research Grant Expenditure,Global Challenges Research Fund (GCRF),University of Leeds,98205834,117166.01,Research Grant Expenditure,
BEIS,UKRI - AHRC,25/06/2018,Research Grant Expenditure,Global Challenges Research Fund (GCRF),University of Nottingham,98205835,121944.09,Research Grant Expenditure,
BEIS,UKRI - AHRC,25/06/2018,Research Grant Expenditure,Global Challenges Research Fund (GCRF),University College London,98205836,114409.88,Research Grant Expenditure,
BEIS,UKRI - AHRC,25/06/2018,Research Grant Expenditure,Global Challenges Research Fund (GCRF),University of Liverpool,98205837,113443.79,Research Grant Expenditure,
BEIS,UKRI - AHRC,25/06/2018,Research Grant Expenditure,Global Challenges Research Fund (GCRF),"SOAS, University of London",98205838,152346.31,Research Grant Expenditure,
BEIS,UKRI - AHRC,25/06/2018,Research Grant Expenditure,Global Challenges Research Fund (GCRF),University of Stirling,98205839,20710.47,Research Grant Expenditure,
BEIS,UKRI - AHRC,25/06/2018,Research Grant Expenditure,Follow-on Fund,University of Warwick,98205840,20050.71,Research Grant Expenditure,
BEIS,UKRI - AHRC,25/06/2018,Research Grant Expenditure,Global Challenges Research Fund (GCRF),University of Birmingham GRANT,98205841,7712.50,Research Grant Expenditure,
BEIS,UKRI - AHRC,25/06/2018,Research Grant Expenditure,RCUK Global Challenges Research Fund (RCUK GCRF),Goldsmiths College University of London,98205842,202212.00,Research Grant Expenditure,
BEIS,UKRI - AHRC,25/06/2018,Research Grant Expenditure,RCUK Global Challenges Research Fund (RCUK GCRF),University of Huddersfield,98205843,283711.00,Research Grant Expenditure,
BEIS,UKRI - AHRC,25/06/2018,Research Grant Expenditure,Global Challenges Research Fund (GCRF),University of Cambridge,98205844,6047.05,Research Grant Expenditure,
BEIS,UKRI - AHRC,25/06/2018,Research Grant Expenditure,Networks & Workshops,Manchester Metropolitan University,98205845,4832.91,Research Grant Expenditure,
BEIS,UKRI - AHRC,25/06/2018,Research Grant Expenditure,Networks & Workshops,Manchester Metropolitan University,98205845,4832.91,Research Grant Expenditure,
BEIS,UKRI - AHRC,25/06/2018,Research Grant Expenditure,Networks & Workshops,University of Warwick,98205846,3478.34,Research Grant Expenditure,
BEIS,UKRI - AHRC,25/06/2018,Research Grant Expenditure,Research Grants,University of Durham,98205847,34522.40,Research Grant Expenditure,
BEIS,UKRI - AHRC,25/06/2018,Research Grant Expenditure,Research Grants,University of York,98205848,22873.45,Research Grant Expenditure,
BEIS,UKRI - AHRC,25/06/2018,Research Grant Expenditure,Research Grants,University of Leicester,98205849,67835.63,Research Grant Expenditure,
BEIS,UKRI - AHRC,25/06/2018,Research Grant Expenditure,Research Grants,University College London,98205850,62196.03,Research Grant Expenditure,
BEIS,UKRI - AHRC,25/06/2018,Research Grant Expenditure,Research Grants,University of Durham,98205851,63718.08,Research Grant Expenditure,
BEIS,UKRI - AHRC,25/06/2018,Research Grant Expenditure,Follow-on Fund,University of York,98205852,19148.54,Research Grant Expenditure,
BEIS,UKRI - AHRC,25/06/2018,Research Grant Expenditure,Follow-on Fund,University of York,98205852,19148.54,Research Grant Expenditure,
BEIS,UKRI - AHRC,25/06/2018,Research Grant Expenditure,Follow-on Fund,University of West London,98205853,19965.18,Research Grant Expenditure,
BEIS,UKRI - AHRC,25/06/2018,Research Grant Expenditure,Research Grants,University of East Anglia,98205854,32579.89,Research Grant Expenditure,
BEIS,UKRI - AHRC,25/06/2018,Research Grant Expenditure,Research Grants,University of East Anglia,98205854,32579.89,Research Grant Expenditure,
BEIS,UKRI - AHRC,25/06/2018,Research Grant Expenditure,Research Grants,University College London,98205855,20251.74,Research Grant Expenditure,
BEIS,UKRI - AHRC,25/06/2018,Research Grant Expenditure,Follow-on Fund,University of Southampton GRANT,98205856,19575.02,Research Grant Expenditure,
BEIS,UKRI - AHRC,25/06/2018,Research Grant Expenditure,Research Grants,"Royal Holloway, University of London",98205857,65675.62,Research Grant Expenditure,
BEIS,UKRI - AHRC,25/06/2018,Research Grant Expenditure,Follow-on Fund,University of Nottingham,98205858,20088.30,Research Grant Expenditure,
BEIS,UKRI - AHRC,25/06/2018,Research Grant Expenditure,Follow-on Fund,University of Oxford,98205859,20151.51,Research Grant Expenditure,
BEIS,UKRI - AHRC,25/06/2018,Research Grant Expenditure,Follow-on Fund,University of Bradford,98205860,19972.09,Research Grant Expenditure,
BEIS,UKRI - AHRC,25/06/2018,Research Grant Expenditure,Follow-on Fund,University of West London,98205861,18056.05,Research Grant Expenditure,
BEIS,UKRI - AHRC,25/06/2018,Research Grant Expenditure,Follow-on Fund,University of Kent,98205862,13877.43,Research Grant Expenditure,
BEIS,UKRI - AHRC,25/06/2018,Research Grant Expenditure,Care for the Future,University of Essex,98205863,11413.30,Research Grant Expenditure,
BEIS,UKRI - AHRC,25/06/2018,Research Grant Expenditure,Connected Communities Programme,University of Essex,98205863,11413.26,Research Grant Expenditure,
BEIS,UKRI - AHRC,25/06/2018,Research Grant Expenditure,Research Grants,Oxford Brookes University,98205864,61274.29,Research Grant Expenditure,
BEIS,UKRI - AHRC,25/06/2018,Research Grant Expenditure,Research Grants,University of Newcastle Upon Tyne,98205865,59830.37,Research Grant Expenditure,
BEIS,UKRI - AHRC,25/06/2018,Research Grant Expenditure,Research Grants,Manchester Metropolitan University,98205866,25642.28,Research Grant Expenditure,
BEIS,UKRI - AHRC,25/06/2018,Research Grant Expenditure,Follow-on Fund,University of Huddersfield,98205867,20127.50,Research Grant Expenditure,
BEIS,UKRI - AHRC,25/06/2018,Research Grant Expenditure,Follow-on Fund,University of Exeter,98205868,21037.85,Research Grant Expenditure,
BEIS,UKRI - AHRC,25/06/2018,Research Grant Expenditure,Follow-on Fund,Cardiff University,98205869,19514.93,Research Grant Expenditure,
BEIS,UKRI - AHRC,25/06/2018,Research Grant Expenditure,Research Grants,University of Dundee,98205870,24034.58,Research Grant Expenditure,
BEIS,UKRI - AHRC,25/06/2018,Research Grant Expenditure,Care for the Future,University of Exeter,98205871,89185.54,Research Grant Expenditure,
BEIS,UKRI - AHRC,25/06/2018,Research Grant Expenditure,Networks & Workshops,University of Bristol GRANT,98205872,4677.13,Research Grant Expenditure,
BEIS,UKRI - AHRC,25/06/2018,Research Grant Expenditure,Networks & Workshops,Lancaster University,98205873,5138.37,Research Grant Expenditure,
BEIS,UKRI - AHRC,25/06/2018,Research Grant Expenditure,Networks & Workshops,Lancaster University,98205873,5138.37,Research Grant Expenditure,
BEIS,UKRI - AHRC,25/06/2018,Research Grant Expenditure,Global Challenges Research Fund (GCRF),University of Glasgow,98205874,7838.18,Research Grant Expenditure,
BEIS,UKRI - AHRC,25/06/2018,Research Grant Expenditure,Creative Economy,University of York,98205875,29750.81,Research Grant Expenditure,
BEIS,UKRI - AHRC,25/06/2018,Research Grant Expenditure,Creative Economy,Queen Mary University of London,98205876,20143.53,Research Grant Expenditure,
BEIS,UKRI - AHRC,25/06/2018,Research Grant Expenditure,Creative Economy,University of Nottingham,98205877,37181.08,Research Grant Expenditure,
BEIS,UKRI - AHRC,25/06/2018,Research Grant Expenditure,Creative Economy,University of Edinburgh,98205878,60480.83,Research Grant Expenditure,
BEIS,UKRI - AHRC,25/06/2018,Research Grant Expenditure,Creative Economy,Lancaster University,98205879,26655.37,Research Grant Expenditure,
BEIS,UKRI - AHRC,25/06/2018,Research Grant Expenditure,Creative Economy,Lancaster University,98205879,33753.73,Research Grant Expenditure,
BEIS,UKRI - AHRC,25/06/2018,Research Grant Expenditure,Creative Economy,University of Abertay Dundee,98205880,60471.89,Research Grant Expenditure,
BEIS,UKRI - AHRC,25/06/2018,Research Grant Expenditure,Creative Economy,Queen's University Belfast GRANT,98205881,37435.56,Research Grant Expenditure,
BEIS,UKRI - AHRC,25/06/2018,Research Grant Expenditure,Creative Economy,University of Exeter,98205882,34554.46,Research Grant Expenditure,
BEIS,UKRI - AHRC,25/06/2018,Research Grant Expenditure,Networks & Workshops,Cardiff University,98205883,4214.82,Research Grant Expenditure,
BEIS,UKRI - AHRC,25/06/2018,Research Grant Expenditure,Networks & Workshops,University of the West of England,98205884,8649.50,Research Grant Expenditure,
BEIS,UKRI - AHRC,25/06/2018,Research Grant Expenditure,Follow-on Fund,University of York,98205885,20161.96,Research Grant Expenditure,
BEIS,UKRI - AHRC,25/06/2018,Research Grant Expenditure,Care for the Future,Lancaster University,98205886,4992.27,Research Grant Expenditure,
BEIS,UKRI - AHRC,25/06/2018,Research Grant Expenditure,Newton Programme,Cardiff University,98205887,13774.84,Research Grant Expenditure,
BEIS,UKRI - AHRC,25/06/2018,Research Grant Expenditure,Newton Programme,University of Liverpool,98205888,23355.34,Research Grant Expenditure,
BEIS,UKRI - AHRC,25/06/2018,Research Grant Expenditure,Newton Programme,University of Liverpool,98205888,23355.34,Research Grant Expenditure,
BEIS,UKRI - AHRC,25/06/2018,Research Grant Expenditure,Newton Programme,University of Salford,98205889,11725.98,Research Grant Expenditure,
BEIS,UKRI - AHRC,25/06/2018,Research Grant Expenditure,Follow-on Fund,University of Kent,98205890,14634.45,Research Grant Expenditure,
BEIS,UKRI - AHRC,25/06/2018,Research Grant Expenditure,Networks & Workshops,National Museums of Scotland,98205891,5601.26,Research Grant Expenditure,
BEIS,UKRI - AHRC,25/06/2018,Research Grant Expenditure,Research Grants,University of Exeter,98205892,81585.13,Research Grant Expenditure,
BEIS,UKRI - AHRC,25/06/2018,Research Grant Expenditure,Research Grants,University of Exeter,98205892,81585.13,Research Grant Expenditure,
BEIS,UKRI - AHRC,25/06/2018,Research Grant Expenditure,Research Grants,British Institute Of International And Comparative Law,98205893,27753.07,Research Grant Expenditure,
BEIS,UKRI - AHRC,25/06/2018,Research Grant Expenditure,Commissioned Research,King's College London,98205894,-56905.64,Research Grant Expenditure,
BEIS,UKRI - AHRC,25/06/2018,Research Grant Expenditure,Research Grants,University of Cambridge,98206125,-97457.17,Research Grant Expenditure,
BEIS,UKRI - AHRC,25/06/2018,Research Grant Expenditure,Research Grants,University of Cambridge,98206126,7389.74,Research Grant Expenditure,
BEIS,UKRI - AHRC,25/06/2018,Research Grant Expenditure,Research Grants,Birkbeck College,98206127,39583.80,Research Grant Expenditure,
BEIS,UKRI - AHRC,25/06/2018,Research Grant Expenditure,Digital Transformations,Goldsmiths College University of London,98206128,-71318.36,Research Grant Expenditure,
BEIS,UKRI - AHRC,25/06/2018,Research Grant Expenditure,Research Grants,University of Exeter,98206129,29736.53,Research Grant Expenditure,
BEIS,UKRI - AHRC,25/06/2018,Research Grant Expenditure,Research Grants,University of Durham,98206130,63205.29,Research Grant Expenditure,
BEIS,UKRI - AHRC,25/06/2018,Research Grant Expenditure,Care for the Future,University of Kent,98206131,1349.36,Research Grant Expenditure,
BEIS,UKRI - AHRC,25/06/2018,Research Grant Expenditure,Connected Communities Programme,University of Kent,98206131,1349.35,Research Grant Expenditure,
BEIS,UKRI - AHRC,25/06/2018,Research Grant Expenditure,Care for the Future,Queen's University Belfast GRANT,98206132,-2988.88,Research Grant Expenditure,
BEIS,UKRI - AHRC,25/06/2018,Research Grant Expenditure,Connected Communities Programme,Queen's University Belfast GRANT,98206132,-2988.90,Research Grant Expenditure,
BEIS,UKRI - AHRC,25/06/2018,Research Grant Expenditure,Care for the Future,University of Hertfordshire,98206133,-16321.27,Research Grant Expenditure,
BEIS,UKRI - AHRC,25/06/2018,Research Grant Expenditure,Connected Communities Programme,University of Hertfordshire,98206133,-16321.27,Research Grant Expenditure,
BEIS,UKRI - AHRC,25/06/2018,Research Grant Expenditure,Connected Communities Programme,The Open University,98206134,-6133.98,Research Grant Expenditure,
BEIS,UKRI - AHRC,25/06/2018,Research Grant Expenditure,Research Grants,University of Warwick,98206135,-1189.41,Research Grant Expenditure,
BEIS,UKRI - AHRC,25/06/2018,Research Grant Expenditure,Research Grants,Queen Mary University of London,98206136,13172.62,Research Grant Expenditure,
BEIS,UKRI - AHRC,25/06/2018,Research Grant Expenditure,Research Grants,University of Edinburgh,98206137,-21384.79,Research Grant Expenditure,
BEIS,UKRI - AHRC,25/06/2018,Research Grant Expenditure,Research Grants,University of Sheffield,98206138,-1898.62,Research Grant Expenditure,
BEIS,UKRI - AHRC,25/06/2018,Research Grant Expenditure,Research Grants,University of Exeter,98206139,-187.38,Research Grant Expenditure,
BEIS,UKRI - AHRC,25/06/2018,Research Grant Expenditure,Research Grants,University of Durham,98206140,-9565.25,Research Grant Expenditure,
BEIS,UKRI - AHRC,25/06/2018,Research Grant Expenditure,Research Grants,King's College London,98206141,-7513.16,Research Grant Expenditure,
BEIS,UKRI - AHRC,25/06/2018,Research Grant Expenditure,Research Grants,University of York,98206142,-22887.43,Research Grant Expenditure,
BEIS,UKRI - AHRC,25/06/2018,Research Grant Expenditure,Research Grants,University of York,98206143,-5038.46,Research Grant Expenditure,
BEIS,UKRI - AHRC,25/06/2018,Research Grant Expenditure,Research Grants,University College Chester,98206144,5431.36,Research Grant Expenditure,
BEIS,UKRI - AHRC,25/06/2018,Research Grant Expenditure,Networks & Workshops,University of Liverpool,98206145,4263.39,Research Grant Expenditure,
BEIS,UKRI - AHRC,25/06/2018,Research Grant Expenditure,Follow-on Fund,Queen's University Belfast GRANT,98206146,29257.39,Research Grant Expenditure,
BEIS,UKRI - AHRC,25/06/2018,Research Grant Expenditure,Research Grants,University of Sheffield,98206147,32336.49,Research Grant Expenditure,
BEIS,UKRI - AHRC,25/06/2018,Research Grant Expenditure,Research Grants,University of Glasgow,98206148,30515.13,Research Grant Expenditure,
BEIS,UKRI - AHRC,25/06/2018,Research Grant Expenditure,Networks & Workshops,Cardiff University,98206149,2361.76,Research Grant Expenditure,
BEIS,UKRI - AHRC,25/06/2018,Research Grant Expenditure,Networks & Workshops,University of Oxford,98206150,-2899.34,Research Grant Expenditure,
BEIS,UKRI - AHRC,25/06/2018,Research Grant Expenditure,Science in Culture,University of Oxford,98206151,-0.38,Research Grant Expenditure,
BEIS,UKRI - AHRC,25/06/2018,Research Grant Expenditure,Networks & Workshops,Bangor University,98206152,-588.09,Research Grant Expenditure,
BEIS,UKRI - AHRC,25/06/2018,Research Grant Expenditure,Networks & Workshops,University of Plymouth,98206153,4427.33,Research Grant Expenditure,
BEIS,UKRI - AHRC,25/06/2018,Research Grant Expenditure,Networks & Workshops,University of Wales Trinity St David,98206154,4429.66,Research Grant Expenditure,
BEIS,UKRI - AHRC,25/06/2018,Research Grant Expenditure,Networks & Workshops,National Maritime Museum,98206155,6030.71,Research Grant Expenditure,
BEIS,UKRI - AHRC,25/06/2018,Research Grant Expenditure,Care for the Future,University of Liverpool,98206156,15623.18,Research Grant Expenditure,
BEIS,UKRI - AHRC,25/06/2018,Research Grant Expenditure,Care for the Future,Queen Mary University of London,98206157,10433.40,Research Grant Expenditure,
BEIS,UKRI - AHRC,25/06/2018,Research Grant Expenditure,Networks & Workshops,The Open University,98206158,5002.06,Research Grant Expenditure,
BEIS,UKRI - AHRC,25/06/2018,Research Grant Expenditure,Networks & Workshops,University of Ulster,98206159,-5766.52,Research Grant Expenditure,
BEIS,UKRI - AHRC,25/06/2018,Research Grant Expenditure,Networks & Workshops,University of St Andrews,98206160,-5882.27,Research Grant Expenditure,
BEIS,UKRI - AHRC,25/06/2018,Research Grant Expenditure,Global Uncertainties Programme,University of East Anglia,98206161,-16118.56,Research Grant Expenditure,
BEIS,UKRI - AHRC,25/06/2018,Research Grant Expenditure,Global Uncertainties Programme,Leeds Beckett University,98206162,13453.45,Research Grant Expenditure,
BEIS,UKRI - AHRC,25/06/2018,Research Grant Expenditure,Global Uncertainties Programme,University of Ulster,98206163,13072.75,Research Grant Expenditure,
BEIS,UKRI - AHRC,25/06/2018,Research Grant Expenditure,Follow-on Fund,Queen's University Belfast GRANT,98206164,3985.94,Research Grant Expenditure,
BEIS,UKRI - AHRC,25/06/2018,Research Grant Expenditure,Newton Programme,University of Newcastle Upon Tyne,98206165,-2442.32,Research Grant Expenditure,
BEIS,UKRI - AHRC,25/06/2018,Research Grant Expenditure,Newton Programme,University of Leicester,98206166,-1044.37,Research Grant Expenditure,
BEIS,UKRI - AHRC,25/06/2018,Research Grant Expenditure,Newton Programme,University of Sheffield,98206167,-1599.03,Research Grant Expenditure,
BEIS,UKRI - AHRC,25/06/2018,Research Grant Expenditure,Research Grants,University of Brighton,98206168,29320.50,Research Grant Expenditure,
BEIS,UKRI - AHRC,25/06/2018,Research Grant Expenditure,Research Grants,University of Nottingham,98206169,-111963.51,Research Grant Expenditure,
BEIS,UKRI - AHRC,25/06/2018,Research Grant Expenditure,Networks & Workshops,University of East London,98206170,1082.15,Research Grant Expenditure,
BEIS,UKRI - AHRC,25/06/2018,Research Grant Expenditure,Networks & Workshops,University of Glasgow,98206171,4273.77,Research Grant Expenditure,
BEIS,UKRI - AHRC,25/06/2018,Research Grant Expenditure,Follow-on Fund,University of Oxford,98206172,19649.23,Research Grant Expenditure,
BEIS,UKRI - AHRC,25/06/2018,Research Grant Expenditure,Follow-on Fund,University of Warwick,98206173,16222.92,Research Grant Expenditure,
BEIS,UKRI - AHRC,25/06/2018,Research Grant Expenditure,Research Grants,Loughborough University,98206174,21703.50,Research Grant Expenditure,
BEIS,UKRI - AHRC,25/06/2018,Research Grant Expenditure,Global Challenges Research Fund (GCRF),University of Leeds,98206175,26875.43,Research Grant Expenditure,
BEIS,UKRI - AHRC,25/06/2018,Research Grant Expenditure,Global Challenges Research Fund (GCRF),Sheffield Hallam University,98206176,5832.29,Research Grant Expenditure,
BEIS,UKRI - AHRC,25/06/2018,Research Grant Expenditure,Follow-on Fund,University of Cambridge,98206177,20615.11,Research Grant Expenditure,
BEIS,UKRI - AHRC,25/06/2018,Research Grant Expenditure,Research Grants,University of Leeds,98206178,24029.39,Research Grant Expenditure,
BEIS,UKRI - AHRC,25/06/2018,Research Grant Expenditure,Global Challenges Research Fund (GCRF),University of Bristol GRANT,98206179,-3028.50,Research Grant Expenditure,
BEIS,UKRI - AHRC,25/06/2018,Research Grant Expenditure,Global Challenges Research Fund (GCRF),University of Glasgow,98206181,-5787.61,Research Grant Expenditure,
BEIS,UKRI - AHRC,25/06/2018,Research Grant Expenditure,Research Grants,University of Birmingham GRANT,98206182,17770.99,Research Grant Expenditure,
BEIS,UKRI - AHRC,25/06/2018,Research Grant Expenditure,Networks & Workshops,University of Central Lancashire,98206183,4759.43,Research Grant Expenditure,
BEIS,UKRI - AHRC,25/06/2018,Research Grant Expenditure,Networks & Workshops,University of Sussex,98206184,8139.73,Research Grant Expenditure,
BEIS,UKRI - AHRC,25/06/2018,Research Grant Expenditure,Networks & Workshops,Queen's University Belfast GRANT,98206185,8854.56,Research Grant Expenditure,
BEIS,UKRI - AHRC,25/06/2018,Research Grant Expenditure,Networks & Workshops,University of Leeds,98206186,1361.34,Research Grant Expenditure,
BEIS,UKRI - AHRC,25/06/2018,Research Grant Expenditure,Follow-on Fund,University of Edinburgh,98206187,-11064.81,Research Grant Expenditure,
BEIS,UKRI - AHRC,25/06/2018,Research Grant Expenditure,Networks & Workshops,Keele University,98206188,-3992.55,Research Grant Expenditure,
BEIS,UKRI - AHRC,25/06/2018,Research Grant Expenditure,Follow-on Fund,Sheffield Hallam University,98206189,-3917.80,Research Grant Expenditure,
BEIS,UKRI - AHRC,25/06/2018,Research Grant Expenditure,Follow-on Fund,Bath Spa University,98206190,-920.55,Research Grant Expenditure,
BEIS,UKRI - AHRC,25/06/2018,Research Grant Expenditure,Follow-on Fund,University of Sheffield,98206191,-0.01,Research Grant Expenditure,
BEIS,UKRI - AHRC,25/06/2018,Research Grant Expenditure,Follow-on Fund,Coventry University,98206192,-818.81,Research Grant Expenditure,
BEIS,UKRI - AHRC,25/06/2018,Research Grant Expenditure,RCUK Global Challenges Research Fund (RCUK GCRF),University of Leeds,98206193,-0.01,Research Grant Expenditure,
BEIS,UKRI - AHRC,25/06/2018,Research Grant Expenditure,Follow-on Fund,University of Sheffield,98206194,-16799.33,Research Grant Expenditure,
BEIS,UKRI - AHRC,25/06/2018,Research Grant Expenditure,Follow-on Fund,Bournemouth University GRANT,98206195,-7794.15,Research Grant Expenditure,
BEIS,UKRI - AHRC,25/06/2018,Research Grant Expenditure,Research Grants,University of Liverpool,98206196,8492.10,Research Grant Expenditure,
BEIS,UKRI - AHRC,25/06/2018,Research Grant Expenditure,Creative Economy,University of York,98206197,-46135.13,Research Grant Expenditure,
BEIS,UKRI - AHRC,25/06/2018,Research Grant Expenditure,Care for the Future,Goldsmiths College University of London,98206198,29768.24,Research Grant Expenditure,
BEIS,UKRI - AHRC,25/06/2018,Secondments,IS,Technology Strategy Board (Innovate UK),98222426,21588.17,Secondments,
BEIS,UKRI - AHRC,25/06/2018,Voluntary Deductions,Balance Sheet,Swindon Office Sports and Social Club,98202683,96.00,Voluntary Deductions,
BEIS,UKRI - AHRC,26/06/2018,Council & Committee Honoraria,New Programme Development,Mr Martin Johnes,98222193,230.00,Council & Committee Honoraria,
BEIS,UKRI - AHRC,26/06/2018,Council & Committee Honoraria,New Programme Development,Professor Maiken Umbach,98222195,170.00,Council & Committee Honoraria,
BEIS,UKRI - AHRC,26/06/2018,Fees (Including College Members),Industrial Strategy Challenge Fund (ISCF) - Creative Clusters,Non Employee Expenses Supplier,98222950,1200.00,Fees (Including College Members),
BEIS,UKRI - AHRC,26/06/2018,Fees (Including College Members),Industrial Strategy Challenge Fund (ISCF) - Creative Clusters,Non Employee Expenses Supplier,98222952,170.00,Fees (Including College Members),
BEIS,UKRI - AHRC,26/06/2018,Fees (Including College Members),Industrial Strategy Challenge Fund (ISCF) - Creative Clusters,Non Employee Expenses Supplier,98222953,1200.00,Fees (Including College Members),
BEIS,UKRI - AHRC,26/06/2018,Non-staff travel and subsistance,Industrial Strategy Challenge Fund (ISCF) - Creative Clusters,Non Employee Expenses Supplier,98222949,603.78,Non-staff travel and subsistance,
BEIS,UKRI - AHRC,26/06/2018,Non-staff travel and subsistance,Industrial Strategy Challenge Fund (ISCF) - Creative Clusters,Non Employee Expenses Supplier,98222951,514.40,Non-staff travel and subsistance,
BEIS,UKRI - AHRC,26/06/2018,Non-staff travel and subsistance,Business Process & Analysis,Non Employee Expenses Supplier,98222954,185.30,Non-staff travel and subsistance,
BEIS,UKRI - AHRC,26/06/2018,Non-staff travel and subsistance,New Programme Development,Non Employee Expenses Supplier,98222955,36.55,Non-staff travel and subsistance,
BEIS,UKRI - AHRC,26/06/2018,Non-staff travel and subsistance,New Programme Development,Non Employee Expenses Supplier,98222956,66.27,Non-staff travel and subsistance,
BEIS,UKRI - AHRC,26/06/2018,Non-staff travel and subsistance,New Programme Development,Non Employee Expenses Supplier,98222957,97.82,Non-staff travel and subsistance,
BEIS,UKRI - AHRC,26/06/2018,Non-staff travel and subsistance,New Programme Development,Non Employee Expenses Supplier,98222958,84.30,Non-staff travel and subsistance,
BEIS,UKRI - AHRC,26/06/2018,Non-staff travel and subsistance,Business Process & Analysis,Non Employee Expenses Supplier,98222959,77.80,Non-staff travel and subsistance,
BEIS,UKRI - AHRC,26/06/2018,Non-staff travel and subsistance,New Programme Development,Non Employee Expenses Supplier,98222960,142.50,Non-staff travel and subsistance,
BEIS,UKRI - AHRC,26/06/2018,Non-staff travel and subsistance,New Programme Development,Non Employee Expenses Supplier,98222961,171.29,Non-staff travel and subsistance,
BEIS,UKRI - AHRC,26/06/2018,Non-staff travel and subsistance,New Programme Development,Non Employee Expenses Supplier,98222962,253.99,Non-staff travel and subsistance,
BEIS,UKRI - AHRC,26/06/2018,Non-staff travel and subsistance,Industrial Strategy Challenge Fund (ISCF) - Creative Clusters,Non Employee Expenses Supplier,98222963,357.60,Non-staff travel and subsistance,
BEIS,UKRI - AHRC,26/06/2018,Non-staff travel and subsistance,New Programme Development,Non Employee Expenses Supplier,98222964,116.79,Non-staff travel and subsistance,
BEIS,UKRI - AHRC,26/06/2018,Non-staff travel and subsistance,New Programme Development,Non Employee Expenses Supplier,98222965,62.50,Non-staff travel and subsistance,
BEIS,UKRI - AHRC,27/06/2018,Health & Safety (inc. Medicals & Opticians),PSU JRS,Rapid Electronics Ltd,98223307,12.91,Health & Safety (inc. Medicals & Opticians),
BEIS,UKRI - AHRC,27/06/2018,T&S Overseas - Accommodation,JPI Cultural Heritage Project,Unspecified,98224358,9.22,T&S Overseas - Accommodation,
BEIS,UKRI - AHRC,27/06/2018,T&S Overseas - Public Transport,JPI Cultural Heritage Project,Unspecified,98224358,20.00,T&S Overseas - Public Transport,
BEIS,UKRI - AHRC,27/06/2018,T&S Overseas - Public Transport,JPI Cultural Heritage Project,Unspecified,98224358,96.60,T&S Overseas - Public Transport,
BEIS,UKRI - AHRC,27/06/2018,T&S Overseas - Subsistence,JPI Cultural Heritage Project,Unspecified,98224358,15.00,T&S Overseas - Subsistence,
BEIS,UKRI - AHRC,27/06/2018,T&S Overseas - Subsistence,JPI Cultural Heritage Project,Unspecified,98224358,95.07,T&S Overseas - Subsistence,
BEIS,UKRI - AHRC,27/06/2018,T&S Overseas - Subsistence,JPI Cultural Heritage Project,Unspecified,98224358,34.16,T&S Overseas - Subsistence,
BEIS,UKRI - AHRC,27/06/2018,T&S UK - Mileage,Communications,Unspecified,98224360,56.70,T&S UK - Mileage,
BEIS,UKRI - AHRC,27/06/2018,T&S UK - Other Charges,Communications,Unspecified,98224360,5.19,T&S UK - Other Charges,
BEIS,UKRI - AHRC,27/06/2018,T&S UK - Other Charges,Communications,Unspecified,98224361,1.00,T&S UK - Other Charges,
BEIS,UKRI - AHRC,27/06/2018,T&S UK - Parking Tolls Congestion Charges,Communications,Unspecified,98224360,8.00,T&S UK - Parking Tolls Congestion Charges,
BEIS,UKRI - AHRC,27/06/2018,T&S UK - Public Transport,"Languages,Literature & International Engagement",Unspecified,98224359,10.00,T&S UK - Public Transport,
BEIS,UKRI - AHRC,27/06/2018,T&S UK - Public Transport,Communications,Unspecified,98224360,19.80,T&S UK - Public Transport,
BEIS,UKRI - AHRC,27/06/2018,T&S UK - Subsistence,"Languages,Literature & International Engagement",Unspecified,98224359,6.25,T&S UK - Subsistence,
BEIS,UKRI - AHRC,27/06/2018,T&S UK - Subsistence,"Languages,Literature & International Engagement",Unspecified,98224359,11.75,T&S UK - Subsistence,
BEIS,UKRI - AHRC,27/06/2018,T&S UK - Subsistence,"Languages,Literature & International Engagement",Unspecified,98224359,5.00,T&S UK - Subsistence,
BEIS,UKRI - AHRC,27/06/2018,T&S UK - Subsistence,Communications,Unspecified,98224360,18.44,T&S UK - Subsistence,
BEIS,UKRI - AHRC,27/06/2018,T&S UK - Subsistence,Communications,Unspecified,98224360,11.70,T&S UK - Subsistence,
BEIS,UKRI - AHRC,27/06/2018,Telecoms - Calls Fax & internet Costs,Business Process & Analysis,Unspecified,98224362,47.25,Telecoms - Calls Fax & internet Costs,
BEIS,UKRI - AHRC,28/06/2018,Agency Staff,IS,Capita Business Services Ltd,98220009,2550.24,Agency Staff,
BEIS,UKRI - AHRC,28/06/2018,Conferences & Seminars,SMT,Centre for the Magic Arts Trading Ltd,98224847,1308.00,Conferences & Seminars,
BEIS,UKRI - AHRC,28/06/2018,Contract Staff,PSU Project Office,Hays Specialist Recruitment Ltd,98225820,2424.50,Contract Staff,
BEIS,UKRI - AHRC,28/06/2018,Contract Staff,PSU Project Office,Hays Specialist Recruitment Ltd,98225820,603.28,Contract Staff,
BEIS,UKRI - AHRC,28/06/2018,T&S UK - Public Transport,Communications,Unspecified,98225119,6.50,T&S UK - Public Transport,
BEIS,UKRI - AHRC,28/06/2018,T&S UK - Public Transport,Communications,Unspecified,98225119,133.60,T&S UK - Public Transport,
BEIS,UKRI - AHRC,28/06/2018,T&S UK - Subsistence,Communications,Unspecified,98225119,25.85,T&S UK - Subsistence,
BEIS,UKRI - AHRC,28/06/2018,T&S UK - Subsistence,Communications,Unspecified,98225119,8.07,T&S UK - Subsistence,
BEIS,UKRI - AHRC,28/06/2018,T&S UK - Subsistence,Communications,Unspecified,98225119,62.72,T&S UK - Subsistence,
BEIS,UKRI - AHRC,28/06/2018,T&S UK - Subsistence,Communications,Unspecified,98225119,15.00,T&S UK - Subsistence,
BEIS,UKRI - AHRC,28/06/2018,UK - Professional Memberships & Subscriptions,HR,Unspecified,98225118,159.00,UK - Professional Memberships & Subscriptions,
BEIS,UKRI - AHRC,28/06/2018,UK - Professional Memberships & Subscriptions,Communications,Unspecified,98225119,35.00,UK - Professional Memberships & Subscriptions,
BEIS,UKRI - AHRC,29/06/2018,Agency Staff,Finance,Hays Specialist Recruitment Ltd,98225830,2672.76,Agency Staff,
BEIS,UKRI - AHRC,29/06/2018,Recruitment Costs,HR,Agenda Resource Management Ltd,98226137,155.91,Recruitment Costs,
BEIS,UKRI - AHRC,29/06/2018,Recruitment Costs,Corporate Services,Agenda Resource Management Ltd,98226170,155.91,Recruitment Costs,
BEIS,UKRI - AHRC,29/06/2018,Recruitment Costs,HR,Agenda Resource Management Ltd,98226174,155.91,Recruitment Costs,
BEIS,UKRI - AHRC,29/06/2018,Recruitment Costs,HR,Agenda Resource Management Ltd,98226178,155.91,Recruitment Costs,
BEIS,UKRI - AHRC,29/06/2018,T&S UK - Mileage,PSU Project Office,Unspecified,98226517,37.80,T&S UK - Mileage,
BEIS,UKRI - AHRC,29/06/2018,T&S UK - Public Transport,Industrial Strategy Challenge Fund (ISCF) - Creative Clusters,Unspecified,98226519,46.00,T&S UK - Public Transport,
BEIS,UKRI - AHRC,29/06/2018,T&S UK - Subsistence,Industrial Strategy Challenge Fund (ISCF) - Creative Clusters,Unspecified,98226519,6.55,T&S UK - Subsistence,
BEIS,UKRI - AHRC,29/06/2018,T&S UK - Subsistence,Industrial Strategy Challenge Fund (ISCF) - Creative Clusters,Unspecified,98226519,25.00,T&S UK - Subsistence,
BEIS,UKRI - AHRC,29/06/2018,T&S UK - Subsistence,Industrial Strategy Challenge Fund (ISCF) - Creative Clusters,Unspecified,98226519,5.00,T&S UK - Subsistence,
BEIS,UKRI - BBSRC,01/06/2018,Conferences & Seminars,RISD - UKRO,University of Leeds,98194490,515.40,Conferences & Seminars,
BEIS,UKRI - BBSRC,01/06/2018,Conferences & Seminars,CIMG - External Relations,To the Point ltd,98194498,8489.00,Conferences & Seminars,
BEIS,UKRI - BBSRC,01/06/2018,General Building Maintenance,JBOS - Maintenance,Interior Design And Developments,98196459,5805.60,General Building Maintenance,
BEIS,UKRI - BBSRC,01/06/2018,General Building Maintenance,JBOS - Maintenance,Interior Design And Developments,98196459,684.00,General Building Maintenance,
BEIS,UKRI - BBSRC,01/06/2018,General Building Maintenance,JBOS - Maintenance,Interior Design And Developments,98196459,1824.00,General Building Maintenance,
BEIS,UKRI - BBSRC,01/06/2018,Mechanical & Electrical Maintenance,JBOS - Maintenance,AR Electrical (Swindon) Ltd,98194114,1800.00,Mechanical & Electrical Maintenance,
BEIS,UKRI - BBSRC,01/06/2018,Mechanical & Electrical Maintenance,JBOS - Maintenance,AR Electrical (Swindon) Ltd,98194116,1860.00,Mechanical & Electrical Maintenance,
BEIS,UKRI - BBSRC,01/06/2018,Mechanical & Electrical Maintenance,JBOS - Maintenance,AR Electrical (Swindon) Ltd,98194118,354.00,Mechanical & Electrical Maintenance,
BEIS,UKRI - BBSRC,01/06/2018,Mechanical & Electrical Maintenance,JBOS - Maintenance,AR Electrical (Swindon) Ltd,98194119,1380.00,Mechanical & Electrical Maintenance,
BEIS,UKRI - BBSRC,01/06/2018,Printing & Stationery,JBOS - Administration,Banner Group Ltd,98195350,1.03,Printing & Stationery,
BEIS,UKRI - BBSRC,01/06/2018,Recruitment Costs,PDG - Director,Warwick University Services Ltd,98197270,286.80,Recruitment Costs,
BEIS,UKRI - BBSRC,01/06/2018,Staff Training,JBOS Health and Safety,St John Ambulance Wiltshire,98194385,232.20,Staff Training,
BEIS,UKRI - BBSRC,01/06/2018,T&S UK - Public Transport,Innovation and Skills Group,Unspecified,98197505,8.80,T&S UK - Public Transport,
BEIS,UKRI - BBSRC,01/06/2018,T&S UK - Public Transport,Innovation and Skills Group,Unspecified,98197505,17.40,T&S UK - Public Transport,
BEIS,UKRI - BBSRC,01/06/2018,T&S UK - Public Transport,Innovation and Skills Group CDSU,Unspecified,98197506,38.00,T&S UK - Public Transport,
BEIS,UKRI - BBSRC,01/06/2018,T&S UK - Subsistence,Innovation and Skills Group CDSU,Unspecified,98197504,6.39,T&S UK - Subsistence,
BEIS,UKRI - BBSRC,01/06/2018,T&S UK - Subsistence,Innovation and Skills Group,Unspecified,98197505,64.15,T&S UK - Subsistence,
BEIS,UKRI - BBSRC,01/06/2018,T&S UK - Subsistence,Innovation and Skills Group,Unspecified,98197505,29.00,T&S UK - Subsistence,
BEIS,UKRI - BBSRC,01/06/2018,T&S UK - Subsistence,Innovation and Skills Group,Unspecified,98197505,10.00,T&S UK - Subsistence,
BEIS,UKRI - BBSRC,01/06/2018,T&S UK - Subsistence,Innovation and Skills Group,Unspecified,98197505,11.90,T&S UK - Subsistence,
BEIS,UKRI - BBSRC,01/06/2018,T&S UK - Subsistence,Innovation and Skills Group CDSU,Unspecified,98197506,5.00,T&S UK - Subsistence,
BEIS,UKRI - BBSRC,04/06/2018,Other Programme Costs,Science Group,Coworking Bath C.I.C,98198868,60.00,Other Programme Costs,
BEIS,UKRI - BBSRC,05/06/2018,Health & Safety (inc. Medicals & Opticians),JBOS Health and Safety,Posturite Ltd,98197445,23.95,Health & Safety (inc. Medicals & Opticians),
BEIS,UKRI - BBSRC,05/06/2018,Legal & Professional Services,PDG - Director,Dr Judith Bell,98187770,6240.00,Legal & Professional Services,
BEIS,UKRI - BBSRC,05/06/2018,Legal & Professional Services,PDG - Director,Professor Judi Marshall,98190672,1950.00,Legal & Professional Services,
BEIS,UKRI - BBSRC,05/06/2018,Recruitment Costs,PDG - Director,Onefix Recruitment Ltd,98195440,300.00,Recruitment Costs,
BEIS,UKRI - BBSRC,06/06/2018,Gas,JBOS - Maintenance,Corona Energy,98201320,6999.00,Gas,
BEIS,UKRI - BBSRC,06/06/2018,Health & Safety (inc. Medicals & Opticians),PDG - Director,BMI Healthcare Limited,98197645,360.50,Health & Safety (inc. Medicals & Opticians),
BEIS,UKRI - BBSRC,06/06/2018,Health & Safety (inc. Medicals & Opticians),JBOS Health and Safety,Abbey Business Equipment Ltd,98201301,360.00,Health & Safety (inc. Medicals & Opticians),
BEIS,UKRI - BBSRC,06/06/2018,Health & Safety (inc. Medicals & Opticians),JBOS Health and Safety,Abbey Business Equipment Ltd,98201301,120.00,Health & Safety (inc. Medicals & Opticians),
BEIS,UKRI - BBSRC,06/06/2018,Health & Safety (inc. Medicals & Opticians),PDG - Director,Abbey Business Equipment Ltd,98201301,240.00,Health & Safety (inc. Medicals & Opticians),
BEIS,UKRI - BBSRC,06/06/2018,Institute Grant Expenditure,IFR,Quadram Institute Biosocience,98199561,79880.25,Institute Grant Expenditure,
BEIS,UKRI - BBSRC,06/06/2018,Institute Grant Expenditure,IFR,Quadram Institute Biosocience,98199565,79400.00,Institute Grant Expenditure,
BEIS,UKRI - BBSRC,06/06/2018,Institute Grant Expenditure,IFR,Quadram Institute Biosocience,98199571,77120.00,Institute Grant Expenditure,
BEIS,UKRI - BBSRC,06/06/2018,Legal & Professional Services,CIMG - External Relations,GP Strategies Ltd,98180157,4834.92,Legal & Professional Services,
BEIS,UKRI - BBSRC,06/06/2018,Legal & Professional Services,PDG - Director,New Histories Ltd,98200071,1050.00,Legal & Professional Services,
BEIS,UKRI - BBSRC,06/06/2018,Other Programme Costs,Science Group,Rothamsted Research Ltd,98200070,4000.00,Other Programme Costs,
BEIS,UKRI - BBSRC,06/06/2018,Recruitment Costs,PDG - Director,Onefix Recruitment Ltd,98199821,636.00,Recruitment Costs,
BEIS,UKRI - BBSRC,06/06/2018,Storage & Archiving Costs,CIMG - Information Management,Iron Mountain (UK) PLC,98199984,545.89,Storage & Archiving Costs,
BEIS,UKRI - BBSRC,06/06/2018,Storage & Archiving Costs,PDG - JSS,Iron Mountain (UK) PLC,98200052,591.51,Storage & Archiving Costs,
BEIS,UKRI - BBSRC,06/06/2018,Subsidiaries Expenditure,Innovation and Skills Group,The University of Manchester,98158545,94316.50,Research Grant Expenditure,
BEIS,UKRI - BBSRC,06/06/2018,T&S UK - Mileage,CE - CPS,Unspecified,98202220,56.25,T&S UK - Mileage,
BEIS,UKRI - BBSRC,06/06/2018,T&S UK - Vehicle Hire,FG - Estates,Enterprise Rent-A-Car UK Ltd,98201267,110.35,T&S UK - Vehicle Hire,
BEIS,UKRI - BBSRC,06/06/2018,T&S UK - Vehicle Hire,Innovation and Skills Group,Enterprise Rent-A-Car UK Ltd,98201267,41.40,T&S UK - Vehicle Hire,
BEIS,UKRI - BBSRC,06/06/2018,T&S UK - Vehicle Hire,Science Group - Delivery Function,Enterprise Rent-A-Car UK Ltd,98201267,99.13,T&S UK - Vehicle Hire,
BEIS,UKRI - BBSRC,06/06/2018,VAT Input Tax Control (for UK VAT),Balance Sheet,Iron Mountain (UK) PLC,98200052,118.30,VAT Input Tax Control (for UK VAT),
BEIS,UKRI - BBSRC,07/06/2018,Health & Safety (inc. Medicals & Opticians),JBOS Health and Safety,AM Health & Safety Ltd,98187131,135.00,Health & Safety (inc. Medicals & Opticians),
BEIS,UKRI - BBSRC,07/06/2018,Health & Safety (inc. Medicals & Opticians),JBOS Health and Safety,AM Health & Safety Ltd,98195670,45.00,Health & Safety (inc. Medicals & Opticians),
BEIS,UKRI - BBSRC,07/06/2018,Health & Safety (inc. Medicals & Opticians),JBOS Health and Safety,Premier Farnell UK Ltd T/A Farnell Onecall,98199530,22.80,Health & Safety (inc. Medicals & Opticians),
BEIS,UKRI - BBSRC,07/06/2018,Health & Safety (inc. Medicals & Opticians),PDG - Director,AM Health & Safety Ltd,98199622,90.00,Health & Safety (inc. Medicals & Opticians),
BEIS,UKRI - BBSRC,07/06/2018,Institute Grant Expenditure,JIC,John Innes Centre,98199543,69760.00,Institute Grant Expenditure,
BEIS,UKRI - BBSRC,07/06/2018,Institute Grant Expenditure,JIC,John Innes Centre,98199550,25760.00,Institute Grant Expenditure,
BEIS,UKRI - BBSRC,07/06/2018,Institute Grant Expenditure,JIC,John Innes Centre,98199554,94200.00,Institute Grant Expenditure,
BEIS,UKRI - BBSRC,07/06/2018,Non-staff travel and subsistance,Science Group - Delivery Function,Non Employee Expenses Supplier,98202779,189.95,Non staff Travel and Subsistence,
BEIS,UKRI - BBSRC,07/06/2018,Non-staff travel and subsistance,CE - IRU,Non Employee Expenses Supplier,98205237,2118.25,Non staff Travel and Subsistence,
BEIS,UKRI - BBSRC,07/06/2018,Non-staff travel and subsistance,Science Group - Delivery Function,Non Employee Expenses Supplier,98205238,193.00,Non staff Travel and Subsistence,
BEIS,UKRI - BBSRC,07/06/2018,Other Clothing,JBOS - Administration,Arco Limited,98188859,194.81,Other Clothing,
BEIS,UKRI - BBSRC,07/06/2018,Other Programme Costs,Science Group,University of Liverpool,98202237,500.00,Other Programme Costs,
BEIS,UKRI - BBSRC,07/06/2018,Research Grant Expenditure,JIC,John Innes Centre,98201037,75000.00,Research Grant Expenditure,
BEIS,UKRI - BBSRC,07/06/2018,Research Institutes - Competitive Strategic Grant,JIC,John Innes Centre,98201032,41667.00,Research Institutes - Competitive Strategic Grant,
BEIS,UKRI - BBSRC,07/06/2018,Safety Materials & Equipment,JBOS - Maintenance,C3 Marketing Ltd,98196730,96.00,Purchase of non capital equipment,
BEIS,UKRI - BBSRC,07/06/2018,T&S UK - Public Transport,European Initiatives,Unspecified,98205482,33.80,T&S UK - Public Transport,
BEIS,UKRI - BBSRC,07/06/2018,T&S UK - Public Transport,Innovation and Skills Group,Unspecified,98205483,8.50,T&S UK - Public Transport,
BEIS,UKRI - BBSRC,07/06/2018,T&S UK - Subsistence,CE - IRU,Unspecified,98205482,3.55,T&S UK - Subsistence,
BEIS,UKRI - BBSRC,07/06/2018,T&S UK - Subsistence,European Initiatives,Unspecified,98205482,5.00,T&S UK - Subsistence,
BEIS,UKRI - BBSRC,07/06/2018,T&S UK - Subsistence,European Initiatives,Unspecified,98205482,2.75,T&S UK - Subsistence,
BEIS,UKRI - BBSRC,07/06/2018,T&S UK - Subsistence,Innovation and Skills Group,Unspecified,98205483,16.95,T&S UK - Subsistence,
BEIS,UKRI - BBSRC,07/06/2018,T&S UK - Subsistence,Innovation and Skills Group,Unspecified,98205483,5.00,T&S UK - Subsistence,
BEIS,UKRI - BBSRC,07/06/2018,T&S UK - Subsistence,Innovation and Skills Group,Unspecified,98205483,3.14,T&S UK - Subsistence,
BEIS,UKRI - BBSRC,07/06/2018,T&S UK - Vehicle Hire,Science Group - Delivery Function,Cross Street Cars,98205236,140.00,T&S UK - Vehicle Hire,
BEIS,UKRI - BBSRC,07/06/2018,T&S UK - Vehicle Hire,Science Group � Admin Function,Cross Street Cars,98205236,120.00,T&S UK - Vehicle Hire,
BEIS,UKRI - BBSRC,08/06/2018,Legal & Professional Services,FG - Estates,Perfect Circle JV Ltd,98205281,20893.98,Legal & Professional Services,
BEIS,UKRI - BBSRC,08/06/2018,Other Programme Costs,Science Group,Calder Conference Ltd,98182010,1224.00,Other Programme Costs,
BEIS,UKRI - BBSRC,08/06/2018,Other Programme Costs,Science Group,Calder Conference Ltd,98191843,5406.50,Other Programme Costs,
BEIS,UKRI - BBSRC,08/06/2018,Printing & Stationery,JBOS - Administration,Banner Group Ltd,98198774,4.01,Printing & Stationery,
BEIS,UKRI - BBSRC,08/06/2018,Printing & Stationery,JBOS - Administration,Banner Group Ltd,98198774,15.12,Printing & Stationery,
BEIS,UKRI - BBSRC,08/06/2018,Printing & Stationery,JBOS - Administration,Banner Group Ltd,98198774,3.84,Printing & Stationery,
BEIS,UKRI - BBSRC,08/06/2018,Printing & Stationery,JBOS - Administration,Banner Group Ltd,98198774,37.20,Printing & Stationery,
BEIS,UKRI - BBSRC,08/06/2018,Printing & Stationery,JBOS - Administration,Banner Group Ltd,98198774,48.96,Printing & Stationery,
BEIS,UKRI - BBSRC,08/06/2018,Printing & Stationery,JBOS - Administration,Banner Group Ltd,98198774,4.20,Printing & Stationery,
BEIS,UKRI - BBSRC,08/06/2018,Printing & Stationery,JBOS - Administration,Banner Group Ltd,98198774,3.00,Printing & Stationery,
BEIS,UKRI - BBSRC,08/06/2018,Printing & Stationery,JBOS - Administration,Banner Group Ltd,98198774,171.00,Printing & Stationery,
BEIS,UKRI - BBSRC,08/06/2018,Printing & Stationery,JBOS - Administration,Banner Group Ltd,98198774,6.00,Printing & Stationery,
BEIS,UKRI - BBSRC,08/06/2018,T&S Overseas - Accommodation,Science Group,Unspecified,98205481,10.40,T&S Overseas - Accommodation,
BEIS,UKRI - BBSRC,08/06/2018,T&S Overseas - Other Charges,CE - IRU,Unspecified,98206494,6.48,T&S Overseas - Other Charges,
BEIS,UKRI - BBSRC,08/06/2018,T&S Overseas - Other Charges,CE - IRU,Unspecified,98206494,6.00,T&S Overseas - Other Charges,
BEIS,UKRI - BBSRC,08/06/2018,T&S Overseas - Public Transport,Science Group,Unspecified,98205481,25.38,T&S Overseas - Public Transport,
BEIS,UKRI - BBSRC,08/06/2018,T&S Overseas - Subsistence,Science Group,Unspecified,98205481,15.00,T&S Overseas - Subsistence,
BEIS,UKRI - BBSRC,08/06/2018,T&S Overseas - Subsistence,Science Group,Unspecified,98205481,14.73,T&S Overseas - Subsistence,
BEIS,UKRI - BBSRC,08/06/2018,T&S Overseas - Subsistence,CE - IRU,Unspecified,98206494,50.00,T&S Overseas - Subsistence,
BEIS,UKRI - BBSRC,08/06/2018,T&S UK - Accommodation,Science Group - Delivery Function,Barnes Coaches Ltd,98194059,295.00,T&S UK - Vehicle Hire,
BEIS,UKRI - BBSRC,08/06/2018,T&S UK - Accommodation,Science Group - Delivery Function,Barnes Coaches Ltd,98196675,445.00,T&S UK - Vehicle Hire,
BEIS,UKRI - BBSRC,08/06/2018,T&S UK - Public Transport,Innovation and Skills Group,Unspecified,98206490,12.00,T&S UK - Public Transport,
BEIS,UKRI - BBSRC,08/06/2018,T&S UK - Public Transport,Innovation and Skills Group,Unspecified,98206490,15.00,T&S UK - Public Transport,
BEIS,UKRI - BBSRC,08/06/2018,T&S UK - Public Transport,Innovation and Skills Group,Unspecified,98206490,10.40,T&S UK - Public Transport,
BEIS,UKRI - BBSRC,08/06/2018,T&S UK - Subsistence,Science Group,Unspecified,98205480,10.00,T&S UK - Subsistence,
BEIS,UKRI - BBSRC,08/06/2018,T&S UK - Subsistence,Science Group,Unspecified,98205480,5.00,T&S UK - Subsistence,
BEIS,UKRI - BBSRC,08/06/2018,T&S UK - Subsistence,Innovation and Skills Group,Unspecified,98206490,21.00,T&S UK - Subsistence,
BEIS,UKRI - BBSRC,08/06/2018,T&S UK - Subsistence,Innovation and Skills Group,Unspecified,98206490,7.95,T&S UK - Subsistence,
BEIS,UKRI - BBSRC,08/06/2018,T&S UK - Subsistence,Innovation and Skills Group,Unspecified,98206490,5.00,T&S UK - Subsistence,
BEIS,UKRI - BBSRC,08/06/2018,Water,JBOS - Maintenance,Castle Water Ltd,98206271,2035.64,Water,
BEIS,UKRI - BBSRC,08/06/2018,Water,JBOS - Maintenance,Castle Water Ltd,98206273,1929.81,Water,
BEIS,UKRI - BBSRC,11/06/2018,Legal & Professional Services,PDG - JSS,Logiqwest Ltd,98206551,2361.14,Legal & Professional Services,
BEIS,UKRI - BBSRC,11/06/2018,Printing & Stationery,CE - Chief Executive,Banner Group Ltd,98208032,235.87,Purchase of non capital equipment,
BEIS,UKRI - BBSRC,11/06/2018,Safety Materials & Equipment,JBOS Health and Safety,Banner Group Ltd,98198775,2.16,Safety Materials & Equipment,
BEIS,UKRI - BBSRC,11/06/2018,Safety Materials & Equipment,JBOS Health and Safety,Banner Group Ltd,98198775,9.84,Safety Materials & Equipment,
BEIS,UKRI - BBSRC,11/06/2018,Safety Materials & Equipment,JBOS Health and Safety,Banner Group Ltd,98198775,4.18,Safety Materials & Equipment,
BEIS,UKRI - BBSRC,11/06/2018,Subsidiaries Expenditure,Innovation and Skills Group,University of Southampton,98169165,125000.00,Research Grant Expenditure,
BEIS,UKRI - BBSRC,11/06/2018,Subsidiaries Expenditure,Innovation and Skills Group,University of Southampton,98177213,-125000.00,Research Grant Expenditure,
BEIS,UKRI - BBSRC,11/06/2018,T&S UK - Subsistence,CE - Chief Executive,Unspecified,98206899,35.00,T&S UK - Subsistence,
BEIS,UKRI - BBSRC,11/06/2018,T&S UK - Subsistence,FG - Estates,Unspecified,98206900,7.31,T&S UK - Subsistence,
BEIS,UKRI - BBSRC,11/06/2018,T&S UK - Subsistence,FG - Estates,Unspecified,98206900,7.18,T&S UK - Subsistence,
BEIS,UKRI - BBSRC,11/06/2018,T&S UK - Subsistence,FG - Estates,Unspecified,98206900,12.89,T&S UK - Subsistence,
BEIS,UKRI - BBSRC,11/06/2018,T&S UK - Vehicle Hire,FG - Estates,Unspecified,98206900,40.81,T&S UK - Vehicle Hire,
BEIS,UKRI - BBSRC,12/06/2018,Non-Capital Building Construction,JBOS - Maintenance,Mitie Technical Facilities Management Ltd,98206904,14581.30,Non-Capital Building Construction ,
BEIS,UKRI - BBSRC,12/06/2018,Non-staff travel and subsistance,Innovation and Skills Group CDSU,Non Employee Expenses Supplier,98210543,177.50,Non staff Travel and Subsistence,
BEIS,UKRI - BBSRC,12/06/2018,Non-staff travel and subsistance,Innovation and Skills Group CDSU,Non Employee Expenses Supplier,98210544,50.60,Non staff Travel and Subsistence,
BEIS,UKRI - BBSRC,12/06/2018,Non-staff travel and subsistance,Innovation and Skills Group CDSU,Non Employee Expenses Supplier,98210545,211.50,Non staff Travel and Subsistence,
BEIS,UKRI - BBSRC,12/06/2018,Non-staff travel and subsistance,Innovation and Skills Group CDSU,Non Employee Expenses Supplier,98210546,81.10,Non staff Travel and Subsistence,
BEIS,UKRI - BBSRC,12/06/2018,Non-staff travel and subsistance,Innovation and Skills Group CDSU,Non Employee Expenses Supplier,98210547,37.70,Non staff Travel and Subsistence,
BEIS,UKRI - BBSRC,12/06/2018,Non-staff travel and subsistance,Innovation and Skills Group CDSU,Non Employee Expenses Supplier,98210548,352.19,Non staff Travel and Subsistence,
BEIS,UKRI - BBSRC,12/06/2018,Non-staff travel and subsistance,Innovation and Skills Group CDSU,Non Employee Expenses Supplier,98210549,32.50,Non staff Travel and Subsistence,
BEIS,UKRI - BBSRC,12/06/2018,Non-staff travel and subsistance,Innovation and Skills Group CDSU,Non Employee Expenses Supplier,98210550,57.00,Non staff Travel and Subsistence,
BEIS,UKRI - BBSRC,12/06/2018,Non-staff travel and subsistance,Science Group - Delivery Function,Non Employee Expenses Supplier,98210551,94.32,Non staff Travel and Subsistence,
BEIS,UKRI - BBSRC,12/06/2018,Non-staff travel and subsistance,Science Group - Delivery Function,Non Employee Expenses Supplier,98210552,269.35,Non staff Travel and Subsistence,
BEIS,UKRI - BBSRC,12/06/2018,Non-staff travel and subsistance,Science Group - Delivery Function,Non Employee Expenses Supplier,98210553,343.06,Non staff Travel and Subsistence,
BEIS,UKRI - BBSRC,12/06/2018,Non-staff travel and subsistance,Science Group - Delivery Function,Non Employee Expenses Supplier,98210554,106.61,Non staff Travel and Subsistence,
BEIS,UKRI - BBSRC,12/06/2018,Non-staff travel and subsistance,Science Group - Delivery Function,Non Employee Expenses Supplier,98210555,49.60,Non staff Travel and Subsistence,
BEIS,UKRI - BBSRC,12/06/2018,Non-staff travel and subsistance,Science Group - Delivery Function,Non Employee Expenses Supplier,98210556,151.00,Non staff Travel and Subsistence,
BEIS,UKRI - BBSRC,12/06/2018,Non-staff travel and subsistance,European Initiatives,Non Employee Expenses Supplier,98210557,518.76,Non staff Travel and Subsistence,
BEIS,UKRI - BBSRC,12/06/2018,Non-staff travel and subsistance,RISD - UKRO,Non Employee Expenses Supplier,98210558,218.66,Non staff Travel and Subsistence,
BEIS,UKRI - BBSRC,12/06/2018,Non-staff travel and subsistance,Science Group - Delivery Function,Non Employee Expenses Supplier,98210559,218.73,Non staff Travel and Subsistence,
BEIS,UKRI - BBSRC,12/06/2018,Non-staff travel and subsistance,Innovation and Skills Group CDSU,Non Employee Expenses Supplier,98210560,174.80,Non staff Travel and Subsistence,
BEIS,UKRI - BBSRC,12/06/2018,Non-staff travel and subsistance,Innovation and Skills Group CDSU,Non Employee Expenses Supplier,98210561,47.50,Non staff Travel and Subsistence,
BEIS,UKRI - BBSRC,12/06/2018,Non-staff travel and subsistance,Innovation and Skills Group CDSU,Non Employee Expenses Supplier,98210562,28.00,Non staff Travel and Subsistence,
BEIS,UKRI - BBSRC,12/06/2018,Non-staff travel and subsistance,Innovation and Skills Group CDSU,Non Employee Expenses Supplier,98210563,51.70,Non staff Travel and Subsistence,
BEIS,UKRI - BBSRC,12/06/2018,Non-staff travel and subsistance,Innovation and Skills Group CDSU,Non Employee Expenses Supplier,98210564,157.40,Non staff Travel and Subsistence,
BEIS,UKRI - BBSRC,12/06/2018,Non-staff travel and subsistance,Innovation and Skills Group CDSU,Non Employee Expenses Supplier,98210565,59.10,Non staff Travel and Subsistence,
BEIS,UKRI - BBSRC,12/06/2018,Non-staff travel and subsistance,RISD - UKRO,Non Employee Expenses Supplier,98210566,225.90,Non staff Travel and Subsistence,
BEIS,UKRI - BBSRC,12/06/2018,Non-staff travel and subsistance,Innovation and Skills Group CDSU,Non Employee Expenses Supplier,98210567,73.10,Non staff Travel and Subsistence,
BEIS,UKRI - BBSRC,12/06/2018,Non-staff travel and subsistance,Innovation and Skills Group CDSU,Non Employee Expenses Supplier,98210568,390.03,Non staff Travel and Subsistence,
BEIS,UKRI - BBSRC,12/06/2018,Non-staff travel and subsistance,Innovation and Skills Group CDSU,Non Employee Expenses Supplier,98210569,218.90,Non staff Travel and Subsistence,
BEIS,UKRI - BBSRC,12/06/2018,Non-staff travel and subsistance,Science Group - Delivery Function,Non Employee Expenses Supplier,98210570,276.79,Non staff Travel and Subsistence,
BEIS,UKRI - BBSRC,12/06/2018,Non-staff travel and subsistance,Science Group - Delivery Function,Non Employee Expenses Supplier,98210571,516.39,Non staff Travel and Subsistence,
BEIS,UKRI - BBSRC,12/06/2018,Non-staff travel and subsistance,Science Group - Delivery Function,Non Employee Expenses Supplier,98210572,172.40,Non staff Travel and Subsistence,
BEIS,UKRI - BBSRC,12/06/2018,Non-staff travel and subsistance,Science Group - Delivery Function,Non Employee Expenses Supplier,98210573,132.70,Non staff Travel and Subsistence,
BEIS,UKRI - BBSRC,12/06/2018,Non-staff travel and subsistance,CE - CPS,Non Employee Expenses Supplier,98210574,30.55,Non staff Travel and Subsistence,
BEIS,UKRI - BBSRC,12/06/2018,Non-staff travel and subsistance,CE - CPS,Non Employee Expenses Supplier,98210575,254.00,Non staff Travel and Subsistence,
BEIS,UKRI - BBSRC,12/06/2018,T&S Overseas - Other Charges,European Initiatives,Unspecified,98210974,1.44,T&S Overseas - Other Charges,
BEIS,UKRI - BBSRC,12/06/2018,T&S Overseas - Public Transport,European Initiatives,Unspecified,98210974,9.96,T&S Overseas - Public Transport,
BEIS,UKRI - BBSRC,12/06/2018,T&S Overseas - Public Transport,European Initiatives,Unspecified,98210974,15.00,T&S Overseas - Public Transport,
BEIS,UKRI - BBSRC,12/06/2018,T&S Overseas - Subsistence,European Initiatives,Unspecified,98210974,5.00,T&S Overseas - Subsistence,
BEIS,UKRI - BBSRC,12/06/2018,T&S Overseas - Subsistence,European Initiatives,Unspecified,98210974,4.45,T&S Overseas - Subsistence,
BEIS,UKRI - BBSRC,12/06/2018,T&S Overseas - Subsistence,European Initiatives,Unspecified,98210974,10.49,T&S Overseas - Subsistence,
BEIS,UKRI - BBSRC,12/06/2018,T&S Overseas - Subsistence,European Initiatives,Unspecified,98210974,6.47,T&S Overseas - Subsistence,
BEIS,UKRI - BBSRC,12/06/2018,T&S UK - Public Transport,FG - Estates,Unspecified,98210971,57.10,T&S UK - Public Transport,
BEIS,UKRI - BBSRC,12/06/2018,T&S UK - Public Transport,FG - RCUK Assurance,Unspecified,98210973,21.00,T&S UK - Public Transport,
BEIS,UKRI - BBSRC,12/06/2018,T&S UK - Public Transport,European Initiatives,Unspecified,98210975,6.00,T&S UK - Public Transport,
BEIS,UKRI - BBSRC,12/06/2018,T&S UK - Subsistence,FG - RCUK Assurance,Unspecified,98210973,4.30,T&S UK - Subsistence,
BEIS,UKRI - BBSRC,12/06/2018,T&S UK - Subsistence,FG - RCUK Assurance,Unspecified,98210973,3.99,T&S UK - Subsistence,
BEIS,UKRI - BBSRC,12/06/2018,T&S UK - Subsistence,FG - RCUK Assurance,Unspecified,98210973,15.00,T&S UK - Subsistence,
BEIS,UKRI - BBSRC,12/06/2018,T&S UK - Vehicle Hire,FG - Director,Barnes Coaches Ltd,98205556,645.00,T&S UK - Vehicle Hire,
BEIS,UKRI - BBSRC,13/06/2018,Conferences & Seminars,CIMG - Information Management,PDP Companies Ltd,98213363,1434.00,Conferences & Seminars,
BEIS,UKRI - BBSRC,13/06/2018,Health & Safety (inc. Medicals & Opticians),CIMG - External Relations,Unspecified,98213617,100.00,Health & Safety (inc. Medicals & Opticians),
BEIS,UKRI - BBSRC,13/06/2018,Mechanical & Electrical Maintenance,JBOS - Maintenance,Mitie Technical Facilities Management Ltd,98213538,7834.67,Mechanical & Electrical Maintenance,
BEIS,UKRI - BBSRC,13/06/2018,Meetings & Catering,European Initiatives,Delijious SA T/A Bon,98205294,146.90,Meetings & Catering,
BEIS,UKRI - BBSRC,13/06/2018,Non-staff travel and subsistance,Science Group,ETH Zurich,98205506,390.62,Non staff Travel and Subsistence,
BEIS,UKRI - BBSRC,13/06/2018,Non-staff travel and subsistance,European Initiatives,Non Employee Expenses Supplier,98206682,1799.27,Non staff Travel and Subsistence,
BEIS,UKRI - BBSRC,13/06/2018,Non-staff travel and subsistance,Science Group,Non Employee Expenses Supplier,98206683,1238.90,Non staff Travel and Subsistence,
BEIS,UKRI - BBSRC,13/06/2018,Non-staff travel and subsistance,Science Group,Non Employee Expenses Supplier,98206684,379.55,Non staff Travel and Subsistence,
BEIS,UKRI - BBSRC,13/06/2018,Staff Training,PDG - Director,Roffey Park Institute Ltd,98207189,642.60,Staff Training,
BEIS,UKRI - BBSRC,13/06/2018,T&S UK - Mileage,Science Group,Unspecified,98213611,45.45,T&S UK - Mileage,
BEIS,UKRI - BBSRC,13/06/2018,T&S UK - Other Charges,FG - RCUK Assurance,Unspecified,98213615,3.50,T&S UK - Other Charges,
BEIS,UKRI - BBSRC,13/06/2018,T&S UK - Other Charges,Grants Finance Management Team,Unspecified,98213621,2.90,T&S UK - Other Charges,
BEIS,UKRI - BBSRC,13/06/2018,T&S UK - Public Transport,Science Group,Unspecified,98213611,2.30,T&S UK - Public Transport,
BEIS,UKRI - BBSRC,13/06/2018,T&S UK - Public Transport,Science Group,Unspecified,98213611,5.95,T&S UK - Public Transport,
BEIS,UKRI - BBSRC,13/06/2018,T&S UK - Public Transport,CE - Chief Executive,Unspecified,98213612,77.40,T&S UK - Public Transport,
BEIS,UKRI - BBSRC,13/06/2018,T&S UK - Public Transport,CE - Chief Executive,Unspecified,98213612,40.00,T&S UK - Public Transport,
BEIS,UKRI - BBSRC,13/06/2018,T&S UK - Public Transport,CIMG - Director,Unspecified,98213619,7.00,T&S UK - Public Transport,
BEIS,UKRI - BBSRC,13/06/2018,T&S UK - Public Transport,FG - RCUK Assurance,Unspecified,98213620,94.70,T&S UK - Public Transport,
BEIS,UKRI - BBSRC,13/06/2018,T&S UK - Subsistence,Science Group,Unspecified,98213611,25.52,T&S UK - Subsistence,
BEIS,UKRI - BBSRC,13/06/2018,T&S UK - Subsistence,Science Group,Unspecified,98213611,5.29,T&S UK - Subsistence,
BEIS,UKRI - BBSRC,13/06/2018,T&S UK - Subsistence,Science Group,Unspecified,98213611,15.00,T&S UK - Subsistence,
BEIS,UKRI - BBSRC,13/06/2018,T&S UK - Subsistence,Science Group,Unspecified,98213611,2.93,T&S UK - Subsistence,
BEIS,UKRI - BBSRC,13/06/2018,T&S UK - Subsistence,CE - Chief Executive,Unspecified,98213612,4.40,T&S UK - Subsistence,
BEIS,UKRI - BBSRC,13/06/2018,T&S UK - Subsistence,CE - Chief Executive,Unspecified,98213612,38.85,T&S UK - Subsistence,
BEIS,UKRI - BBSRC,13/06/2018,T&S UK - Subsistence,CE - Chief Executive,Unspecified,98213612,4.20,T&S UK - Subsistence,
BEIS,UKRI - BBSRC,13/06/2018,T&S UK - Subsistence,FG - Estates,Unspecified,98213614,47.95,T&S UK - Subsistence,
BEIS,UKRI - BBSRC,13/06/2018,T&S UK - Subsistence,FG - Estates,Unspecified,98213614,61.57,T&S UK - Subsistence,
BEIS,UKRI - BBSRC,13/06/2018,T&S UK - Subsistence,FG - Estates,Unspecified,98213614,7.58,T&S UK - Subsistence,
BEIS,UKRI - BBSRC,13/06/2018,T&S UK - Subsistence,FG - Estates,Unspecified,98213614,31.96,T&S UK - Subsistence,
BEIS,UKRI - BBSRC,13/06/2018,T&S UK - Subsistence,FG - Estates,Unspecified,98213614,4.09,T&S UK - Subsistence,
BEIS,UKRI - BBSRC,13/06/2018,T&S UK - Subsistence,FG - RCUK Assurance,Unspecified,98213615,5.88,T&S UK - Subsistence,
BEIS,UKRI - BBSRC,13/06/2018,T&S UK - Subsistence,FG - RCUK Assurance,Unspecified,98213615,6.69,T&S UK - Subsistence,
BEIS,UKRI - BBSRC,13/06/2018,T&S UK - Subsistence,CIMG - Director,Unspecified,98213619,10.00,T&S UK - Subsistence,
BEIS,UKRI - BBSRC,13/06/2018,T&S UK - Subsistence,Grants Finance Management Team,Unspecified,98213621,4.50,T&S UK - Subsistence,
BEIS,UKRI - BBSRC,13/06/2018,T&S UK - Vehicle Hire,CE - IRU,Enterprise Rent-A-Car UK Ltd,98212408,64.51,T&S UK - Vehicle Hire,
BEIS,UKRI - BBSRC,13/06/2018,T&S UK - Vehicle Hire,FG - Estates,Enterprise Rent-A-Car UK Ltd,98212408,272.63,T&S UK - Vehicle Hire,
BEIS,UKRI - BBSRC,13/06/2018,T&S UK - Vehicle Hire,JBOS - Administration,Enterprise Rent-A-Car UK Ltd,98212408,42.43,T&S UK - Vehicle Hire,
BEIS,UKRI - BBSRC,13/06/2018,T&S UK - Vehicle Hire,FG - Estates,Unspecified,98213614,356.32,T&S UK - Vehicle Hire,
BEIS,UKRI - BBSRC,13/06/2018,T&S UK - Vehicle Hire,FG - Estates,Unspecified,98213614,32.17,T&S UK - Vehicle Hire,
BEIS,UKRI - BBSRC,14/06/2018,Gas,JBOS - Maintenance,Corona Energy,98213795,1407.38,Gas,
BEIS,UKRI - BBSRC,14/06/2018,Legal & Professional Services,FG - Estates,Powis Hughes Ltd,98212869,345.08,Legal & Professional Services,
BEIS,UKRI - BBSRC,14/06/2018,Legal & Professional Services,FG - Accounts & Business Planning,Powis Hughes Ltd,98214049,39.85,Legal & Professional Services,
BEIS,UKRI - BBSRC,14/06/2018,Legal & Professional Services,FG - Estates,Powis Hughes Ltd,98214050,159.41,Legal & Professional Services,
BEIS,UKRI - BBSRC,14/06/2018,Other Programme Costs,CE - CPS,Calder Conference Ltd,98212798,1083.90,Other Programme Costs,
BEIS,UKRI - BBSRC,14/06/2018,Printing & Stationery,JBOS - Administration,Banner Group Ltd,98209010,53.58,Printing & Stationery,
BEIS,UKRI - BBSRC,14/06/2018,Recruitment Costs,PDG - Director,Agenda Resource Management Ltd,98212897,155.91,Recruitment Costs,
BEIS,UKRI - BBSRC,14/06/2018,Recruitment Costs,PDG - Director,Agenda Resource Management Ltd,98212899,155.91,Recruitment Costs,
BEIS,UKRI - BBSRC,14/06/2018,Recruitment Costs,PDG - Director,Agenda Resource Management Ltd,98212901,155.91,Recruitment Costs,
BEIS,UKRI - BBSRC,14/06/2018,Union Deductions,Balance Sheet,PCS Union,98207614,179.27,Union Deductions,
BEIS,UKRI - BBSRC,14/06/2018,Voluntary Deductions,Balance Sheet,Civil Service Benevolent Fund,98207613,2.00,Voluntary Deductions,
BEIS,UKRI - BBSRC,14/06/2018,Voluntary Deductions,Balance Sheet,Ramsden Fund,98207621,230.66,Voluntary Deductions,
BEIS,UKRI - BBSRC,15/06/2018,Computer Hardware,CIMG - Information Systems,UK Shared Business Services Ltd,98174096,11053.22,Computer Hardware,
BEIS,UKRI - BBSRC,15/06/2018,Computer Software Licences,CIMG - Information Systems,UK Shared Business Services Ltd,98174096,2126.40,Computer Software Licences,
BEIS,UKRI - BBSRC,15/06/2018,Computing Consumables,CIMG - Information Systems,UK Shared Business Services Ltd,98174096,888.48,Computing Consumables,
BEIS,UKRI - BBSRC,15/06/2018,Health & Safety (inc. Medicals & Opticians),JBOS Health and Safety,Posturite Ltd,98214272,98.24,Health & Safety (inc. Medicals & Opticians),
BEIS,UKRI - BBSRC,15/06/2018,Health & Safety (inc. Medicals & Opticians),PDG - Director,Banner Group Ltd,98215241,94.80,Health & Safety (inc. Medicals & Opticians),
BEIS,UKRI - BBSRC,15/06/2018,Institute Grant Expenditure,JIC,John Innes Centre,98200014,198400.00,Institute Grant Expenditure,
BEIS,UKRI - BBSRC,15/06/2018,Institute Grant Expenditure,JIC,John Innes Centre,98201195,109680.00,Institute Grant Expenditure,
BEIS,UKRI - BBSRC,15/06/2018,Institute Grant Expenditure,Rothamsted Research,Rothamsted Research Ltd,98207689,49250.00,Institute Grant Expenditure,
BEIS,UKRI - BBSRC,15/06/2018,International Awards - Non Capital,Innovation and Skills Group,Economic & Social Research Council,98207980,55475.70,International Awards - Non Capital,
BEIS,UKRI - BBSRC,15/06/2018,International Awards - Non Capital,Innovation and Skills Group,Economic & Social Research Council,98207992,115969.91,International Awards - Non Capital,
BEIS,UKRI - BBSRC,15/06/2018,Other Programme Costs,FG - Accounts & Business Planning,Engineering & Physical Sciences Research Council,98199827,127448.58,Other Programme Costs,
BEIS,UKRI - BBSRC,15/06/2018,Other Programme Costs,Science Group,Engineering & Physical Sciences Research Council,98214129,6323.65,Other Programme Costs,
BEIS,UKRI - BBSRC,15/06/2018,Other Programme Costs,Science Group,Engineering & Physical Sciences Research Council,98214137,7736.44,Other Programme Costs,
BEIS,UKRI - BBSRC,15/06/2018,Recruitment Costs,PDG - Director,UK Shared Business Services Ltd,98213322,32.43,Recruitment Costs,
BEIS,UKRI - BBSRC,15/06/2018,Research Grant Expenditure,Science Group,Economic & Social Research Council,98207234,10657.30,Research Grant Expenditure,
BEIS,UKRI - BBSRC,15/06/2018,Research Grant Expenditure,Science Group,Economic & Social Research Council,98207921,6584.54,Research Grant Expenditure,
BEIS,UKRI - BBSRC,15/06/2018,Research Grant Expenditure,Science Group,Economic & Social Research Council,98207930,5080.73,Research Grant Expenditure,
BEIS,UKRI - BBSRC,15/06/2018,Research Grant Expenditure,Science Group,Economic & Social Research Council,98207940,9809.94,Research Grant Expenditure,
BEIS,UKRI - BBSRC,15/06/2018,Research Grant Expenditure,Science Group,Economic & Social Research Council,98210538,11885.89,Research Grant Expenditure,
BEIS,UKRI - BBSRC,15/06/2018,Research Grant Expenditure,FG - Accounts & Business Planning,Engineering & Physical Sciences Research Council,98212951,35518.52,Research Grant Expenditure,
BEIS,UKRI - BBSRC,15/06/2018,Research Grant Expenditure,Science Group,Engineering & Physical Sciences Research Council,98214009,9524.16,Research Grant Expenditure,
BEIS,UKRI - BBSRC,15/06/2018,Research Grant Expenditure,Science Group,Engineering & Physical Sciences Research Council,98214012,4428.81,Research Grant Expenditure,
BEIS,UKRI - BBSRC,15/06/2018,Research Grant Expenditure,Science Group,Engineering & Physical Sciences Research Council,98214025,2856.52,Research Grant Expenditure,
BEIS,UKRI - BBSRC,15/06/2018,Research Grant Expenditure,Science Group,Engineering & Physical Sciences Research Council,98214040,10006.28,Research Grant Expenditure,
BEIS,UKRI - BBSRC,15/06/2018,Research Grant Expenditure,Science Group,Engineering & Physical Sciences Research Council,98214043,12959.87,Research Grant Expenditure,
BEIS,UKRI - BBSRC,15/06/2018,Research Grant Expenditure,Innovation and Skills Group,Engineering & Physical Sciences Research Council,98214046,73032.60,Research Grant Expenditure,
BEIS,UKRI - BBSRC,15/06/2018,Research Grant Expenditure,Innovation and Skills Group,Engineering & Physical Sciences Research Council,98214047,40143.70,Research Grant Expenditure,
BEIS,UKRI - BBSRC,15/06/2018,Research Grant Expenditure,Science Group,Engineering & Physical Sciences Research Council,98214061,6795.31,Research Grant Expenditure,
BEIS,UKRI - BBSRC,15/06/2018,Research Grant Expenditure,Innovation and Skills Group,Engineering & Physical Sciences Research Council,98214075,11846.67,Research Grant Expenditure,
BEIS,UKRI - BBSRC,15/06/2018,Research Grant Expenditure,Innovation and Skills Group,Engineering & Physical Sciences Research Council,98214078,77943.28,Research Grant Expenditure,
BEIS,UKRI - BBSRC,15/06/2018,Research Grant Expenditure,Innovation and Skills Group,Engineering & Physical Sciences Research Council,98214084,47002.22,Research Grant Expenditure,
BEIS,UKRI - BBSRC,15/06/2018,Research Grant Expenditure,Innovation and Skills Group,Engineering & Physical Sciences Research Council,98214086,59143.96,Research Grant Expenditure,
BEIS,UKRI - BBSRC,15/06/2018,Research Grant Expenditure,Science Group,Engineering & Physical Sciences Research Council,98214091,9353.89,Research Grant Expenditure,
BEIS,UKRI - BBSRC,15/06/2018,Research Grant Expenditure,Innovation and Skills Group,Engineering & Physical Sciences Research Council,98214094,84460.81,Research Grant Expenditure,
BEIS,UKRI - BBSRC,15/06/2018,Research Grant Expenditure,Science Group,Engineering & Physical Sciences Research Council,98214097,3340.53,Research Grant Expenditure,
BEIS,UKRI - BBSRC,15/06/2018,Research Grant Expenditure,Science Group,Engineering & Physical Sciences Research Council,98214098,13579.80,Research Grant Expenditure,
BEIS,UKRI - BBSRC,15/06/2018,Research Grant Expenditure,Innovation and Skills Group,Engineering & Physical Sciences Research Council,98214100,3001.48,Research Grant Expenditure,
BEIS,UKRI - BBSRC,15/06/2018,Research Grant Expenditure,Science Group,Engineering & Physical Sciences Research Council,98214103,15281.26,Research Grant Expenditure,
BEIS,UKRI - BBSRC,15/06/2018,Research Grant Expenditure,Innovation and Skills Group,Engineering & Physical Sciences Research Council,98214107,8779.24,Research Grant Expenditure,
BEIS,UKRI - BBSRC,15/06/2018,Research Grant Expenditure,Innovation and Skills Group,Engineering & Physical Sciences Research Council,98214110,21394.50,Research Grant Expenditure,
BEIS,UKRI - BBSRC,15/06/2018,Research Grant Expenditure,Innovation and Skills Group,Engineering & Physical Sciences Research Council,98214111,12453.09,Research Grant Expenditure,
BEIS,UKRI - BBSRC,15/06/2018,Research Grant Expenditure,Innovation and Skills Group,Engineering & Physical Sciences Research Council,98214115,18342.74,Research Grant Expenditure,
BEIS,UKRI - BBSRC,15/06/2018,Research Grant Expenditure,Science Group,Engineering & Physical Sciences Research Council,98214119,9384.86,Research Grant Expenditure,
BEIS,UKRI - BBSRC,15/06/2018,Research Grant Expenditure,Science Group,Engineering & Physical Sciences Research Council,98214126,8468.62,Research Grant Expenditure,
BEIS,UKRI - BBSRC,15/06/2018,Research Institutes - Capital Grants: Major Works,IFR,Quadram Institute Biosocience,98199574,121516.00,Research Institutes - Capital Grants: Major Works,
BEIS,UKRI - BBSRC,15/06/2018,Research Institutes - Competitive Strategic Grant,IFR,Quadram Institute Biosocience,98199567,328623.18,Research Institutes - Competitive Strategic Grant,
BEIS,UKRI - BBSRC,15/06/2018,Research Institutes - Competitive Strategic Grant,IFR,Quadram Institute Biosocience,98199567,46083.29,Research Institutes - Competitive Strategic Grant,
BEIS,UKRI - BBSRC,15/06/2018,Research Institutes - Competitive Strategic Grant,IFR,Quadram Institute Biosocience,98199567,304426.20,Research Institutes - Competitive Strategic Grant,
BEIS,UKRI - BBSRC,15/06/2018,Research Institutes - Competitive Strategic Grant,IFR,Quadram Institute Biosocience,98199567,5833.33,Research Institutes - Competitive Strategic Grant,
BEIS,UKRI - BBSRC,15/06/2018,Research Institutes - Competitive Strategic Grant,Babraham Institute,Babraham Institute,98199987,352459.91,Research Institutes - Competitive Strategic Grant,
BEIS,UKRI - BBSRC,15/06/2018,Research Institutes - Competitive Strategic Grant,Babraham Institute,Babraham Institute,98199987,48750.01,Research Institutes - Competitive Strategic Grant,
BEIS,UKRI - BBSRC,15/06/2018,Research Institutes - Competitive Strategic Grant,Babraham Institute,Babraham Institute,98199987,395666.75,Research Institutes - Competitive Strategic Grant,
BEIS,UKRI - BBSRC,15/06/2018,Research Institutes - Competitive Strategic Grant,Babraham Institute,Babraham Institute,98199987,5833.33,Research Institutes - Competitive Strategic Grant,
BEIS,UKRI - BBSRC,15/06/2018,Research Institutes - Competitive Strategic Grant,TGAC,Earlham Institute,98199989,175152.14,Research Institutes - Competitive Strategic Grant,
BEIS,UKRI - BBSRC,15/06/2018,Research Institutes - Competitive Strategic Grant,TGAC,Earlham Institute,98199989,72565.05,Research Institutes - Competitive Strategic Grant,
BEIS,UKRI - BBSRC,15/06/2018,Research Institutes - Competitive Strategic Grant,TGAC,Earlham Institute,98199989,46166.70,Research Institutes - Competitive Strategic Grant,
BEIS,UKRI - BBSRC,15/06/2018,Research Institutes - Competitive Strategic Grant,TGAC,Earlham Institute,98199989,33333.36,Research Institutes - Competitive Strategic Grant,
BEIS,UKRI - BBSRC,15/06/2018,Research Institutes - Competitive Strategic Grant,TGAC,Earlham Institute,98199989,111533.08,Research Institutes - Competitive Strategic Grant,
BEIS,UKRI - BBSRC,15/06/2018,Research Institutes - Competitive Strategic Grant,TGAC,Earlham Institute,98199989,2916.67,Research Institutes - Competitive Strategic Grant,
BEIS,UKRI - BBSRC,15/06/2018,Research Institutes - Competitive Strategic Grant,JIC,John Innes Centre,98200017,20583.33,Research Institutes - Competitive Strategic Grant,
BEIS,UKRI - BBSRC,15/06/2018,Research Institutes - Competitive Strategic Grant,JIC,John Innes Centre,98200017,483416.52,Research Institutes - Competitive Strategic Grant,
BEIS,UKRI - BBSRC,15/06/2018,Research Institutes - Competitive Strategic Grant,JIC,John Innes Centre,98200017,65333.31,Research Institutes - Competitive Strategic Grant,
BEIS,UKRI - BBSRC,15/06/2018,Research Institutes - Competitive Strategic Grant,JIC,John Innes Centre,98200017,530666.51,Research Institutes - Competitive Strategic Grant,
BEIS,UKRI - BBSRC,15/06/2018,Research Institutes - Competitive Strategic Grant,JIC,John Innes Centre,98200017,7083.33,Research Institutes - Competitive Strategic Grant,
BEIS,UKRI - BBSRC,15/06/2018,Research Institutes - Competitive Strategic Grant,IBERS,Ibers - Aberystwyth University,98207190,97156.16,Research Institutes - Competitive Strategic Grant,
BEIS,UKRI - BBSRC,15/06/2018,Research Institutes - Competitive Strategic Grant,IBERS,Ibers - Aberystwyth University,98207190,52853.25,Research Institutes - Competitive Strategic Grant,
BEIS,UKRI - BBSRC,15/06/2018,Research Institutes - Competitive Strategic Grant,IBERS,Ibers - Aberystwyth University,98207190,2916.67,Research Institutes - Competitive Strategic Grant,
BEIS,UKRI - BBSRC,15/06/2018,Research Institutes - Competitive Strategic Grant,Rothamsted Research,Rothamsted Research Ltd,98207663,111375.26,Research Institutes - Competitive Strategic Grant,
BEIS,UKRI - BBSRC,15/06/2018,Research Institutes - Competitive Strategic Grant,Rothamsted Research,Rothamsted Research Ltd,98207663,418875.20,Research Institutes - Competitive Strategic Grant,
BEIS,UKRI - BBSRC,15/06/2018,Research Institutes - Competitive Strategic Grant,Rothamsted Research,Rothamsted Research Ltd,98207663,64737.54,Research Institutes - Competitive Strategic Grant,
BEIS,UKRI - BBSRC,15/06/2018,Research Institutes - Competitive Strategic Grant,Rothamsted Research,Rothamsted Research Ltd,98207663,197215.90,Research Institutes - Competitive Strategic Grant,
BEIS,UKRI - BBSRC,15/06/2018,Research Institutes - Competitive Strategic Grant,Rothamsted Research,Rothamsted Research Ltd,98207663,7091.10,Research Institutes - Competitive Strategic Grant,
BEIS,UKRI - BBSRC,15/06/2018,Research Institutes - Competitive Strategic Grant,Pirbright,The Pirbright Institute,98207669,820583.33,Research Institutes - Competitive Strategic Grant,
BEIS,UKRI - BBSRC,15/06/2018,Research Institutes - Competitive Strategic Grant,Pirbright,The Pirbright Institute,98207669,234583.33,Research Institutes - Competitive Strategic Grant,
BEIS,UKRI - BBSRC,15/06/2018,Research Institutes - Competitive Strategic Grant,Pirbright,The Pirbright Institute,98207669,33333.33,Research Institutes - Competitive Strategic Grant,
BEIS,UKRI - BBSRC,15/06/2018,Research Institutes - Competitive Strategic Grant,Pirbright,The Pirbright Institute,98207669,194916.67,Research Institutes - Competitive Strategic Grant,
BEIS,UKRI - BBSRC,15/06/2018,Research Institutes - Competitive Strategic Grant,Pirbright,The Pirbright Institute,98207669,4166.67,Research Institutes - Competitive Strategic Grant,
BEIS,UKRI - BBSRC,15/06/2018,Research Institutes - Competitive Strategic Grant,EBRC (Roslin),University of Edinburgh,98213655,277179.92,Research Institutes - Competitive Strategic Grant,
BEIS,UKRI - BBSRC,15/06/2018,Research Institutes - Competitive Strategic Grant,EBRC (Roslin),University of Edinburgh,98213655,206087.50,Research Institutes - Competitive Strategic Grant,
BEIS,UKRI - BBSRC,15/06/2018,Research Institutes - Competitive Strategic Grant,EBRC (Roslin),University of Edinburgh,98213655,5833.33,Research Institutes - Competitive Strategic Grant,
BEIS,UKRI - BBSRC,15/06/2018,Secondments,RISD - UKRO,Engineering & Physical Sciences Research Council,98152704,12192.97,Secondments,
BEIS,UKRI - BBSRC,15/06/2018,Secondments,CIMG - External Relations,Science & Technology Facilities Council,98152730,10095.06,Secondments,
BEIS,UKRI - BBSRC,15/06/2018,Secondments,CIMG - External Relations,Science & Technology Facilities Council,98152730,2536.09,Secondments,
BEIS,UKRI - BBSRC,15/06/2018,Secondments,JBOS - Staff,Economic & Social Research Council,98155785,5510.48,Secondments,
BEIS,UKRI - BBSRC,15/06/2018,Staff Training,PDG - Director,HHR UK Consulting Ltd,98215381,1500.00,Staff Training,
BEIS,UKRI - BBSRC,15/06/2018,T&S Overseas - Other Charges,CE - IRU,Unspecified,98214477,2.33,T&S Overseas - Other Charges,
BEIS,UKRI - BBSRC,15/06/2018,T&S Overseas - Public Transport,European Initiatives,Unspecified,98214478,3.67,T&S Overseas - Public Transport,
BEIS,UKRI - BBSRC,15/06/2018,T&S Overseas - Subsistence,CE - IRU,Unspecified,98214477,20.00,T&S Overseas - Subsistence,
BEIS,UKRI - BBSRC,15/06/2018,T&S Overseas - Subsistence,CE - IRU,Unspecified,98214477,15.06,T&S Overseas - Subsistence,
BEIS,UKRI - BBSRC,15/06/2018,T&S Overseas - Subsistence,European Initiatives,Unspecified,98214478,5.00,T&S Overseas - Subsistence,
BEIS,UKRI - BBSRC,15/06/2018,T&S Overseas - Subsistence,European Initiatives,Unspecified,98214478,30.40,T&S Overseas - Subsistence,
BEIS,UKRI - BBSRC,15/06/2018,T&S Overseas - Subsistence,European Initiatives,Unspecified,98214478,14.70,T&S Overseas - Subsistence,
BEIS,UKRI - BBSRC,15/06/2018,T&S UK - Mileage,FG - Estates,Unspecified,98214480,49.50,T&S UK - Mileage,
BEIS,UKRI - BBSRC,15/06/2018,T&S UK - Other Charges,CE - IRU,Unspecified,98214475,13.50,T&S UK - Other Charges,
